Authority,Department,Spending Area,Expense Type,Posting Date,Reference,Amount,Supplier
OXFORDSHIRE CC,"CHILDRENS, YOUNG PEOPLE AND FAMILIES","	C&I BASE FITZHARRYS",MATERIALS,26/02/2021,7455332226,14.95,AMZNMKTPLACE
OXFORDSHIRE CC,"CHILDRENS, YOUNG PEOPLE AND FAMILIES","	SEN/ICT EQUIPMENT",PURCHASE OF IT EQUIPMENT,26/02/2021,7455332228,82.45,AMZNMKTPLACE AMAZON.CO
OXFORDSHIRE CC,"CHILDRENS, YOUNG PEOPLE AND FAMILIES","	C&I BASE FITZHARRYS",MATERIALS,26/02/2021,7455332236,33.82,AMZNMKTPLACE
OXFORDSHIRE CC,"CHILDRENS, YOUNG PEOPLE AND FAMILIES","	C&I BASE FITZHARRYS",MATERIALS,26/02/2021,7455332236,52.87,AMZNMKTPLACE
OXFORDSHIRE CC,"CHILDRENS, YOUNG PEOPLE AND FAMILIES","	C&I BASE FITZHARRYS",MATERIALS,26/02/2021,7455332230,34.86,AMAZON.CO.UK MM8867LR4
OXFORDSHIRE CC,"CHILDRENS, YOUNG PEOPLE AND FAMILIES","	C&I BASE FITZHARRYS",MATERIALS,26/02/2021,7455332232,40.76,AMZNMKTPLACE
OXFORDSHIRE CC,"CHILDRENS, YOUNG PEOPLE AND FAMILIES","	C&I BASE FITZHARRYS",MATERIALS,26/02/2021,7455332234,6.99,AMZNMKTPLACE
OXFORDSHIRE CC,SOCIAL AND COMMUNITY SERVICES,CSS BICESTER,MATERIALS,26/02/2021,7455331918,45.99,AMZNMKTPLACE
OXFORDSHIRE CC,SOCIAL AND COMMUNITY SERVICES,CSS BICESTER,MATERIALS,26/02/2021,7455331920,231,AMZNMKTPLACE
OXFORDSHIRE CC,ENVIRONMENT AND ECONOMY,HARD FM,HARDWARE AND CROCKERY,26/02/2021,7455331936,30.99,SCREWFIX DIRECT
OXFORDSHIRE CC,SOCIAL AND COMMUNITY SERVICES,CSS BICESTER,MATERIALS,26/02/2021,7455331922,84.98,AMZNMKTPLACE
OXFORDSHIRE CC,SOCIAL AND COMMUNITY SERVICES,CSS BICESTER,MATERIALS,26/02/2021,7455331924,77,AMZNMKTPLACE
OXFORDSHIRE CC,ENVIRONMENT AND ECONOMY,HARD FM,EQUIPMENT,26/02/2021,7455331932,589.94,NEWEY & EYRE
OXFORDSHIRE CC,ENVIRONMENT AND ECONOMY,HARD FM,HARDWARE AND CROCKERY,26/02/2021,7455331934,23.99,SCREWFIX DIRECT
OXFORDSHIRE CC,"CHILDRENS, YOUNG PEOPLE AND FAMILIES","	C&I BASE FITZHARRYS",MATERIALS,26/02/2021,7455332238,33.95,ARGOS LTD
OXFORDSHIRE CC,CORPORATE CORE,CSC WORKFORCE DEVELOPMENT,MATERIALS,26/02/2021,7455332248,14.99,AMZNMKTPLACE
OXFORDSHIRE CC,"CHILDRENS, YOUNG PEOPLE AND FAMILIES","	FAMILY SUPPORT CITY3",HIRE OF ACCOMMODATION AND FACILITIES,26/02/2021,7455332252,309.5,PREMIER INN
OXFORDSHIRE CC,ENVIRONMENT AND ECONOMY,HARD FM,HARDWARE AND CROCKERY,26/02/2021,7455331938,19.99,SCREWFIX DIRECT
OXFORDSHIRE CC,ENVIRONMENT AND ECONOMY,HARD FM,HARDWARE AND CROCKERY,26/02/2021,7455331940,47.5,CITY PLUMBING
OXFORDSHIRE CC,ENVIRONMENT AND ECONOMY,HARD FM,MATERIALS,26/02/2021,7455331942,32,HALFORDS 0788
OXFORDSHIRE CC,SOCIAL AND COMMUNITY SERVICES,UASC 16&17,MATERIALS,26/02/2021,7455331946,239.99,AMAZON.CO.UK MM8KS6LV4
OXFORDSHIRE CC,"CHILDRENS, YOUNG PEOPLE AND FAMILIES",CNTL EARLY HELP-RHIL,OTHER TRANSPORT ARRANGEMENTS,26/02/2021,7455331948,61,WWW.THEKEY.CO.UK
OXFORDSHIRE CC,"CHILDRENS, YOUNG PEOPLE AND FAMILIES",DIDCOT MOVE-ON HOME,CATERING PROVISIONS,26/02/2021,7455332270,5.89,SAINSBURYS SACAT 2067
OXFORDSHIRE CC,"CHILDRENS, YOUNG PEOPLE AND FAMILIES","	LOOKED AFTER CITY 2",PAYMENT TO GOVERNMENT DEPARTMENTS,26/02/2021,7455332160,14,GEN REGISTER OFFICE
OXFORDSHIRE CC,CORPORATE CORE,"	DEMOCRATIC SERVICES",OTHER TRAINING COURSES AND QUALIFICATION,26/02/2021,7455332162,234,IPF
OXFORDSHIRE CC,"CHILDRENS, YOUNG PEOPLE AND FAMILIES",CSS WALLINGFORD,CATERING PROVISIONS,26/02/2021,7455331868,13.25,WAITROSE 675
OXFORDSHIRE CC,CORPORATE CORE,HISTORY SERVICE,EQUIPMENT,26/02/2021,7455332180,15.74,AMZNMKTPLACE
OXFORDSHIRE CC,CORPORATE CORE,HISTORY SERVICE,EQUIPMENT,26/02/2021,7455332182,36.47,WWW.PRESERVATIONEQUIPM
OXFORDSHIRE CC,ENVIRONMENT AND ECONOMY,LEARNING & ACCESS,EQUIPMENT,26/02/2021,7455332184,21.98,AMZNMKTPLACE AMAZON.CO
OXFORDSHIRE CC,ENVIRONMENT AND ECONOMY,LEARNING & ACCESS,EQUIPMENT,26/02/2021,7455332186,29.59,AMZNMKTPLACE AMAZON.CO
OXFORDSHIRE CC,ENVIRONMENT AND ECONOMY,LEARNING & ACCESS,MATERIALS,26/02/2021,7455332188,234.5,SP   GEOED
OXFORDSHIRE CC,ENVIRONMENT AND ECONOMY,LEARNING & ACCESS,EQUIPMENT,26/02/2021,7455332190,59.18,AMZNMKTPLACE
OXFORDSHIRE CC,ENVIRONMENT AND ECONOMY,LEARNING & ACCESS,EQUIPMENT,26/02/2021,7455332192,21.98,AMZNMKTPLACE
OXFORDSHIRE CC,SOCIAL AND COMMUNITY SERVICES,"	MUSEUMS COLLECTIONS",OTHER SERVICES,26/02/2021,7455332196,160.2,GEE JAY CHEMICALS
OXFORDSHIRE CC,"CHILDRENS, YOUNG PEOPLE AND FAMILIES",EDT,HIRE OF ACCOMMODATION AND FACILITIES,26/02/2021,7455332206,55,PREMIER INN
OXFORDSHIRE CC,"CHILDRENS, YOUNG PEOPLE AND FAMILIES",EYNSHAM,CATERING,26/02/2021,7455331898,11,TESCO PFS 2488
OXFORDSHIRE CC,"CHILDRENS, YOUNG PEOPLE AND FAMILIES",EYNSHAM,CATERING,26/02/2021,7455331900,1.35,CO-OPERATIVE FOOD
OXFORDSHIRE CC,SOCIAL AND COMMUNITY SERVICES,CSS - ABINGDON,EQUIPMENT,26/02/2021,7455331902,7.59,AMZNMKTPLACE
OXFORDSHIRE CC,ENVIRONMENT AND ECONOMY,"	ROW MAINT",MATERIALS,26/02/2021,7455331916,5.25,EVENLODE DIY
OXFORDSHIRE CC,"CHILDRENS, YOUNG PEOPLE AND FAMILIES","	DISABILITIES TEAM-C",OTHER SERVICES,26/02/2021,7455332038,245,KINGSWOOD DAYCARE NURS
OXFORDSHIRE CC,"CHILDRENS, YOUNG PEOPLE AND FAMILIES",OXFORDSHIRE,PAYMENTS TO VOLUNTARY BODIES,26/02/2021,7455332050,45,CVAA UK LTD
OXFORDSHIRE CC,SOCIAL AND COMMUNITY SERVICES,RESIDENTIAL STRATEGY,RESIDENTIAL ACTIVITIES,26/02/2021,7455332052,19.99,ARGOS LTD
OXFORDSHIRE CC,"CHILDRENS, YOUNG PEOPLE AND FAMILIES","	LEAVING CARE SOUTH",STATIONERY,26/02/2021,7455332060,1,ASDA STORES 5123
OXFORDSHIRE CC,CORPORATE CORE,"MARKETING, COMMUNICATIONS & ENGAGEMENT","PUBLICITY, PROMOTIONS AND ADVERTISEMENT",26/02/2021,7455332074,500,GOOGLE  ADS4896546035
OXFORDSHIRE CC,CORPORATE CORE,"MARKETING, COMMUNICATIONS & ENGAGEMENT",IT SOFTWARE,26/02/2021,7455332076,78.97,ADOBE STOCK
OXFORDSHIRE CC,"CHILDRENS, YOUNG PEOPLE AND FAMILIES","	OCCG GRANT",CATERING PROVISIONS,26/02/2021,7455332080,12.23,TESCO STORES 2008
OXFORDSHIRE CC,"CHILDRENS, YOUNG PEOPLE AND FAMILIES","	OCCG GRANT",MATERIALS,26/02/2021,7455332082,16,TIMPSON LTD
OXFORDSHIRE CC,CORPORATE CORE,LIBRARY COLLECTIONS,"BOOKS, DVDS AND CDS",26/02/2021,7455332092,523.17,OVERDRIVE DIST
OXFORDSHIRE CC,"CHILDRENS, YOUNG PEOPLE AND FAMILIES",FAMILY SOLUTIONS PLUS NON-STAFF - NORTH,PAYMENTS TO TRANSPORT OPERATORS,26/02/2021,7455332094,45.45,THETRAINLINE.COM
OXFORDSHIRE CC,"CHILDRENS, YOUNG PEOPLE AND FAMILIES",FAMILY SOLUTIONS PLUS NON-STAFF - NORTH,PAYMENTS TO TRANSPORT OPERATORS,26/02/2021,7455332096,45.45,THETRAINLINE.COM
OXFORDSHIRE CC,"CHILDRENS, YOUNG PEOPLE AND FAMILIES",FAMILY SOLUTIONS PLUS NON-STAFF - NORTH,HIRE OF ACCOMMODATION AND FACILITIES,26/02/2021,7455332098,65,HOTEL ON BOOKING.COM
OXFORDSHIRE CC,"CHILDRENS, YOUNG PEOPLE AND FAMILIES",FAMILY SOLUTIONS PLUS NON-STAFF - NORTH,PAYMENTS TO TRANSPORT OPERATORS,26/02/2021,7455332100,44.7,TRAINLINE
OXFORDSHIRE CC,"CHILDRENS, YOUNG PEOPLE AND FAMILIES",FAMILY SOLUTIONS PLUS NON-STAFF - NORTH,HIRE OF ACCOMMODATION AND FACILITIES,26/02/2021,7455332102,65,HOTEL ON BOOKING.COM
OXFORDSHIRE CC,"CHILDRENS, YOUNG PEOPLE AND FAMILIES","	LOOKED AFTER NORTH",TELEPHONE - EQUIPMENT,26/02/2021,7455332106,16.99,TESCO STORE 2064
OXFORDSHIRE CC,"CHILDRENS, YOUNG PEOPLE AND FAMILIES","	LOOKED AFTER NORTH",CATERING PROVISIONS,26/02/2021,7455332108,57.29,TESCO STORE 2064
OXFORDSHIRE CC,"CHILDRENS, YOUNG PEOPLE AND FAMILIES","	LOOKED AFTER NORTH",OTHER EXPENSES,26/02/2021,7455332110,20.75,TESCO STORE 2064
OXFORDSHIRE CC,ENVIRONMENT AND ECONOMY,MAJOR INFRASTRUCTURE DELIVERY,POSTAGE AND DELIVERY,26/02/2021,7455332112,27.65,ROYAL MAIL GROUP LTD
OXFORDSHIRE CC,SOCIAL AND COMMUNITY SERVICES,"	VISUAL IMP. TEAM",MATERIALS,26/02/2021,7455332140,87.96,AMZNMKTPLACE AMAZON.CO
OXFORDSHIRE CC,SOCIAL AND COMMUNITY SERVICES,"	VISUAL IMP. TEAM",MATERIALS,26/02/2021,7455332142,44.94,AMAZON.CO.UK MM1Z94ZH4
OXFORDSHIRE CC,CORPORATE CORE,"	CORPORATE FINANCE",OTHER TRAINING COURSES AND QUALIFICATION,26/02/2021,7455332150,200,WWW.ACCOUNTS@IIA.ORG.U
OXFORDSHIRE CC,SOCIAL AND COMMUNITY SERVICES,SCHOOLS FM CATERING AREA 4,CATERING,26/02/2021,7455331958,10.98,BOOKER LIMITED OXFORD
OXFORDSHIRE CC,CORPORATE CORE,LIBRARY COLLECTIONS,"BOOKS, DVDS AND CDS",26/02/2021,7455331974,360.11,BOLINDA PUBLISHING
OXFORDSHIRE CC,"CHILDRENS, YOUNG PEOPLE AND FAMILIES","	LOOKED AFTER CITY 2",OTHER TRANSPORT ARRANGEMENTS,26/02/2021,7455332280,15,IZ  ROYAL CARS OXFORD
OXFORDSHIRE CC,"CHILDRENS, YOUNG PEOPLE AND FAMILIES",EYNSHAM,CATERING PROVISIONS,26/02/2021,7455332288,140.05,TESCO STORES 2008
OXFORDSHIRE CC,"CHILDRENS, YOUNG PEOPLE AND FAMILIES","	40 THE MOORS",CATERING PROVISIONS,26/02/2021,7455332296,17.33,SAINSBURYS SACAT 0631
OXFORDSHIRE CC,CORPORATE CORE,CATERING MANAGEMENT SOFT FM,MATERIALS,26/02/2021,7455331996,103.66,AMZNMKTPLACE
OXFORDSHIRE CC,"CHILDRENS, YOUNG PEOPLE AND FAMILIES","	SM QUALITY ASSURANCE",MATERIALS,26/02/2021,7455331984,30.99,AMZNMKTPLACE
OXFORDSHIRE CC,SOCIAL AND COMMUNITY SERVICES,CICC,MATERIALS,26/02/2021,7455331986,7.99,AMAZON PRIME MM71O6LU4
OXFORDSHIRE CC,"CHILDRENS, YOUNG PEOPLE AND FAMILIES","	LEAVING CARE NORTH",TELEPHONE - EQUIPMENT,26/02/2021,7455331988,15,EE TOP UP VESTA
OXFORDSHIRE CC,"CHILDRENS, YOUNG PEOPLE AND FAMILIES","	LEAVING CARE NORTH",MATERIALS,26/02/2021,7455331990,49.95,ARGOS LTD
OXFORDSHIRE CC,CORPORATE CORE,CATERING MANAGEMENT SOFT FM,MATERIALS,26/02/2021,7455331994,40.98,AMAZON.CO.UK MM18B4LC4
OXFORDSHIRE CC,"CHILDRENS, YOUNG PEOPLE AND FAMILIES",THAME E&A HOME,CATERING PROVISIONS,26/02/2021,7455332016,18.45,MILK AND MORE
OXFORDSHIRE CC,CORPORATE CORE,,"SUPPLIES, STATIONERY AND MATERIALS",26/02/2021,7455332326,7.88,LYRECO UK LTD
OXFORDSHIRE CC,CORPORATE CORE,CATERING MANAGEMENT SOFT FM,CATERING,26/02/2021,7455332328,29.81,BRAKE BROS LTD
OXFORDSHIRE CC,CORPORATE CORE,CATERING MANAGEMENT SOFT FM,CATERING,26/02/2021,7455332330,21.51,BRAKE BROS LTD
OXFORDSHIRE CC,"CHILDRENS, YOUNG PEOPLE AND FAMILIES","	LOOKED AFTER CITY 1",VEHICLE FUEL,26/02/2021,7455332020,41.21,TESCO PAY AT PUMP 3968
OXFORDSHIRE CC,"CHILDRENS, YOUNG PEOPLE AND FAMILIES","	LOOKED AFTER CITY 1",OTHER TRANSPORT ARRANGEMENTS,26/02/2021,7455332022,6.9,M6 TOLL
OXFORDSHIRE CC,CORPORATE CORE,,"SUPPLIES, STATIONERY AND MATERIALS",25/02/2021,7452066456,12.1,LYRECO UK LTD
OXFORDSHIRE CC,"CHILDRENS, YOUNG PEOPLE AND FAMILIES",FAMILY SOLUTIONS PLUS NON-STAFF - NORTH,POSTAGE AND DELIVERY,25/02/2021,7452064862,4.12,ROYAL MAIL GROUP LTD
OXFORDSHIRE CC,SOCIAL AND COMMUNITY SERVICES,CSS BICESTER,MATERIALS,25/02/2021,7452064846,88,AMAZON.CO.UK MM6TF84B4
OXFORDSHIRE CC,CORPORATE CORE,CATERING MANAGEMENT SOFT FM,CATERING,25/02/2021,7452066484,-12.23,BRAKE BROS LTD
OXFORDSHIRE CC,"CHILDRENS, YOUNG PEOPLE AND FAMILIES",MARKETING,PURCHASE OF IT EQUIPMENT,25/02/2021,7452064870,282.76,BUYITDIRECT CO UK
OXFORDSHIRE CC,"CHILDRENS, YOUNG PEOPLE AND FAMILIES",MARKETING,OTHER TRAINING COURSES AND QUALIFICATION,25/02/2021,7452064880,634.8,WP-HANDS FREE COMP
OXFORDSHIRE CC,SOCIAL AND COMMUNITY SERVICES,LOOKED AFTER SOUTH,CLOTHING AND UNIFORMS,25/02/2021,7452064964,104.98,FOOTASYLUM PLC
OXFORDSHIRE CC,SOCIAL AND COMMUNITY SERVICES,"	HISTORY SERVICE",FURNITURE,25/02/2021,7452064922,6.95,AMZNMKTPLACE AMAZON.CO
OXFORDSHIRE CC,ENVIRONMENT AND ECONOMY,WASTE REDUCTION GEN,OTHER TRAINING COURSES AND QUALIFICATION,25/02/2021,7452065016,121.77,WWW.LETSRECYCLE.COM
OXFORDSHIRE CC,ENVIRONMENT AND ECONOMY,WASTE REDUCTION GEN,"PUBLICITY, PROMOTIONS AND ADVERTISEMENT",25/02/2021,7452065024,92.28,AMZNMKTPLACE
OXFORDSHIRE CC,"CHILDRENS, YOUNG PEOPLE AND FAMILIES",NRPF & HOMELESSNESS,HIRE OF ACCOMMODATION AND FACILITIES,25/02/2021,7452065034,295,PREMIER INN
OXFORDSHIRE CC,"CHILDRENS, YOUNG PEOPLE AND FAMILIES","	LAC PUPIL PREMIUM","SUPPLIES, STATIONERY AND MATERIALS",25/02/2021,7452065076,433.98,CURRYS ONLINE
OXFORDSHIRE CC,SOCIAL AND COMMUNITY SERVICES,RESIDENTIAL STRATEGY,CATERING PROVISIONS,25/02/2021,7452065184,2.58,PAK HALAL ERDEM FOOD C
OXFORDSHIRE CC,"CHILDRENS, YOUNG PEOPLE AND FAMILIES","	HOME SUPPORT","SUPPLIES, STATIONERY AND MATERIALS",25/02/2021,7452065130,66.36,NORSEMEN SAFETY & INDU
OXFORDSHIRE CC,"CHILDRENS, YOUNG PEOPLE AND FAMILIES",DIDCOT MOVE-ON HOME,CATERING,25/02/2021,7452065164,12.38,SAINSBURYS 2067
OXFORDSHIRE CC,SOCIAL AND COMMUNITY SERVICES,RESIDENTIAL STRATEGY,CATERING PROVISIONS,25/02/2021,7452065178,30.96,PAK HALAL ERDEM FOOD C
OXFORDSHIRE CC,"CHILDRENS, YOUNG PEOPLE AND FAMILIES","	C&I BASE LORD WILL'M",MATERIALS,25/02/2021,7452065226,41.99,AMZNMKTPLACE
OXFORDSHIRE CC,"CHILDRENS, YOUNG PEOPLE AND FAMILIES","	C&I BASE LORD WILL'M","BOOKS, DVDS AND CDS",25/02/2021,7452065230,23.9,AMZN MKTP UK MM5U12L64
OXFORDSHIRE CC,"CHILDRENS, YOUNG PEOPLE AND FAMILIES",UASC POST 18,OTHER TRANSPORT ARRANGEMENTS,25/02/2021,7452065234,6.1,STGCOACH/CTYLINK
OXFORDSHIRE CC,"CHILDRENS, YOUNG PEOPLE AND FAMILIES","	LOOKED AFTER SOUTH",PRINTING,25/02/2021,7452065320,9.97,PHOTOBOX LIMITED
OXFORDSHIRE CC,ENVIRONMENT AND ECONOMY,"	SAMUELSON HOUSE",STATIONERY,25/02/2021,7452065330,41.24,CARTRIDGE SAVE
OXFORDSHIRE CC,CORPORATE CORE,LIBRARY COLLECTIONS,"BOOKS, DVDS AND CDS",25/02/2021,7452065362,509.58,OVERDRIVE DIST
OXFORDSHIRE CC,"CHILDRENS, YOUNG PEOPLE AND FAMILIES","	LEAVING CARE NORTH",OTHER EXPENSES,25/02/2021,7452065374,31.94,AMZNMKTPLACE
OXFORDSHIRE CC,"CHILDRENS, YOUNG PEOPLE AND FAMILIES","	LEAVING CARE NORTH",HIRED AND CONTRACTED SERVICES,25/02/2021,7452065384,125,MAGENTA STORAGE
OXFORDSHIRE CC,"CHILDRENS, YOUNG PEOPLE AND FAMILIES","	LEAVING CARE NORTH",MATERIALS,25/02/2021,7452065396,49.68,AMZNMKTPLACE
OXFORDSHIRE CC,"CHILDRENS, YOUNG PEOPLE AND FAMILIES",DIDCOT MOVE-ON HOME,CATERING PROVISIONS,25/02/2021,7452066228,2.95,SAINSBURYS SACAT 2067
OXFORDSHIRE CC,"CHILDRENS, YOUNG PEOPLE AND FAMILIES",CHILDREN IN CARE NON-STAFFING - SOUTH,FURNITURE,25/02/2021,7452064440,149.99,WF  WAYFAIR 3526595424
OXFORDSHIRE CC,ENVIRONMENT AND ECONOMY,HARD FM,HARDWARE AND CROCKERY,25/02/2021,7452064520,37.32,JOHN NICHOLLS KIDLINGT
OXFORDSHIRE CC,"CHILDRENS, YOUNG PEOPLE AND FAMILIES",EYNSHAM,VEHICLE FUEL,25/02/2021,7452066276,10,TESCO PFS 2488
OXFORDSHIRE CC,"CHILDRENS, YOUNG PEOPLE AND FAMILIES",EYNSHAM,CATERING PROVISIONS,25/02/2021,7452066282,5.5,CO-OPERATIVE FOOD
OXFORDSHIRE CC,SOCIAL AND COMMUNITY SERVICES,NORTH TEAM,HIRE OF ACCOMMODATION AND FACILITIES,25/02/2021,7452066288,259,LISMORE & ROTHWELL
OXFORDSHIRE CC,CORPORATE CORE,"	CORONER",MATERIALS,25/02/2021,7452066294,16.54,ROBERT DYAS HOLDNG LTD
OXFORDSHIRE CC,"CHILDRENS, YOUNG PEOPLE AND FAMILIES",BULLINGDON PRISON,CATERING PROVISIONS,25/02/2021,7452066296,64.97,AMAZON.CO.UK MM1SK6474
OXFORDSHIRE CC,ENVIRONMENT AND ECONOMY,HARD FM,HARDWARE AND CROCKERY,25/02/2021,7452064532,15.25,SYDENHAMS LTD
OXFORDSHIRE CC,ENVIRONMENT AND ECONOMY,HARD FM,HARDWARE AND CROCKERY,25/02/2021,7452064542,39.4,WICKES BANBURY
OXFORDSHIRE CC,ENVIRONMENT AND ECONOMY,HARD FM,EQUIPMENT,25/02/2021,7452064552,55.2,WILTS ELECTRICAL
OXFORDSHIRE CC,ENVIRONMENT AND ECONOMY,HARD FM,HARDWARE AND CROCKERY,25/02/2021,7452064560,23.01,SCREWFIX DIR LTD
OXFORDSHIRE CC,ENVIRONMENT AND ECONOMY,HARD FM,MATERIALS,25/02/2021,7452064568,18.98,TOOLSTATION UK
OXFORDSHIRE CC,ENVIRONMENT AND ECONOMY,HARD FM,HARDWARE AND CROCKERY,25/02/2021,7452064586,92,WICKES OXFORD
OXFORDSHIRE CC,"CHILDRENS, YOUNG PEOPLE AND FAMILIES",CNTL ERLY HELP-BBLEY,MATERIALS,25/02/2021,7452066304,39.99,AMZNMKTPLACE AMAZON.CO
OXFORDSHIRE CC,"CHILDRENS, YOUNG PEOPLE AND FAMILIES","	LOOKED AFTER CITY 2",CLOTHING AND UNIFORMS,25/02/2021,7452066316,12.75,AMZNMKTPLACE AMAZON.CO
OXFORDSHIRE CC,"CHILDRENS, YOUNG PEOPLE AND FAMILIES",WITNEY,CATERING PROVISIONS,25/02/2021,7452066348,27.07,SAINSBURYS 0632
OXFORDSHIRE CC,"CHILDRENS, YOUNG PEOPLE AND FAMILIES",WITNEY,CATERING PROVISIONS,25/02/2021,7452066354,2.75,WAITROSE 142
OXFORDSHIRE CC,"CHILDRENS, YOUNG PEOPLE AND FAMILIES","	40 THE MOORS",CATERING,25/02/2021,7452066366,16.3,WWW.JUST EAT.CO.UK
OXFORDSHIRE CC,SOCIAL AND COMMUNITY SERVICES,BICESTER LIBRARY,MATERIALS,25/02/2021,7452066374,66.98,AMZNMKTPLACE AMAZON.CO
OXFORDSHIRE CC,ENVIRONMENT AND ECONOMY,"	TVERC",IT SERVICES,25/02/2021,7452064648,61.19,NAMESCO
OXFORDSHIRE CC,"CHILDRENS, YOUNG PEOPLE AND FAMILIES",THAME E&A HOME,CATERING PROVISIONS,25/02/2021,7452064674,1.7,TESCO STORE 2788
OXFORDSHIRE CC,CORPORATE CORE,REGISTRAR,MATERIALS,25/02/2021,7452064684,25,AMAZON.CO.UK MM5IH2FV4
OXFORDSHIRE CC,CORPORATE CORE,CATERING MANAGEMENT SOFT FM,CATERING,25/02/2021,7452066472,-21.51,BRAKE BROS LTD
OXFORDSHIRE CC,CORPORATE CORE,"	MEMBERS SERVICES",MATERIALS,25/02/2021,7452065602,124.95,AMZNMKTPLACE AMAZON.CO
OXFORDSHIRE CC,CORPORATE CORE,TRANSPORT GENERAL,VEHICLE EQUIPMENT AND EXPENSES - OTHER,25/02/2021,7452065636,16.74,AMAZON.CO.UK MM1BJ84D4
OXFORDSHIRE CC,CORPORATE CORE,TRANSPORT GENERAL,VEHICLE EQUIPMENT AND EXPENSES - OTHER,25/02/2021,7452065644,16.74,AMAZON.CO.UK MM4B594Y4
OXFORDSHIRE CC,SOCIAL AND COMMUNITY SERVICES,CSS - OXFORD,VEHICLE EQUIPMENT AND EXPENSES - OTHER,25/02/2021,7452065658,82.06,LSW
OXFORDSHIRE CC,CORPORATE CORE,"	CORPORATE FINANCE",OTHER TRAINING COURSES AND QUALIFICATION,25/02/2021,7452065672,858,WWW.ACCOUNTS@IIA.ORG.U
OXFORDSHIRE CC,CORPORATE CORE,"	CORPORATE FINANCE",OTHER TRAINING COURSES AND QUALIFICATION,25/02/2021,7452065684,200,WWW.ACCOUNTS@IIA.ORG.U
OXFORDSHIRE CC,ENVIRONMENT AND ECONOMY,"	BRIDGES GENERAL",POSTAGE AND DELIVERY,25/02/2021,7452065694,18.83,POST OFFICE COUNTER
OXFORDSHIRE CC,ENVIRONMENT AND ECONOMY,"	BRIDGES GENERAL",HARDWARE AND CROCKERY,25/02/2021,7452065706,59.94,HOMEBASE LTD
OXFORDSHIRE CC,"CHILDRENS, YOUNG PEOPLE AND FAMILIES","	LEAVING CARE CITY 2",MATERIALS,25/02/2021,7452065776,15.99,EBAY O 14-06633-84983
OXFORDSHIRE CC,"CHILDRENS, YOUNG PEOPLE AND FAMILIES","	LOOKED AFTER CITY 2",FURNITURE,25/02/2021,7452065786,129.99,WF  WAYFAIR3526790024
OXFORDSHIRE CC,"CHILDRENS, YOUNG PEOPLE AND FAMILIES","	RESIDENTIAL STRATEGY",EDUCATIONAL AND VOCATIONAL TRAINING ,25/02/2021,7452065844,47.88,PROTRAININGS
OXFORDSHIRE CC,"CHILDRENS, YOUNG PEOPLE AND FAMILIES","	RESIDENTIAL STRATEGY",EDUCATIONAL AND VOCATIONAL TRAINING ,25/02/2021,7452065854,377.24,PROTRAININGS
OXFORDSHIRE CC,ENVIRONMENT AND ECONOMY,LEARNING & ACCESS,EQUIPMENT,25/02/2021,7452065864,47.5,AMZNMKTPLACE AMAZON.CO
OXFORDSHIRE CC,ENVIRONMENT AND ECONOMY,LEARNING & ACCESS,EQUIPMENT,25/02/2021,7452065876,14.99,AMZNMKTPLACE AMAZON.CO
OXFORDSHIRE CC,ENVIRONMENT AND ECONOMY,LEARNING & ACCESS,EQUIPMENT,25/02/2021,7452065886,318,APPLE.COM/UK
OXFORDSHIRE CC,ENVIRONMENT AND ECONOMY,LEARNING & ACCESS,EQUIPMENT,25/02/2021,7452065894,159,APPLE.COM/UK
OXFORDSHIRE CC,SOCIAL AND COMMUNITY SERVICES,CSS WANTAGE,CATERING PROVISIONS,25/02/2021,7452066066,89.6,SUMUP   MATHEWS AND SO
OXFORDSHIRE CC,"CHILDRENS, YOUNG PEOPLE AND FAMILIES","	C&I BASE FITZHARRYS",MATERIALS,25/02/2021,7452066086,4.89,AMZNMKTPLACE
OXFORDSHIRE CC,"CHILDRENS, YOUNG PEOPLE AND FAMILIES","	C&I BASE FITZHARRYS",MATERIALS,25/02/2021,7452066094,1.58,AMZNMKTPLACE
OXFORDSHIRE CC,"CHILDRENS, YOUNG PEOPLE AND FAMILIES","	SEN/ICT EQUIPMENT",PURCHASE OF IT EQUIPMENT,25/02/2021,7452066098,20.99,AMZNMKTPLACE
OXFORDSHIRE CC,"CHILDRENS, YOUNG PEOPLE AND FAMILIES","	HEARING IMPAIRMENT",MATERIALS,25/02/2021,7452066104,4.65,AMAZON.CO.UK MM5IL7L44
OXFORDSHIRE CC,"CHILDRENS, YOUNG PEOPLE AND FAMILIES",NTH EARLY HELP-WITNY,MATERIALS,25/02/2021,7452064362,34,AMZNMKTPLACE
OXFORDSHIRE CC,SOCIAL AND COMMUNITY SERVICES,CSS BICESTER,CATERING PROVISIONS,25/02/2021,7452064396,15.6,WILKO RETAIL LIMITED
OXFORDSHIRE CC,"CHILDRENS, YOUNG PEOPLE AND FAMILIES",STH EARLY HELP-ABNDN,CAR LEASING - PRIVATE RENTALS,25/02/2021,7452064408,99,OCK HIRE ABINGDON LIMI
OXFORDSHIRE CC,SOCIAL AND COMMUNITY SERVICES,CSS WITNEY,MATERIALS,25/02/2021,7452064418,11,POUNDLAND LTD
OXFORDSHIRE CC,"CHILDRENS, YOUNG PEOPLE AND FAMILIES","	FAMILY SUPPORT CITY3",OTHER TRANSPORT ARRANGEMENTS,25/02/2021,7452066132,39,OXFORD BUS TICKETS
OXFORDSHIRE CC,SOCIAL AND COMMUNITY SERVICES,WITNEY MOVE ON HOME,CATERING PROVISIONS,24/02/2021,7448616456,6.35,SAINSBURYS SACAT 0632
OXFORDSHIRE CC,"CHILDRENS, YOUNG PEOPLE AND FAMILIES","	LEAVING CARE CITY 1",OTHER EXPENSES,24/02/2021,7448616474,270,ARGOS LTD
OXFORDSHIRE CC,"CHILDRENS, YOUNG PEOPLE AND FAMILIES","	FOSTER CARE RECRUIT","SUPPLIES, STATIONERY AND MATERIALS",24/02/2021,7448616766,372,ISTOCK.COM
OXFORDSHIRE CC,CORPORATE CORE,"	LEGAL SERVICES",PURCHASE OF IT EQUIPMENT,24/02/2021,7448616784,34.03,AMZNMKTPLACE AMAZON.CO
OXFORDSHIRE CC,"CHILDRENS, YOUNG PEOPLE AND FAMILIES","	LEAVING CARE SOUTH",MATERIALS,24/02/2021,7448617002,20.99,AMZNMKTPLACE
OXFORDSHIRE CC,"CHILDRENS, YOUNG PEOPLE AND FAMILIES","	LEAVING CARE SOUTH",CLOTHING AND UNIFORMS,24/02/2021,7448617006,53.59,BOOHOO.COM
OXFORDSHIRE CC,"CHILDRENS, YOUNG PEOPLE AND FAMILIES",WITNEY,CATERING PROVISIONS,24/02/2021,7448617010,22,SAINSBURYS 0632
OXFORDSHIRE CC,"CHILDRENS, YOUNG PEOPLE AND FAMILIES",FSP NON-STAFFING - CENTRAL,MATERIALS,24/02/2021,7448617018,209.99,ARGOS LTD
OXFORDSHIRE CC,"CHILDRENS, YOUNG PEOPLE AND FAMILIES",FSP NON-STAFFING - CENTRAL,MATERIALS,24/02/2021,7448617020,100,ARGOS LTD
OXFORDSHIRE CC,ENVIRONMENT AND ECONOMY,HARD FM,HARDWARE AND CROCKERY,24/02/2021,7448616384,67.3,JEWSONS
OXFORDSHIRE CC,ENVIRONMENT AND ECONOMY,HARD FM,MATERIALS,24/02/2021,7448616396,158.66,ADVANCED WATER
OXFORDSHIRE CC,ENVIRONMENT AND ECONOMY,HARD FM,EQUIPMENT,24/02/2021,7448616388,91.5,W F SENATE
OXFORDSHIRE CC,ENVIRONMENT AND ECONOMY,HARD FM,HARDWARE AND CROCKERY,24/02/2021,7448616390,180,JEWSON
OXFORDSHIRE CC,ENVIRONMENT AND ECONOMY,HARD FM,HARDWARE AND CROCKERY,24/02/2021,7448616392,17.69,WICKES BANBURY
OXFORDSHIRE CC,ENVIRONMENT AND ECONOMY,HARD FM,HARDWARE AND CROCKERY,24/02/2021,7448616394,79.98,SCREWFIX DIRECT
OXFORDSHIRE CC,SOCIAL AND COMMUNITY SERVICES,"	OXF. EMPLOYMENT SERV",RECRUTIMENT EXPENSES (EXCL. ADVERTISING),24/02/2021,7448616702,49,WWW.REED.CO.UK
OXFORDSHIRE CC,CORPORATE CORE,TRANSPORT GENERAL,VEHICLE EQUIPMENT AND EXPENSES - OTHER,24/02/2021,7448616708,15.85,AMAZON.CO.UK MM7F91OP4
OXFORDSHIRE CC,CORPORATE CORE,TRANSPORT GENERAL,CLOTHING AND UNIFORMS,24/02/2021,7448616710,19.9,AMAZON.CO.UK MM1WM6FT4
OXFORDSHIRE CC,"CHILDRENS, YOUNG PEOPLE AND FAMILIES",FSP NON-STAFFING - CENTRAL,MATERIALS,24/02/2021,7448617024,306.94,ARGOS LTD
OXFORDSHIRE CC,"CHILDRENS, YOUNG PEOPLE AND FAMILIES","	40 THE MOORS",CATERING PROVISIONS,24/02/2021,7448617026,12.25,CO-OPERATIVE FOOD
OXFORDSHIRE CC,CORPORATE CORE,,"SUPPLIES, STATIONERY AND MATERIALS",24/02/2021,7448617064,62.4,LYRECO UK LTD
OXFORDSHIRE CC,SOCIAL AND COMMUNITY SERVICES,BICESTER LIBRARY,LAUNDRY AND DRY CLEANING,24/02/2021,7448617030,20,BICESTER SHOE REPAIRS
OXFORDSHIRE CC,"CHILDRENS, YOUNG PEOPLE AND FAMILIES",EYNSHAM,DRUGS AND MEDICAL SUPPLIES,24/02/2021,7448617048,79.8,AMZNMKTPLACE
OXFORDSHIRE CC,"CHILDRENS, YOUNG PEOPLE AND FAMILIES",EYNSHAM,SERVICE CHARGES - PREMISES,24/02/2021,7448617054,6.99,TESCO SUBSCRIPTION
OXFORDSHIRE CC,CORPORATE CORE,,"SUPPLIES, STATIONERY AND MATERIALS",24/02/2021,7448617058,423.44,LYRECO UK LTD
OXFORDSHIRE CC,CORPORATE CORE,,"SUPPLIES, STATIONERY AND MATERIALS",24/02/2021,7448617060,72,LYRECO UK LTD
OXFORDSHIRE CC,"CHILDRENS, YOUNG PEOPLE AND FAMILIES","	LEAVING CARE CITY 1",MATERIALS,24/02/2021,7448616412,161.6,JD SPORTS INTERNET
OXFORDSHIRE CC,CORPORATE CORE,REGISTRAR,MATERIALS,24/02/2021,7448616420,"1,030.20",THE MENU STORE
OXFORDSHIRE CC,CORPORATE CORE,TRANSPORT GENERAL,CLOTHING AND UNIFORMS,24/02/2021,7448616716,35.99,AMAZON.CO.UK MM55B2FM4
OXFORDSHIRE CC,CORPORATE CORE,TRANSPORT GENERAL,VEHICLE EQUIPMENT AND EXPENSES - OTHER,24/02/2021,7448616712,63.9,AMAZON.CO.UK MM26U9FB4
OXFORDSHIRE CC,CORPORATE CORE,TRANSPORT GENERAL,VEHICLE EQUIPMENT AND EXPENSES - OTHER,24/02/2021,7448616718,95.85,AMAZON.CO.UK MM86F2FY4
OXFORDSHIRE CC,CORPORATE CORE,TRANSPORT GENERAL,VEHICLE EQUIPMENT AND EXPENSES - OTHER,24/02/2021,7448616720,95.85,AMAZON.CO.UK MM98K5OG4
OXFORDSHIRE CC,CORPORATE CORE,TRANSPORT GENERAL,VEHICLE EQUIPMENT AND EXPENSES - OTHER,24/02/2021,7448616722,2.99,AMZNMKTPLACE
OXFORDSHIRE CC,CORPORATE CORE,TRANSPORT GENERAL,VEHICLE EQUIPMENT AND EXPENSES - OTHER,24/02/2021,7448616726,2.99,AMZNMKTPLACE
OXFORDSHIRE CC,CORPORATE CORE,TRANSPORT GENERAL,HEALTH AND SAFETY EQUIPMENT,24/02/2021,7448616728,107.34,SCREWFIX DIRECT
OXFORDSHIRE CC,CORPORATE CORE,"	CORPORATE FINANCE",OTHER TRAINING COURSES AND QUALIFICATION,24/02/2021,7448616734,250,WWW.ACCOUNTS@IIA.ORG.U
OXFORDSHIRE CC,ENVIRONMENT AND ECONOMY,"	BRIDGES GENERAL",HARDWARE AND CROCKERY,24/02/2021,7448616740,52.97,SCREWFIX DIRECT
OXFORDSHIRE CC,CORPORATE CORE,,"SUPPLIES, STATIONERY AND MATERIALS",24/02/2021,7448617068,44.8,LYRECO UK LTD
OXFORDSHIRE CC,ENTERPRISEVC,,CAR LEASING - PRIVATE RENTALS,24/02/2021,7448617070,43.18,ENTERPRISE RENT-A-CAR
OXFORDSHIRE CC,ENTERPRISEVC,,CAR LEASING - PRIVATE RENTALS,24/02/2021,7448617076,67.82,ENTERPRISE RENT-A-CAR
OXFORDSHIRE CC,ENTERPRISEVC,,CAR LEASING - PRIVATE RENTALS,24/02/2021,7448617078,43.18,ENTERPRISE RENT-A-CAR
OXFORDSHIRE CC,CORPORATE CORE,CATERING MANAGEMENT SOFT FM,CATERING,24/02/2021,7448617082,112.31,BRAKE BROS LTD
OXFORDSHIRE CC,SOCIAL AND COMMUNITY SERVICES,CSS WITNEY,VEHICLE FUEL,24/02/2021,7448616296,2.8,TESCO PFS 3418
OXFORDSHIRE CC,"CHILDRENS, YOUNG PEOPLE AND FAMILIES",CHILDREN IN CARE NON-STAFFING - SOUTH,PAYMENT TO GOVERNMENT DEPARTMENTS,24/02/2021,7448616298,25,GEN REGISTER OFFICE
OXFORDSHIRE CC,CORPORATE CORE,"MARKETING, COMMUNICATIONS & ENGAGEMENT","PUBLICITY, PROMOTIONS AND ADVERTISEMENT",24/02/2021,7448616624,500,FACEBK 795EZZN9Z2
OXFORDSHIRE CC,SOCIAL AND COMMUNITY SERVICES,LOOKED AFTER NORTH,PAYMENT TO GOVERNMENT DEPARTMENTS,24/02/2021,7448616610,11,GEN REGISTER OFFICE
OXFORDSHIRE CC,"CHILDRENS, YOUNG PEOPLE AND FAMILIES","	RESIDENTIAL STRATEGY",HIRE OF ACCOMMODATION AND FACILITIES,24/02/2021,7448616908,165.6,SANDGATE WORCESTER LTD
OXFORDSHIRE CC,"CHILDRENS, YOUNG PEOPLE AND FAMILIES","	LOOKED AFTER SOUTH",CATERING,24/02/2021,7448616912,6.08,MCDONALDS
OXFORDSHIRE CC,"CHILDRENS, YOUNG PEOPLE AND FAMILIES","	40 THE MOORS",OTHER TRANSPORT ARRANGEMENTS,24/02/2021,7448616926,87,STAGECOACH SERVICE
OXFORDSHIRE CC,"CHILDRENS, YOUNG PEOPLE AND FAMILIES",DIDCOT MOVE-ON HOME,CATERING PROVISIONS,24/02/2021,7448616934,5.45,SAINSBURYS SACAT 2067
OXFORDSHIRE CC,"CHILDRENS, YOUNG PEOPLE AND FAMILIES",KINGFISHER,CATERING,24/02/2021,7448616626,3.75,GREGGS ACORN
OXFORDSHIRE CC,SOCIAL AND COMMUNITY SERVICES,"	LIBRARY COLLECTIONS","BOOKS, DVDS AND CDS",24/02/2021,7448616642,489.96,OVERDRIVE DIST
OXFORDSHIRE CC,SOCIAL AND COMMUNITY SERVICES,"	LIBRARY COLLECTIONS","BOOKS, DVDS AND CDS",24/02/2021,7448616644,607.11,OVERDRIVE DIST
OXFORDSHIRE CC,"CHILDRENS, YOUNG PEOPLE AND FAMILIES","	LOOKED AFTER CITY 2",CLOTHING AND UNIFORMS,24/02/2021,7448616954,13.99,AMZNMKTPLACE AMAZON.CO
OXFORDSHIRE CC,"CHILDRENS, YOUNG PEOPLE AND FAMILIES","	LEAVING CARE SOUTH",FURNITURE,24/02/2021,7448616992,292,IKEA LTD SHOP ONLINE
OXFORDSHIRE CC,"CHILDRENS, YOUNG PEOPLE AND FAMILIES","	LEAVING CARE SOUTH",MATERIALS,24/02/2021,7448616998,22.98,AMZNMKTPLACE
OXFORDSHIRE CC,"CHILDRENS, YOUNG PEOPLE AND FAMILIES","	LEAVING CARE SOUTH",MATERIALS,24/02/2021,7448616996,14.65,AMZNMKTPLACE
OXFORDSHIRE CC,"CHILDRENS, YOUNG PEOPLE AND FAMILIES","	LEAVING CARE SOUTH",MATERIALS,24/02/2021,7448617000,19.29,AMZNMKTPLACE
OXFORDSHIRE CC,"CHILDRENS, YOUNG PEOPLE AND FAMILIES",FAMILY SOLUTIONS PLUS NON-STAFF � SOUTH,PAYMENT TO GOVERNMENT DEPARTMENTS,24/02/2021,7448616354,96.57,VALE OF WHITEHORSE
OXFORDSHIRE CC,SOCIAL AND COMMUNITY SERVICES,CSS - ABINGDON,MATERIALS,24/02/2021,7448616358,66,N WRIGHT DOMESTIC
OXFORDSHIRE CC,ENVIRONMENT AND ECONOMY,"	ROW MAINT",MATERIALS,24/02/2021,7448616366,97.2,WITNEY STEEL STOCK LT
OXFORDSHIRE CC,SOCIAL AND COMMUNITY SERVICES,CSS BICESTER,MATERIALS,24/02/2021,7448616484,9.99,AMZNMKTPLACE
OXFORDSHIRE CC,SOCIAL AND COMMUNITY SERVICES,CSS BICESTER,MATERIALS,24/02/2021,7448616488,31.5,HOBBYCRAFT TRADING LIM
OXFORDSHIRE CC,SOCIAL AND COMMUNITY SERVICES,CSS BICESTER,CATERING PROVISIONS,24/02/2021,7448616492,124.32,SAINSBURYS.CO.UK
OXFORDSHIRE CC,"CHILDRENS, YOUNG PEOPLE AND FAMILIES",FAMILY SOLUTIONS PLUS NON-STAFF - NORTH,MATERIALS,24/02/2021,7448616496,63.95,ARGOS LTD
OXFORDSHIRE CC,CORPORATE CORE,"	LEGAL SERVICES",LEGAL COSTS,24/02/2021,7448616786,280,CHERWELL DC
OXFORDSHIRE CC,ENVIRONMENT AND ECONOMY,LEARNING & ACCESS,EQUIPMENT,24/02/2021,7448616796,82.45,AMAZON.CO.UK MM6TR4O44
OXFORDSHIRE CC,ENVIRONMENT AND ECONOMY,LEARNING & ACCESS,EQUIPMENT,24/02/2021,7448616800,82.45,AMAZON.CO.UK MM8TC0OE4
OXFORDSHIRE CC,ENVIRONMENT AND ECONOMY,LEARNING & ACCESS,EQUIPMENT,24/02/2021,7448616804,82.45,AMAZON.CO.UK MM9TA9OX4
OXFORDSHIRE CC,ENVIRONMENT AND ECONOMY,LEARNING & ACCESS,EQUIPMENT,24/02/2021,7448616808,119.98,AMZNMKTPLACE
OXFORDSHIRE CC,ENVIRONMENT AND ECONOMY,LEARNING & ACCESS,EQUIPMENT,24/02/2021,7448616806,59.99,AMZNMKTPLACE
OXFORDSHIRE CC,"CHILDRENS, YOUNG PEOPLE AND FAMILIES",ATV ADOPTION OXFORD,EDUCATIONAL AND VOCATIONAL TRAINING ,24/02/2021,7448616520,126,WWW.CORAM.ORG.UK
OXFORDSHIRE CC,"CHILDRENS, YOUNG PEOPLE AND FAMILIES","	LEAVING CARE NORTH",CLOTHING AND UNIFORMS,24/02/2021,7448616524,72.9,SELECT
OXFORDSHIRE CC,"CHILDRENS, YOUNG PEOPLE AND FAMILIES","	LEAVING CARE NORTH",CLOTHING AND UNIFORMS,24/02/2021,7448616528,195.79,PRETTYLITTLETHING.COM
OXFORDSHIRE CC,ENVIRONMENT AND ECONOMY,LEARNING & ACCESS,EQUIPMENT,24/02/2021,7448616812,39.98,AMZNMKTPLACE
OXFORDSHIRE CC,ENVIRONMENT AND ECONOMY,LEARNING & ACCESS,EQUIPMENT,24/02/2021,7448616814,23.75,AMZNMKTPLACE
OXFORDSHIRE CC,ENVIRONMENT AND ECONOMY,LEARNING & ACCESS,EQUIPMENT,24/02/2021,7448616816,19.99,AMZNMKTPLACE AMAZON.CO
OXFORDSHIRE CC,ENVIRONMENT AND ECONOMY,FINDS LIAISON OFFCER,EQUIPMENT,24/02/2021,7448616822,389,AMAZON.CO.UK MM8O02OH4
OXFORDSHIRE CC,SOCIAL AND COMMUNITY SERVICES,"	MUSEUMS COLLECTIONS",OTHER SERVICES,24/02/2021,7448616826,63.2,TRANSPACK LIMITED
OXFORDSHIRE CC,SOCIAL AND COMMUNITY SERVICES,CSS - OXFORD,CATERING,24/02/2021,7448616554,405.66,BOOKER LIMITED OXFORD
OXFORDSHIRE CC,"CHILDRENS, YOUNG PEOPLE AND FAMILIES",DIDCOT MOVE-ON HOME,MATERIALS,24/02/2021,7448616558,55.97,AMZNMKTPLACE AMAZON.CO
OXFORDSHIRE CC,"CHILDRENS, YOUNG PEOPLE AND FAMILIES","	LEAVING CARE CITY 2",FURNITURE,24/02/2021,7448616560,878.98,CURRYS ONLINE
OXFORDSHIRE CC,"CHILDRENS, YOUNG PEOPLE AND FAMILIES","	LEAVING CARE CITY 2",MATERIALS,24/02/2021,7448616564,-7.99,AMAZON PRIME
OXFORDSHIRE CC,"CHILDRENS, YOUNG PEOPLE AND FAMILIES","	SENSS TRAINING","SUPPLIES, STATIONERY AND MATERIALS",24/02/2021,7448616566,20,EB  VIEW PROFESSIONAL
OXFORDSHIRE CC,SOCIAL AND COMMUNITY SERVICES,RESIDENTIAL STRATEGY,CATERING PROVISIONS,24/02/2021,7448616578,4.25,CO-OPERATIVE FOOD
OXFORDSHIRE CC,ENVIRONMENT AND ECONOMY,"	FLEET OPERATIONS",CATERING,24/02/2021,7448616872,81.6,MILK AND MORE
OXFORDSHIRE CC,"CHILDRENS, YOUNG PEOPLE AND FAMILIES",STH EARLY HELP-ABNDN,FURNITURE,24/02/2021,7448616274,269.99,CURRYS ONLINE
OXFORDSHIRE CC,SOCIAL AND COMMUNITY SERVICES,CSS WITNEY,CATERING PROVISIONS,23/02/2021,7446239274,146.38,SAINSBURYS.CO.UK
OXFORDSHIRE CC,"CHILDRENS, YOUNG PEOPLE AND FAMILIES",THAME E&A HOME,MATERIALS,23/02/2021,7446238708,19.2,AMZNMKTPLACE
OXFORDSHIRE CC,"CHILDRENS, YOUNG PEOPLE AND FAMILIES","	OCCG GRANT",BIRTHDAY ALLOWANCE,23/02/2021,7446238998,7.99,WH SMITH
OXFORDSHIRE CC,SOCIAL AND COMMUNITY SERVICES,"	EMERGENCY DUTY TEAM",OTHER SERVICES,23/02/2021,7446238888,175,SP   ALDI GROCERY VOUC
OXFORDSHIRE CC,SOCIAL AND COMMUNITY SERVICES,LOOKED AFTER SOUTH,MATERIALS,23/02/2021,7446238892,474,CURRYS ONLINE
OXFORDSHIRE CC,"CHILDRENS, YOUNG PEOPLE AND FAMILIES",THAME E&A HOME,CATERING PROVISIONS,23/02/2021,7446238906,165.79,TESCO STORES 2038
OXFORDSHIRE CC,"CHILDRENS, YOUNG PEOPLE AND FAMILIES",EET SERVICE,SUBSCRIPTIONS,23/02/2021,7446238910,100,HIGHSTREETVOUCHERS
OXFORDSHIRE CC,"CHILDRENS, YOUNG PEOPLE AND FAMILIES",DIDCOT MOVE-ON HOME,CATERING PROVISIONS,23/02/2021,7446238916,42.82,SAINSBURYS 2067
OXFORDSHIRE CC,"CHILDRENS, YOUNG PEOPLE AND FAMILIES","	LAC PUPIL PREMIUM","SUPPLIES, STATIONERY AND MATERIALS",23/02/2021,7446238936,326.98,CURRYS ONLINE
OXFORDSHIRE CC,"CHILDRENS, YOUNG PEOPLE AND FAMILIES","	MUSIC UNALLOCABLE",IT SOFTWARE,23/02/2021,7446238940,35.39,ADOBE CREATIVE CLOUD
OXFORDSHIRE CC,"CHILDRENS, YOUNG PEOPLE AND FAMILIES","	40 THE MOORS",CATERING PROVISIONS,23/02/2021,7446238962,230.38,SAINSBURYS.CO.UK
OXFORDSHIRE CC,"CHILDRENS, YOUNG PEOPLE AND FAMILIES",SWINDON,TRAINING RELATED EXPENDITURE,23/02/2021,7446238960,79,CVAA UK LTD
OXFORDSHIRE CC,SOCIAL AND COMMUNITY SERVICES,"	MUSEUMS COLLECTIONS",OTHER SERVICES,23/02/2021,7446239242,59.7,WATERMARK STATIONERS L
OXFORDSHIRE CC,"CHILDRENS, YOUNG PEOPLE AND FAMILIES","	RESIDENTIAL STRATEGY",EDUCATIONAL AND VOCATIONAL TRAINING ,23/02/2021,7446239220,53.89,PROTRAININGS
OXFORDSHIRE CC,ENVIRONMENT AND ECONOMY,FINDS LIAISON OFFCER,EQUIPMENT,23/02/2021,7446239226,15.94,AMZNMKTPLACE
OXFORDSHIRE CC,ENVIRONMENT AND ECONOMY,FINDS LIAISON OFFCER,EQUIPMENT,23/02/2021,7446239230,23.75,AMZNMKTPLACE
OXFORDSHIRE CC,ENVIRONMENT AND ECONOMY,FINDS LIAISON OFFCER,EQUIPMENT,23/02/2021,7446239232,91.66,AMZNMKTPLACE
OXFORDSHIRE CC,ENVIRONMENT AND ECONOMY,FINDS LIAISON OFFCER,EQUIPMENT,23/02/2021,7446239236,32.48,AMZNMKTPLACE
OXFORDSHIRE CC,ENVIRONMENT AND ECONOMY,"	OXFORDSHIRE MUSEUM","BOOKS, DVDS AND CDS",23/02/2021,7446239238,7.05,AB  ABEBOOKS.UK ILI575
OXFORDSHIRE CC,"CHILDRENS, YOUNG PEOPLE AND FAMILIES","	LEAVING CARE SOUTH",POSTAGE AND DELIVERY,23/02/2021,7446238970,2.69,POST OFFICE COUNTER
OXFORDSHIRE CC,"CHILDRENS, YOUNG PEOPLE AND FAMILIES","	MARLBOROUGH",MATERIALS,23/02/2021,7446238972,73,WWW.FIRSTNEWS.CO.UK
OXFORDSHIRE CC,ENVIRONMENT AND ECONOMY,"	LIBRARY PROJECTS",PAYMENT TO GOVERNMENT DEPARTMENTS,23/02/2021,7446239076,-1,OCC LIBRARY SERVICES
OXFORDSHIRE CC,ENVIRONMENT AND ECONOMY,"	LIBRARY PROJECTS",PAYMENT TO GOVERNMENT DEPARTMENTS,23/02/2021,7446239078,-1,OCC LIBRARY SERVICES
OXFORDSHIRE CC,"CHILDRENS, YOUNG PEOPLE AND FAMILIES","	40 THE MOORS",CATERING,23/02/2021,7446239346,20.24,DOMINO S PIZZA
OXFORDSHIRE CC,ENVIRONMENT AND ECONOMY,"	LIBRARY PROJECTS",PAYMENT TO GOVERNMENT DEPARTMENTS,23/02/2021,7446239080,-1,OCC LIBRARY SERVICES
OXFORDSHIRE CC,ENVIRONMENT AND ECONOMY,"	LIBRARY PROJECTS",PAYMENT TO GOVERNMENT DEPARTMENTS,23/02/2021,7446239082,-1,OCC LIBRARY SERVICES
OXFORDSHIRE CC,"CHILDRENS, YOUNG PEOPLE AND FAMILIES","	LEAVING CARE NORTH",OTHER EXPENSES,23/02/2021,7446239092,265.82,AMZNMKTPLACE
OXFORDSHIRE CC,"CHILDRENS, YOUNG PEOPLE AND FAMILIES","	LEAVING CARE NORTH",CLOTHING AND UNIFORMS,23/02/2021,7446239096,82.89,BOOHOO.COM
OXFORDSHIRE CC,"CHILDRENS, YOUNG PEOPLE AND FAMILIES","	LOOKED AFTER NORTH",FURNITURE,23/02/2021,7446239100,34.99,AMZNMKTPLACE AMAZON.CO
OXFORDSHIRE CC,ENVIRONMENT AND ECONOMY,BANBURY LIBRARY,MATERIALS,23/02/2021,7446239102,7,TIMPSON LTD
OXFORDSHIRE CC,ENVIRONMENT AND ECONOMY,MAJOR INFRASTRUCTURE DELIVERY,POSTAGE AND DELIVERY,23/02/2021,7446239110,27.65,ROYAL MAIL GROUP LTD
OXFORDSHIRE CC,"CHILDRENS, YOUNG PEOPLE AND FAMILIES","	LOOKED AFTER CITY 2",OTHER EXPENSES,23/02/2021,7446239366,20.49,AMZNMKTPLACE AMAZON.CO
OXFORDSHIRE CC,"CHILDRENS, YOUNG PEOPLE AND FAMILIES","	LOOKED AFTER CITY 2",CLOTHING AND UNIFORMS,23/02/2021,7446239370,15.98,AMZNMKTPLACE AMAZON.CO
OXFORDSHIRE CC,"CHILDRENS, YOUNG PEOPLE AND FAMILIES","	LOOKED AFTER CITY 2",OTHER TRANSPORT ARRANGEMENTS,23/02/2021,7446239372,30,IZ  ROYAL CARS OXFORD
OXFORDSHIRE CC,"CHILDRENS, YOUNG PEOPLE AND FAMILIES","	LEAVING CARE SOUTH",MATERIALS,23/02/2021,7446239378,7.94,AMZNMKTPLACE
OXFORDSHIRE CC,"CHILDRENS, YOUNG PEOPLE AND FAMILIES","	LEAVING CARE SOUTH",MATERIALS,23/02/2021,7446239380,72.48,AMZNMKTPLACE
OXFORDSHIRE CC,"CHILDRENS, YOUNG PEOPLE AND FAMILIES","	LEAVING CARE SOUTH",MATERIALS,23/02/2021,7446239384,7.74,AMZNMKTPLACE
OXFORDSHIRE CC,CORPORATE CORE,ICT OPERATIONS & MAI,MATERIALS,23/02/2021,7446239388,20.11,AMZNMKTPLACE
OXFORDSHIRE CC,SOCIAL AND COMMUNITY SERVICES,CSS BICESTER,MATERIALS,23/02/2021,7446238870,5,AMZNMKTPLACE
OXFORDSHIRE CC,SOCIAL AND COMMUNITY SERVICES,CSS BICESTER,MATERIALS,23/02/2021,7446238872,3.95,AMZNMKTPLACE
OXFORDSHIRE CC,"CHILDRENS, YOUNG PEOPLE AND FAMILIES",EYNSHAM,CATERING PROVISIONS,23/02/2021,7446239396,6.5,MAYFIELDEGGS
OXFORDSHIRE CC,"CHILDRENS, YOUNG PEOPLE AND FAMILIES",CNTL EARLY HELP-BRTN,CATERING PROVISIONS,23/02/2021,7446239398,1.47,CO OPERATIVE FOOD
OXFORDSHIRE CC,"CHILDRENS, YOUNG PEOPLE AND FAMILIES",CNTL EARLY HELP-BRTN,CATERING PROVISIONS,23/02/2021,7446239400,23.76,CO OPERATIVE FOOD
OXFORDSHIRE CC,"CHILDRENS, YOUNG PEOPLE AND FAMILIES",EYNSHAM,FURNITURE,23/02/2021,7446238738,12.49,AMAZON.CO.UK MF94A2YA4
OXFORDSHIRE CC,"CHILDRENS, YOUNG PEOPLE AND FAMILIES",UASC 16&17,DAY ACTIVITIES,23/02/2021,7446238754,20,GIFFGAFF
OXFORDSHIRE CC,SOCIAL AND COMMUNITY SERVICES,CSS - ABINGDON,MATERIALS,23/02/2021,7446238744,86.88,AMAZON.CO.UK MM4N93CO4
OXFORDSHIRE CC,ENVIRONMENT AND ECONOMY,"	ROW MAINT",MATERIALS,23/02/2021,7446238748,9.7,OXON FASTENING SYSTEMS
OXFORDSHIRE CC,"CHILDRENS, YOUNG PEOPLE AND FAMILIES",THAME E&A HOME,CATERING PROVISIONS,23/02/2021,7446239008,3.7,SAINSBURYS SACAT 2096
OXFORDSHIRE CC,"CHILDRENS, YOUNG PEOPLE AND FAMILIES","	LOOKED AFTER NORTH",REGISTRATION AND INSPECTION FEES,23/02/2021,7446239004,34,DVLA DRIVER ONLINE
OXFORDSHIRE CC,ENVIRONMENT AND ECONOMY,"	LIBRARY PROJECTS",PAYMENT TO GOVERNMENT DEPARTMENTS,23/02/2021,7446239020,1,OCC LIBRARY SERVICES
OXFORDSHIRE CC,ENVIRONMENT AND ECONOMY,"	LIBRARY PROJECTS",PAYMENT TO GOVERNMENT DEPARTMENTS,23/02/2021,7446239024,1,OCC LIBRARY SERVICES
OXFORDSHIRE CC,ENVIRONMENT AND ECONOMY,"	LIBRARY PROJECTS",PAYMENT TO GOVERNMENT DEPARTMENTS,23/02/2021,7446239028,1,OCC LIBRARY SERVICES
OXFORDSHIRE CC,ENVIRONMENT AND ECONOMY,"	LIBRARY PROJECTS",PAYMENT TO GOVERNMENT DEPARTMENTS,23/02/2021,7446239032,1,OCC LIBRARY SERVICES
OXFORDSHIRE CC,ENVIRONMENT AND ECONOMY,"	LIBRARY PROJECTS",PAYMENT TO GOVERNMENT DEPARTMENTS,23/02/2021,7446239036,1,OCC LIBRARY SERVICES
OXFORDSHIRE CC,ENVIRONMENT AND ECONOMY,"	LIBRARY PROJECTS",PAYMENT TO GOVERNMENT DEPARTMENTS,23/02/2021,7446239040,1,OCC LIBRARY SERVICES
OXFORDSHIRE CC,ENVIRONMENT AND ECONOMY,"	LIBRARY PROJECTS",PAYMENT TO GOVERNMENT DEPARTMENTS,23/02/2021,7446239044,1,OCC LIBRARY SERVICES
OXFORDSHIRE CC,ENVIRONMENT AND ECONOMY,HARD FM,HARDWARE AND CROCKERY,23/02/2021,7446238758,5.99,SCREWFIX DIRECT
OXFORDSHIRE CC,ENVIRONMENT AND ECONOMY,HARD FM,HARDWARE AND CROCKERY,23/02/2021,7446238762,77.77,SYDENHAMS LTD
OXFORDSHIRE CC,ENVIRONMENT AND ECONOMY,HARD FM,HARDWARE AND CROCKERY,23/02/2021,7446238766,20.23,CITY PLUMBING
OXFORDSHIRE CC,ENVIRONMENT AND ECONOMY,HARD FM,MATERIALS,23/02/2021,7446238772,203.99,AMAZON.CO.UK MF6XO4YO4
OXFORDSHIRE CC,ENVIRONMENT AND ECONOMY,"	LIBRARY PROJECTS",PAYMENT TO GOVERNMENT DEPARTMENTS,23/02/2021,7446239046,1,OCC LIBRARY SERVICES
OXFORDSHIRE CC,ENVIRONMENT AND ECONOMY,"	LIBRARY PROJECTS",PAYMENT TO GOVERNMENT DEPARTMENTS,23/02/2021,7446239048,1,OCC LIBRARY SERVICES
OXFORDSHIRE CC,ENVIRONMENT AND ECONOMY,"	LIBRARY PROJECTS",PAYMENT TO GOVERNMENT DEPARTMENTS,23/02/2021,7446239070,-1,OCC LIBRARY SERVICES
OXFORDSHIRE CC,ENVIRONMENT AND ECONOMY,"	LIBRARY PROJECTS",PAYMENT TO GOVERNMENT DEPARTMENTS,23/02/2021,7446239050,1,OCC LIBRARY SERVICES
OXFORDSHIRE CC,ENVIRONMENT AND ECONOMY,"	LIBRARY PROJECTS",PAYMENT TO GOVERNMENT DEPARTMENTS,23/02/2021,7446239052,1,OCC LIBRARY SERVICES
OXFORDSHIRE CC,ENVIRONMENT AND ECONOMY,"	LIBRARY PROJECTS",PAYMENT TO GOVERNMENT DEPARTMENTS,23/02/2021,7446239054,1,OCC LIBRARY SERVICES
OXFORDSHIRE CC,ENVIRONMENT AND ECONOMY,"	LIBRARY PROJECTS",PAYMENT TO GOVERNMENT DEPARTMENTS,23/02/2021,7446239056,1,OCC LIBRARY SERVICES
OXFORDSHIRE CC,ENVIRONMENT AND ECONOMY,"	LIBRARY PROJECTS",PAYMENT TO GOVERNMENT DEPARTMENTS,23/02/2021,7446239060,-1,OCC LIBRARY SERVICES
OXFORDSHIRE CC,ENVIRONMENT AND ECONOMY,"	LIBRARY PROJECTS",PAYMENT TO GOVERNMENT DEPARTMENTS,23/02/2021,7446239064,-1,OCC LIBRARY SERVICES
OXFORDSHIRE CC,ENVIRONMENT AND ECONOMY,"	LIBRARY PROJECTS",PAYMENT TO GOVERNMENT DEPARTMENTS,23/02/2021,7446239068,-1,OCC LIBRARY SERVICES
OXFORDSHIRE CC,SOCIAL AND COMMUNITY SERVICES,CSS - BANBURY,CATERING PROVISIONS,23/02/2021,7446239330,89.21,TESCO STORE 2064
OXFORDSHIRE CC,"CHILDRENS, YOUNG PEOPLE AND FAMILIES","	40 THE MOORS",CATERING,23/02/2021,7446239340,17.6,JUST EAT
OXFORDSHIRE CC,"CHILDRENS, YOUNG PEOPLE AND FAMILIES","	40 THE MOORS",CATERING,23/02/2021,7446239342,26.3,JUST EAT
OXFORDSHIRE CC,"CHILDRENS, YOUNG PEOPLE AND FAMILIES","	40 THE MOORS",CATERING,23/02/2021,7446239344,26.5,JUST EAT
OXFORDSHIRE CC,ENVIRONMENT AND ECONOMY,"	LIBRARY PROJECTS",PAYMENT TO GOVERNMENT DEPARTMENTS,23/02/2021,7446239072,-1,OCC LIBRARY SERVICES
OXFORDSHIRE CC,ENVIRONMENT AND ECONOMY,"	LIBRARY PROJECTS",PAYMENT TO GOVERNMENT DEPARTMENTS,23/02/2021,7446239074,-1,OCC LIBRARY SERVICES
OXFORDSHIRE CC,"CHILDRENS, YOUNG PEOPLE AND FAMILIES","	LEAVING CARE NORTH",OTHER EXPENSES,22/02/2021,7442969522,279.99,AMZNMKTPLACE
OXFORDSHIRE CC,"CHILDRENS, YOUNG PEOPLE AND FAMILIES",UASC 16&17,CLOTHING AND UNIFORMS,22/02/2021,7442969534,3.49,AMZNMKTPLACE
OXFORDSHIRE CC,CORPORATE CORE,LIBRARY PROJECTS,PURCHASE OF IT EQUIPMENT,22/02/2021,7442969580,136.1,AMZNMKTPLACE
OXFORDSHIRE CC,CORPORATE CORE,HOLTON SITE,CATERING EQUIPMENT,22/02/2021,7442969588,19.98,AMZNMKTPLACE AMAZON.CO
OXFORDSHIRE CC,"CHILDRENS, YOUNG PEOPLE AND FAMILIES",WITNEY,CATERING PROVISIONS,22/02/2021,7442969652,68.36,SAINSBURYS SACAT 0632
OXFORDSHIRE CC,"CHILDRENS, YOUNG PEOPLE AND FAMILIES","	RESIDENTIAL STRATEGY",EDUCATIONAL AND VOCATIONAL TRAINING ,22/02/2021,7442969688,323.35,PROTRAININGS
OXFORDSHIRE CC,"CHILDRENS, YOUNG PEOPLE AND FAMILIES","	RESIDENTIAL STRATEGY",EDUCATIONAL AND VOCATIONAL TRAINING ,22/02/2021,7442969698,47.88,PROTRAININGS
OXFORDSHIRE CC,"CHILDRENS, YOUNG PEOPLE AND FAMILIES","	RIVERSIDE CENTRE",CATERING PROVISIONS,22/02/2021,7442969706,2.84,CO-OPERATIVE FOOD
OXFORDSHIRE CC,"CHILDRENS, YOUNG PEOPLE AND FAMILIES",DIDCOT MOVE-ON HOME,CATERING PROVISIONS,22/02/2021,7442969718,36.79,TESCO STORE 2413
OXFORDSHIRE CC,"CHILDRENS, YOUNG PEOPLE AND FAMILIES",DIDCOT MOVE-ON HOME,CATERING PROVISIONS,22/02/2021,7442969890,13.87,SAINSBURYS SACAT 2067
OXFORDSHIRE CC,ENVIRONMENT AND ECONOMY,"	ROW MAINT",EQUIPMENT,22/02/2021,7442969802,215,FR JONES AND SON
OXFORDSHIRE CC,"CHILDRENS, YOUNG PEOPLE AND FAMILIES",BULLINGDON PRISON,"BOOKS, DVDS AND CDS",22/02/2021,7442969926,19.99,AMAZON.CO.UK MF5CP69O4
OXFORDSHIRE CC,"CHILDRENS, YOUNG PEOPLE AND FAMILIES",UASC 16&17,OTHER TRANSPORT ARRANGEMENTS,22/02/2021,7442970036,165,KENDALL CARS
OXFORDSHIRE CC,"CHILDRENS, YOUNG PEOPLE AND FAMILIES","	LEAVING CARE NORTH",OTHER EXPENSES,22/02/2021,7442969944,392.95,ARGOS LTD
OXFORDSHIRE CC,"CHILDRENS, YOUNG PEOPLE AND FAMILIES",WITNEY,CATERING PROVISIONS,22/02/2021,7442969972,6.65,SAINSBURYS SACAT 0632
OXFORDSHIRE CC,"CHILDRENS, YOUNG PEOPLE AND FAMILIES","	40 THE MOORS",CATERING PROVISIONS,22/02/2021,7442970054,37.64,SAINSBURYS SACAT 0631
OXFORDSHIRE CC,"CHILDRENS, YOUNG PEOPLE AND FAMILIES",WITNEY,CATERING PROVISIONS,22/02/2021,7442969980,3.5,TESCO-STORES 2499
OXFORDSHIRE CC,"CHILDRENS, YOUNG PEOPLE AND FAMILIES",EYNSHAM,CATERING PROVISIONS,22/02/2021,7442969992,142.58,TESCO STORES 2008
OXFORDSHIRE CC,ENVIRONMENT AND ECONOMY,S38 INSPECT & OTHER,PRINTING,22/02/2021,7442970006,716.4,EMAP PUBLISHING LTD CA
OXFORDSHIRE CC,"CHILDRENS, YOUNG PEOPLE AND FAMILIES",FSP NON-STAFFING - CENTRAL,OTHER TRANSPORT ARRANGEMENTS,22/02/2021,7442970020,90,THE OXFORDSHIRE TAXI C
OXFORDSHIRE CC,"CHILDRENS, YOUNG PEOPLE AND FAMILIES","	LOOKED AFTER SOUTH",OTHER TRANSPORT ARRANGEMENTS,22/02/2021,7442970072,82.5,STAGECOACH SERVICE
OXFORDSHIRE CC,CORPORATE CORE,THAME LIBRARY,MATERIALS,22/02/2021,7442970118,31.98,AMZNMKTPLACE
OXFORDSHIRE CC,"CHILDRENS, YOUNG PEOPLE AND FAMILIES",EYNSHAM,"BOOKS, DVDS AND CDS",22/02/2021,7442970186,32.9,AMAZON.CO.UK MF0716RF4
OXFORDSHIRE CC,"CHILDRENS, YOUNG PEOPLE AND FAMILIES",STH EARLY HELP-ABNDN,MATERIALS,22/02/2021,7442968868,20.99,AMZNMKTPLACE
OXFORDSHIRE CC,"CHILDRENS, YOUNG PEOPLE AND FAMILIES",STH EARLY HELP-ABNDN,MATERIALS,22/02/2021,7442968880,26.99,AMZNMKTPLACE
OXFORDSHIRE CC,"CHILDRENS, YOUNG PEOPLE AND FAMILIES",THAME E&A HOME,CLOTHING AND UNIFORMS,22/02/2021,7442968886,19.81,AMZ EVAQ8 CO UK
OXFORDSHIRE CC,"CHILDRENS, YOUNG PEOPLE AND FAMILIES",THAME E&A HOME,MATERIALS,22/02/2021,7442968892,11.99,AMZNMKTPLACE
OXFORDSHIRE CC,SOCIAL AND COMMUNITY SERVICES,CSS WITNEY,MATERIALS,22/02/2021,7442968908,3.6,AMZNMKTPLACE
OXFORDSHIRE CC,"CHILDRENS, YOUNG PEOPLE AND FAMILIES",ATV ADOPTION WOODLEY,POSTAGE AND DELIVERY,22/02/2021,7442968942,1.5,ROYAL MAIL CHARGES
OXFORDSHIRE CC,SOCIAL AND COMMUNITY SERVICES,CSS BICESTER,MATERIALS,22/02/2021,7442968964,98.4,AMZNMKTPLACE
OXFORDSHIRE CC,SOCIAL AND COMMUNITY SERVICES,CSS BICESTER,MATERIALS,22/02/2021,7442968972,5.99,AMZNMKTPLACE
OXFORDSHIRE CC,"CHILDRENS, YOUNG PEOPLE AND FAMILIES",THAME E&A HOME,VEHICLE FUEL,22/02/2021,7442968982,2,THAME BP SF CONNECT
OXFORDSHIRE CC,"CHILDRENS, YOUNG PEOPLE AND FAMILIES",UASC POST 18,RESIDENTIAL ACTIVITIES,22/02/2021,7442969016,51.39,SPORTSDIRECT.COM
OXFORDSHIRE CC,"CHILDRENS, YOUNG PEOPLE AND FAMILIES",THAME E&A HOME,CATERING PROVISIONS,22/02/2021,7442968988,29.99,TESCO STORE 2668
OXFORDSHIRE CC,"CHILDRENS, YOUNG PEOPLE AND FAMILIES",UASC 16&17,TRANSPORT TO SCHOOL,22/02/2021,7442968996,12.5,WWW.THEKEY.CO.UK
OXFORDSHIRE CC,"CHILDRENS, YOUNG PEOPLE AND FAMILIES",UASC 16&17,TRANSPORT TO SCHOOL,22/02/2021,7442969002,12.5,WWW.THEKEY.CO.UK
OXFORDSHIRE CC,"CHILDRENS, YOUNG PEOPLE AND FAMILIES",UASC POST 18,RESIDENTIAL ACTIVITIES,22/02/2021,7442969024,51.99,SPORTSDIRECT.COM
OXFORDSHIRE CC,ENVIRONMENT AND ECONOMY,HARD FM,EQUIPMENT,22/02/2021,7442969038,49.98,W F SENATE
OXFORDSHIRE CC,"CHILDRENS, YOUNG PEOPLE AND FAMILIES",FSP NON-STAFFING - CENTRAL,MATERIALS,22/02/2021,7442969096,65.97,AMZNMKTPLACE AMAZON.CO
OXFORDSHIRE CC,ENVIRONMENT AND ECONOMY,HARD FM,HARDWARE AND CROCKERY,22/02/2021,7442969046,250.48,HOWDENS - OXFORD D879
OXFORDSHIRE CC,ENVIRONMENT AND ECONOMY,HARD FM,HARDWARE AND CROCKERY,22/02/2021,7442969052,295.6,OXON FASTENING SYSTEMS
OXFORDSHIRE CC,ENVIRONMENT AND ECONOMY,HARD FM,HARDWARE AND CROCKERY,22/02/2021,7442969060,50,B AND Q
OXFORDSHIRE CC,ENVIRONMENT AND ECONOMY,HARD FM,HARDWARE AND CROCKERY,22/02/2021,7442969066,32.47,B & Q 1062
OXFORDSHIRE CC,ENVIRONMENT AND ECONOMY,HARD FM,HARDWARE AND CROCKERY,22/02/2021,7442969074,20.86,SCREWFIX DIRECT
OXFORDSHIRE CC,"CHILDRENS, YOUNG PEOPLE AND FAMILIES",THAME E&A HOME,CATERING PROVISIONS,22/02/2021,7442969086,9.2,SAINSBURYS 2096
OXFORDSHIRE CC,"CHILDRENS, YOUNG PEOPLE AND FAMILIES",THAME E&A HOME,CATERING PROVISIONS,22/02/2021,7442969092,66.56,SAINSBURYS 2096
OXFORDSHIRE CC,SOCIAL AND COMMUNITY SERVICES,WITNEY MOVE ON HOME,CATERING PROVISIONS,22/02/2021,7442969124,37.73,SAINSBURYS 0632
OXFORDSHIRE CC,"CHILDRENS, YOUNG PEOPLE AND FAMILIES",FAMILY SOLUTIONS PLUS NON-STAFF - NORTH,MATERIALS,22/02/2021,7442969136,97.98,GADGETS RECYCLE LTD
OXFORDSHIRE CC,"CHILDRENS, YOUNG PEOPLE AND FAMILIES",FAMILY SOLUTIONS PLUS NON-STAFF - NORTH,CLOTHING AND UNIFORMS,22/02/2021,7442969144,183.5,ASDA GEORGE COM LEEDS
OXFORDSHIRE CC,"CHILDRENS, YOUNG PEOPLE AND FAMILIES",FAMILY SOLUTIONS PLUS NON-STAFF - NORTH,DOMESTIC SUPPLIES,22/02/2021,7442969150,32.81,SUPERDRUG STORES PLC
OXFORDSHIRE CC,"CHILDRENS, YOUNG PEOPLE AND FAMILIES",FAMILY SOLUTIONS PLUS NON-STAFF - NORTH,DRUGS AND MEDICAL SUPPLIES,22/02/2021,7442969154,-3.49,SUPERDRUG STORES PLC
OXFORDSHIRE CC,"CHILDRENS, YOUNG PEOPLE AND FAMILIES","	LEAVING CARE CITY 2",IT SERVICES,22/02/2021,7442969164,5,WWW.SECURE-PAYMENT-SER
OXFORDSHIRE CC,CORPORATE CORE,LIBRARY COLLECTIONS,"BOOKS, DVDS AND CDS",22/02/2021,7442969188,"1,356.99",BOLINDA PUBLISHING
OXFORDSHIRE CC,CORPORATE CORE,LIBRARY COLLECTIONS,"BOOKS, DVDS AND CDS",22/02/2021,7442969194,"2,444.75",BOLINDA PUBLISHING
OXFORDSHIRE CC,CORPORATE CORE,LIBRARY COLLECTIONS,"BOOKS, DVDS AND CDS",22/02/2021,7442969200,"1,146.56",BOLINDA PUBLISHING
OXFORDSHIRE CC,SOCIAL AND COMMUNITY SERVICES,CSS BICESTER,MATERIALS,22/02/2021,7442969210,10.47,AMZNMKTPLACE
OXFORDSHIRE CC,SOCIAL AND COMMUNITY SERVICES,CSS BICESTER,MATERIALS,22/02/2021,7442969214,18.76,AMZNMKTPLACE
OXFORDSHIRE CC,SOCIAL AND COMMUNITY SERVICES,CSS BICESTER,MATERIALS,22/02/2021,7442969218,-1.72,WWW.THEWORKS.CO.UK
OXFORDSHIRE CC,"CHILDRENS, YOUNG PEOPLE AND FAMILIES",FAMILY SOLUTIONS PLUS NON-STAFF - NORTH,CATERING PROVISIONS,22/02/2021,7442969228,50.29,ASDA GROCERIES ONLINE
OXFORDSHIRE CC,"CHILDRENS, YOUNG PEOPLE AND FAMILIES","	LEAVING CARE NORTH",BIRTHDAY ALLOWANCE,22/02/2021,7442969242,4.14,MOONPIG
OXFORDSHIRE CC,"CHILDRENS, YOUNG PEOPLE AND FAMILIES","	LEAVING CARE NORTH",MATERIALS,22/02/2021,7442969248,47,ARGOS LTD
OXFORDSHIRE CC,SOCIAL AND COMMUNITY SERVICES,"	EMERGENCY DUTY TEAM",TELEPHONE - EQUIPMENT,22/02/2021,7442969268,16.99,TESCO STORES 2008
OXFORDSHIRE CC,"CHILDRENS, YOUNG PEOPLE AND FAMILIES",THAME E&A HOME,CATERING PROVISIONS,22/02/2021,7442969278,74.26,TESCO STORES 2038
OXFORDSHIRE CC,"CHILDRENS, YOUNG PEOPLE AND FAMILIES","	LEAVING CARE CITY 2",FURNITURE,22/02/2021,7442969300,363.76,CARPETS 4 LESS
OXFORDSHIRE CC,"CHILDRENS, YOUNG PEOPLE AND FAMILIES","	LEAVING CARE CITY 2",EQUIPMENT,22/02/2021,7442969306,30,WWW.VOUCHEREXPRESS.CO.
OXFORDSHIRE CC,"CHILDRENS, YOUNG PEOPLE AND FAMILIES",DIDCOT MOVE-ON HOME,CATERING,22/02/2021,7442969330,17.26,SAINSBURYS 2067
OXFORDSHIRE CC,"CHILDRENS, YOUNG PEOPLE AND FAMILIES",DIDCOT MOVE-ON HOME,CATERING PROVISIONS,22/02/2021,7442969350,17.1,SAINSBURYS 2067
OXFORDSHIRE CC,"CHILDRENS, YOUNG PEOPLE AND FAMILIES","	40 THE MOORS",TELEPHONE - EQUIPMENT,22/02/2021,7442969358,30,EE TOPUP  VESTA
OXFORDSHIRE CC,"CHILDRENS, YOUNG PEOPLE AND FAMILIES","	40 THE MOORS",MATERIALS,22/02/2021,7442969366,229.99,ARGOS LTD
OXFORDSHIRE CC,"CHILDRENS, YOUNG PEOPLE AND FAMILIES","	40 THE MOORS",CLOTHING AND UNIFORMS,22/02/2021,7442969370,28.95,MATALAN.CO.UK
OXFORDSHIRE CC,CORPORATE CORE,"MARKETING, COMMUNICATIONS & ENGAGEMENT",MATERIALS,22/02/2021,7442969412,24.98,LINKEDIN 6142926253
OXFORDSHIRE CC,CORPORATE CORE,"MARKETING, COMMUNICATIONS & ENGAGEMENT",IT SOFTWARE,22/02/2021,7442969420,14.14,GETAUDIOGRAM.COM
OXFORDSHIRE CC,"CHILDRENS, YOUNG PEOPLE AND FAMILIES",THAME E&A HOME,CATERING PROVISIONS,22/02/2021,7442969430,6.5,SAINSBURYS SACAT 2096
OXFORDSHIRE CC,"CHILDRENS, YOUNG PEOPLE AND FAMILIES",NTH FAM SUPRT-BCSTR,MATERIALS,22/02/2021,7442969440,10,TESCO ONLINE
OXFORDSHIRE CC,"CHILDRENS, YOUNG PEOPLE AND FAMILIES","	OCCG GRANT",BIRTHDAY ALLOWANCE,22/02/2021,7442969456,7.7,TESCO STORES 2008
OXFORDSHIRE CC,"CHILDRENS, YOUNG PEOPLE AND FAMILIES","	OCCG GRANT",MATERIALS,22/02/2021,7442969462,8.6,POUNDLAND LTD
OXFORDSHIRE CC,"CHILDRENS, YOUNG PEOPLE AND FAMILIES",VULNERABLE LEARNERS,EDUCATIONAL AND VOCATIONAL TRAINING ,22/02/2021,7442969480,150,EARLY EXCELLENCE LTD
OXFORDSHIRE CC,"CHILDRENS, YOUNG PEOPLE AND FAMILIES",UASC 16&17,HARDWARE AND CROCKERY,22/02/2021,7442969504,8.5,SAINSBURYS SACAT 0664
OXFORDSHIRE CC,"CHILDRENS, YOUNG PEOPLE AND FAMILIES",UASC 16&17,NON-STAFF SUBSISTENCE AND EXPENSES,22/02/2021,7442969510,21.8,TESCO STORES 6882
OXFORDSHIRE CC,CORPORATE CORE,COMMUNITY TESTING GRANT,MATERIALS,19/02/2021,7438980700,35.97,AMZNMKTPLACE
OXFORDSHIRE CC,"CHILDRENS, YOUNG PEOPLE AND FAMILIES",THAME E&A HOME,CATERING PROVISIONS,19/02/2021,7438980716,18.45,MILK AND MORE
OXFORDSHIRE CC,"CHILDRENS, YOUNG PEOPLE AND FAMILIES",NRPF & HOMELESSNESS,HIRE OF ACCOMMODATION AND FACILITIES,19/02/2021,7438980720,303.5,PREMIER INN
OXFORDSHIRE CC,"CHILDRENS, YOUNG PEOPLE AND FAMILIES","	LOOKED AFTER CITY 1",MATERIALS,19/02/2021,7438980722,13.1,POUNDLAND LTD
OXFORDSHIRE CC,"CHILDRENS, YOUNG PEOPLE AND FAMILIES","	LAC PUPIL PREMIUM",OTHER EXPENSES,19/02/2021,7438980726,258.98,SPORTSDIRECT.COM
OXFORDSHIRE CC,SOCIAL AND COMMUNITY SERVICES,RESIDENTIAL STRATEGY,CATERING PROVISIONS,19/02/2021,7438980736,68.09,TESCO STORE 2788
OXFORDSHIRE CC,"CHILDRENS, YOUNG PEOPLE AND FAMILIES","	40 THE MOORS",CLOTHING AND UNIFORMS,19/02/2021,7438980740,42.09,BOOHOO.COM
OXFORDSHIRE CC,"CHILDRENS, YOUNG PEOPLE AND FAMILIES","	40 THE MOORS",MATERIALS,19/02/2021,7438980744,17.99,AMZNMKTPLACE AMAZON.CO
OXFORDSHIRE CC,"CHILDRENS, YOUNG PEOPLE AND FAMILIES","	LEADING THE EYFS Q&I",SUBSCRIPTIONS,19/02/2021,7438980782,119.2,MAGSUBCRIPTIONS COM
OXFORDSHIRE CC,"CHILDRENS, YOUNG PEOPLE AND FAMILIES",THAME E&A HOME,CATERING,19/02/2021,7438980784,4,THAME FRIED CHICKEN
OXFORDSHIRE CC,"CHILDRENS, YOUNG PEOPLE AND FAMILIES",UASC 16&17,OTHER EXPENSES,19/02/2021,7438980760,10.99,MOBILETOPUP.CO.UK 9134
OXFORDSHIRE CC,SHARED SERVICES,COVID-19 COD,PURCHASE OF IT EQUIPMENT,19/02/2021,7438980764,43.89,AMZNMKTPLACE AMAZON.CO
OXFORDSHIRE CC,ENTERPRISEVC,KNIGHTS COURT,OTHER PREMISES RELATED COSTS,19/02/2021,7438980768,9.6,BMA VARSITY LTD
OXFORDSHIRE CC,"CHILDRENS, YOUNG PEOPLE AND FAMILIES","	OCCG GRANT",CLEANING MATERIALS,19/02/2021,7438980776,7.72,SAVERS HEALTH & BEAUTY
OXFORDSHIRE CC,ENVIRONMENT AND ECONOMY,"	BUSINESS SYST STAFF",MATERIALS,19/02/2021,7438980780,19.79,AMZNMKTPLACE AMAZON.CO
OXFORDSHIRE CC,"CHILDRENS, YOUNG PEOPLE AND FAMILIES",THAME E&A HOME,CATERING,19/02/2021,7438980788,29.5,WWW.THAMEFRIEDCHICKEN.
OXFORDSHIRE CC,"CHILDRENS, YOUNG PEOPLE AND FAMILIES","	LEAVING CARE NORTH",OTHER EXPENSES,19/02/2021,7438980792,58.88,AMZNMKTPLACE AMAZON.CO
OXFORDSHIRE CC,CORPORATE CORE,TRANSPORT GENERAL,VEHICLE EQUIPMENT AND EXPENSES - OTHER,19/02/2021,7438980816,19.99,AMZNMKTPLACE
OXFORDSHIRE CC,"CHILDRENS, YOUNG PEOPLE AND FAMILIES","	FOSTER CARE RECRUIT","SUPPLIES, STATIONERY AND MATERIALS",19/02/2021,7438980838,"3,900.00",BAUER RADIO LTD
OXFORDSHIRE CC,CORPORATE CORE,HOLTON SITE,EQUIPMENT,19/02/2021,7438980820,469.9,SACKTRUCKSDIRECT CO UK
OXFORDSHIRE CC,SOCIAL AND COMMUNITY SERVICES,"	MUSEUMS COLLECTIONS",EQUIPMENT,19/02/2021,7438980824,999.99,HALL FAST
OXFORDSHIRE CC,SOCIAL AND COMMUNITY SERVICES,"	MUSEUMS COLLECTIONS",EQUIPMENT,19/02/2021,7438980828,999.99,HALL FAST
OXFORDSHIRE CC,SOCIAL AND COMMUNITY SERVICES,"	MUSEUMS COLLECTIONS",EQUIPMENT,19/02/2021,7438980832,669.76,HALL FAST
OXFORDSHIRE CC,"CHILDRENS, YOUNG PEOPLE AND FAMILIES","	40 THE MOORS",MATERIALS,19/02/2021,7438980876,15.74,AMZNMKTPLACE
OXFORDSHIRE CC,"CHILDRENS, YOUNG PEOPLE AND FAMILIES",EDT,CATERING PROVISIONS,19/02/2021,7438980854,21.79,TESCO STORE 2994
OXFORDSHIRE CC,SOCIAL AND COMMUNITY SERVICES,CSS WANTAGE,FURNITURE,19/02/2021,7438980864,602.4,WWW.FURNITUREATWORK.CO
OXFORDSHIRE CC,ENVIRONMENT AND ECONOMY,"	FLEET OPERATIONS",POSTAGE AND DELIVERY,19/02/2021,7438980868,2.06,POST OFFICE COUNTER
OXFORDSHIRE CC,"CHILDRENS, YOUNG PEOPLE AND FAMILIES","	FAMILY SUPPORT CITY3",HIRE OF ACCOMMODATION AND FACILITIES,19/02/2021,7438980870,70,PREMIER INN
OXFORDSHIRE CC,"CHILDRENS, YOUNG PEOPLE AND FAMILIES","	40 THE MOORS",MATERIALS,19/02/2021,7438980874,25.1,AMAZON.CO.UK MF5C80KU4
OXFORDSHIRE CC,"CHILDRENS, YOUNG PEOPLE AND FAMILIES","	40 THE MOORS",MATERIALS,19/02/2021,7438980880,91.72,AMAZON.CO.UK MF9HW0KR4
OXFORDSHIRE CC,CORPORATE CORE,"	CORONER","SUPPLIES, STATIONERY AND MATERIALS",19/02/2021,7438980896,45,EB  BEREAVEMENT BY SUI
OXFORDSHIRE CC,SOCIAL AND COMMUNITY SERVICES,ADMIN SUPPORT REVIEW,PURCHASE OF IT EQUIPMENT,19/02/2021,7438980898,15.99,AMZNMKTPLACE
OXFORDSHIRE CC,"CHILDRENS, YOUNG PEOPLE AND FAMILIES",DEMOCRATIC SERVICES,HIRE OF ACCOMMODATION AND FACILITIES,19/02/2021,7438980902,65,SOUTHERNWOOD B&B
OXFORDSHIRE CC,CORPORATE CORE,COMMUNITY TESTING GRANT,MATERIALS,19/02/2021,7438980912,120.12,AMAZON.CO.UK MF7FK1KW4
OXFORDSHIRE CC,CORPORATE CORE,,"SUPPLIES, STATIONERY AND MATERIALS",19/02/2021,7438980938,6.07,LYRECO UK LTD
OXFORDSHIRE CC,CORPORATE CORE,,"SUPPLIES, STATIONERY AND MATERIALS",19/02/2021,7438980942,62.4,LYRECO UK LTD
OXFORDSHIRE CC,CORPORATE CORE,,"SUPPLIES, STATIONERY AND MATERIALS",19/02/2021,7438980948,21.84,LYRECO UK LTD
OXFORDSHIRE CC,ENVIRONMENT AND ECONOMY,"	ROW MAINT",MATERIALS,19/02/2021,7438980614,868.93,WWW.FIBREGRID.COM
OXFORDSHIRE CC,ENVIRONMENT AND ECONOMY,HARD FM,MATERIALS,19/02/2021,7438980618,6.99,AMZNMKTPLACE
OXFORDSHIRE CC,SOCIAL AND COMMUNITY SERVICES,CSS BICESTER,MATERIALS,19/02/2021,7438980580,19.95,AMZNMKTPLACE
OXFORDSHIRE CC,ENVIRONMENT AND ECONOMY,ELEC NPR ST LTG,MATERIALS,19/02/2021,7438980586,7.33,AMAZON.CO.UK MF71R32Q4
OXFORDSHIRE CC,ENVIRONMENT AND ECONOMY,ELEC NPR ST LTG,MATERIALS,19/02/2021,7438980590,19.99,AMAZON.CO.UK MF2S582X4
OXFORDSHIRE CC,"CHILDRENS, YOUNG PEOPLE AND FAMILIES",STH EARLY HELP-ABNDN,MATERIALS,19/02/2021,7438980596,7.99,AMAZON.CO.UK MF3727KG4
OXFORDSHIRE CC,SOCIAL AND COMMUNITY SERVICES,CSS WITNEY,MATERIALS,19/02/2021,7438980600,5.98,AMZNMKTPLACE
OXFORDSHIRE CC,"CHILDRENS, YOUNG PEOPLE AND FAMILIES",ATV ADOPTION WOODLEY,POSTAGE AND DELIVERY,19/02/2021,7438980606,30.72,POST OFFICE COUNTER
OXFORDSHIRE CC,ENVIRONMENT AND ECONOMY,"	ROW MAINT",MATERIALS,19/02/2021,7438980612,153,PAYPAL  PLANTOIL EBAY
OXFORDSHIRE CC,ENVIRONMENT AND ECONOMY,HARD FM,HARDWARE AND CROCKERY,19/02/2021,7438980624,94.52,TOOLSTATION LTD
OXFORDSHIRE CC,"CHILDRENS, YOUNG PEOPLE AND FAMILIES",FAMILY SOLUTIONS PLUS NON-STAFF - NORTH,PAYMENTS TO TRANSPORT OPERATORS,19/02/2021,7438980662,135.9,WWW.GWR.COM
OXFORDSHIRE CC,ENVIRONMENT AND ECONOMY,HARD FM,HARDWARE AND CROCKERY,19/02/2021,7438980628,1.87,B & Q 1062
OXFORDSHIRE CC,"CHILDRENS, YOUNG PEOPLE AND FAMILIES",FAMILY SOLUTIONS PLUS NON-STAFF - NORTH,DOMESTIC SUPPLIES,19/02/2021,7438980664,17.92,BOOTS.COM
OXFORDSHIRE CC,ENVIRONMENT AND ECONOMY,HARD FM,HARDWARE AND CROCKERY,19/02/2021,7438980632,-52.12,B & Q 1062
OXFORDSHIRE CC,ENVIRONMENT AND ECONOMY,"	TVERC",PAYMENT TO GOVERNMENT DEPARTMENTS,19/02/2021,7438980642,6,LAND REGISTRY
OXFORDSHIRE CC,"CHILDRENS, YOUNG PEOPLE AND FAMILIES",FAMILY SOLUTIONS PLUS NON-STAFF - NORTH,PAYMENT TO GOVERNMENT DEPARTMENTS,19/02/2021,7438980652,22,GEN REGISTER OFFICE
OXFORDSHIRE CC,"CHILDRENS, YOUNG PEOPLE AND FAMILIES",CSC COVID-19,TELEPHONE - EQUIPMENT,19/02/2021,7438980658,10,EE TOP UP VESTA
OXFORDSHIRE CC,"CHILDRENS, YOUNG PEOPLE AND FAMILIES",FAMILY SOLUTIONS PLUS NON-STAFF - NORTH,MATERIALS,19/02/2021,7438980668,29.99,ARGOS LTD
OXFORDSHIRE CC,"CHILDRENS, YOUNG PEOPLE AND FAMILIES",FAMILY SOLUTIONS PLUS NON-STAFF - NORTH,CLOTHING AND UNIFORMS,19/02/2021,7438980670,109.8,WWW.ASOS.COM
OXFORDSHIRE CC,"CHILDRENS, YOUNG PEOPLE AND FAMILIES","	LAC PUPIL PREMIUM",OTHER EXPENSES,19/02/2021,7438980674,418.99,CURRYS ONLINE
OXFORDSHIRE CC,"CHILDRENS, YOUNG PEOPLE AND FAMILIES",SWINDON,POSTAGE AND DELIVERY,19/02/2021,7438980678,16.47,POST OFFICE COUNTER
OXFORDSHIRE CC,"CHILDRENS, YOUNG PEOPLE AND FAMILIES",SWINDON,CATERING PROVISIONS,19/02/2021,7438980682,8,CO-OPERATIVE FOOD
OXFORDSHIRE CC,SOCIAL AND COMMUNITY SERVICES,CSS BICESTER,MATERIALS,19/02/2021,7438980688,41.3,WWW.THEWORKS.CO.UK
OXFORDSHIRE CC,SOCIAL AND COMMUNITY SERVICES,KIDLINGTON LIBRARY,MATERIALS,19/02/2021,7438980692,4.99,AMAZON.CO.UK MF74Z4K54
OXFORDSHIRE CC,"CHILDRENS, YOUNG PEOPLE AND FAMILIES","	LEAVING CARE NORTH",MATERIALS,19/02/2021,7438980696,31.45,ARGOS LTD
OXFORDSHIRE CC,CORPORATE CORE,BUSINESS SUPPORT,"SUPPLIES, STATIONERY AND MATERIALS",18/02/2021,7436468708,609.92,EDENRED (INCENTIVES &
OXFORDSHIRE CC,CORPORATE CORE,RECHARGES SOC CARE,"SUPPLIES, STATIONERY AND MATERIALS",18/02/2021,7436468708,609.92,EDENRED (INCENTIVES &
OXFORDSHIRE CC,CORPORATE CORE,CEF EYECARE VOUCHERS,"SUPPLIES, STATIONERY AND MATERIALS",18/02/2021,7436468708,609.91,EDENRED (INCENTIVES &
OXFORDSHIRE CC,"CHILDRENS, YOUNG PEOPLE AND FAMILIES","	HOME SUPPORT",PAYMENTS TO VOLUNTARY BODIES,18/02/2021,7436468710,25,PAYPAL  MULBERRYBUS
OXFORDSHIRE CC,"CHILDRENS, YOUNG PEOPLE AND FAMILIES",UASC POST 18,OTHER EXPENSES,18/02/2021,7436468714,93.94,ARGOS LTD
OXFORDSHIRE CC,"CHILDRENS, YOUNG PEOPLE AND FAMILIES",UASC 16&17,OTHER EXPENSES,18/02/2021,7436468716,3.35,GREGGS
OXFORDSHIRE CC,SHARED SERVICES,COVID-19 COD,STATIONERY,18/02/2021,7436468718,39.74,AMAZON.CO.UK MF1C94SL4
OXFORDSHIRE CC,SHARED SERVICES,COVID-19 COD,STATIONERY,18/02/2021,7436468722,12.85,AMAZON.CO.UK MF6GM4SE4
OXFORDSHIRE CC,CORPORATE CORE,"MARKETING, COMMUNICATIONS & ENGAGEMENT","PUBLICITY, PROMOTIONS AND ADVERTISEMENT",18/02/2021,7436468728,499.97,FACEBK C239C379Z2
OXFORDSHIRE CC,"CHILDRENS, YOUNG PEOPLE AND FAMILIES","	OCCG GRANT",CATERING PROVISIONS,18/02/2021,7436468738,9.75,SAINSBURYS 0631
OXFORDSHIRE CC,"CHILDRENS, YOUNG PEOPLE AND FAMILIES","	OCCG GRANT",HARDWARE AND CROCKERY,18/02/2021,7436468742,72,HOMEBASE LTD 091
OXFORDSHIRE CC,"CHILDRENS, YOUNG PEOPLE AND FAMILIES","	LEAVING CARE NORTH",CLOTHING AND UNIFORMS,18/02/2021,7436468748,48.99,JD SPORTS INTERNET
OXFORDSHIRE CC,"CHILDRENS, YOUNG PEOPLE AND FAMILIES",MANAGEMENT,MATERIALS,18/02/2021,7436468760,19.98,AMZNMKTPLACE
OXFORDSHIRE CC,"CHILDRENS, YOUNG PEOPLE AND FAMILIES","	DIRECTOR'S OFFICE",MATERIALS,18/02/2021,7436468756,11.37,AMAZON.CO.UK MF6IA1SZ4
OXFORDSHIRE CC,ENVIRONMENT AND ECONOMY,"	COUNTY HALL",MATERIALS,18/02/2021,7436468770,992.4,NEWTON NEWTON FLAG & B
OXFORDSHIRE CC,ENVIRONMENT AND ECONOMY,MEMBERS' BAR,MATERIALS,18/02/2021,7436468774,240,NEWTON NEWTON FLAG & B
OXFORDSHIRE CC,CORPORATE CORE,HISTORY SERVICE,FURNITURE,18/02/2021,7436468778,70,REGATTA
OXFORDSHIRE CC,SOCIAL AND COMMUNITY SERVICES,CSS WITNEY,MATERIALS,18/02/2021,7436468784,18.99,AMZNMKTPLACE
OXFORDSHIRE CC,SOCIAL AND COMMUNITY SERVICES,CSS WANTAGE,CATERING PROVISIONS,18/02/2021,7436468788,21.98,AMZNMKTPLACE
OXFORDSHIRE CC,ENVIRONMENT AND ECONOMY,"	COUNTRYSIDE PREMISES",MATERIALS,18/02/2021,7436468796,408,M & M SKIP HIRE
OXFORDSHIRE CC,ENVIRONMENT AND ECONOMY,"	FLEET OPERATIONS",ROAD FUND LICENCES AND MOTS,18/02/2021,7436468800,32.5,DVLA VEHICLE TAX
OXFORDSHIRE CC,"CHILDRENS, YOUNG PEOPLE AND FAMILIES","	LOOKED AFTER SOUTH",CATERING,18/02/2021,7436468808,5.3,COSTA COFFEE ABINGDON
OXFORDSHIRE CC,"CHILDRENS, YOUNG PEOPLE AND FAMILIES","	LOOKED AFTER SOUTH",CATERING,18/02/2021,7436468812,8.3,COSTA COFFEE ABINGDON
OXFORDSHIRE CC,"CHILDRENS, YOUNG PEOPLE AND FAMILIES",DIDCOT MOVE-ON HOME,CATERING PROVISIONS,18/02/2021,7436468820,2.39,SAINSBURYS SACAT 2067
OXFORDSHIRE CC,ENVIRONMENT AND ECONOMY,"	KNIGHTS COURT",LICENCES,18/02/2021,7436468840,157.5,TVLICENSING.CO.UK
OXFORDSHIRE CC,"CHILDRENS, YOUNG PEOPLE AND FAMILIES","	LOOKED AFTER CITY 1",OTHER EXPENSES,18/02/2021,7436468844,8.38,SAINSBURYS 2067
OXFORDSHIRE CC,"CHILDRENS, YOUNG PEOPLE AND FAMILIES",UASC 16&17,HIRE OF ACCOMMODATION AND FACILITIES,18/02/2021,7436468848,65,SOUTHERNWOOD B&B
OXFORDSHIRE CC,"CHILDRENS, YOUNG PEOPLE AND FAMILIES","	LOOKED AFTER SOUTH",CATERING,18/02/2021,7436468852,7.19,MCDONALDS
OXFORDSHIRE CC,SOCIAL AND COMMUNITY SERVICES,CSS WANTAGE,EQUIPMENT,18/02/2021,7436468576,286.93,ARGOS LTD
OXFORDSHIRE CC,"CHILDRENS, YOUNG PEOPLE AND FAMILIES","	FAMILY SUPPORT CITY3",FURNITURE,18/02/2021,7436468584,109.65,ONLINECARPETS.COUK
OXFORDSHIRE CC,"CHILDRENS, YOUNG PEOPLE AND FAMILIES","	RESIDENTIAL STRATEGY",CATERING PROVISIONS,18/02/2021,7436468594,4,TESCO STORE 2788
OXFORDSHIRE CC,"CHILDRENS, YOUNG PEOPLE AND FAMILIES","	RESIDENTIAL STRATEGY",CATERING,18/02/2021,7436468592,5.15,ELIOR@ NUFFIELD ORTHOP
OXFORDSHIRE CC,"CHILDRENS, YOUNG PEOPLE AND FAMILIES",THAME E&A HOME,VEHICLE FUEL,18/02/2021,7436468598,10.68,THAME BP SF CONNECT
OXFORDSHIRE CC,ENVIRONMENT AND ECONOMY,HARD FM,HARDWARE AND CROCKERY,18/02/2021,7436468602,153.6,OXON FASTENING SYSTEMS
OXFORDSHIRE CC,ENVIRONMENT AND ECONOMY,HARD FM,HARDWARE AND CROCKERY,18/02/2021,7436468606,21.8,WICKES OXFORD
OXFORDSHIRE CC,SOCIAL AND COMMUNITY SERVICES,WITNEY MOVE ON HOME,CATERING PROVISIONS,18/02/2021,7436468628,3.25,CO-OP GROUP 070582
OXFORDSHIRE CC,ENVIRONMENT AND ECONOMY,HARD FM,HARDWARE AND CROCKERY,18/02/2021,7436468610,295.56,JEWSONS
OXFORDSHIRE CC,ENTERPRISEVC,BUSINESS SYST STAFF,MATERIALS,18/02/2021,7436468638,5.97,AMZNMKTPLACE
OXFORDSHIRE CC,ENVIRONMENT AND ECONOMY,HARD FM,HARDWARE AND CROCKERY,18/02/2021,7436468614,96.34,B & Q 1062
OXFORDSHIRE CC,"CHILDRENS, YOUNG PEOPLE AND FAMILIES",THAME E&A HOME,CLOTHING AND UNIFORMS,18/02/2021,7436468618,-15,MATALAN.CO.UK
OXFORDSHIRE CC,SOCIAL AND COMMUNITY SERVICES,WITNEY MOVE ON HOME,CATERING PROVISIONS,18/02/2021,7436468626,12.53,CO-OP GROUP 070582
OXFORDSHIRE CC,SOCIAL AND COMMUNITY SERVICES,"	LEARNING & ACCESS",VEHICLES REPAIRS AND MAINTENANCE,18/02/2021,7436468642,228.26,THE WITNEY MOTOR CO LT
OXFORDSHIRE CC,"CHILDRENS, YOUNG PEOPLE AND FAMILIES","	LOOKED AFTER CITY 1",PAYMENTS TO TRANSPORT OPERATORS,18/02/2021,7436468644,54.8,DRAGON TAXIS V CARS
OXFORDSHIRE CC,"CHILDRENS, YOUNG PEOPLE AND FAMILIES",STH EARLY HELP-ABNDN,CAR LEASING - PRIVATE RENTALS,18/02/2021,7436468648,99,OCK HIRE ABINGDON LIMI
OXFORDSHIRE CC,"CHILDRENS, YOUNG PEOPLE AND FAMILIES",STH EARLY HELP-ABNDN,"BOOKS, DVDS AND CDS",18/02/2021,7436468650,280,FAMILY LINKS
OXFORDSHIRE CC,"CHILDRENS, YOUNG PEOPLE AND FAMILIES",MANAGEMENT,OTHER EMPLOYEE EXPENSES,18/02/2021,7436468652,40,MARKS&SPENCER PLC
OXFORDSHIRE CC,CORPORATE CORE,COMMUNITY TESTING GRANT,MATERIALS,18/02/2021,7436468662,140.25,AMZNMKTPLACE
OXFORDSHIRE CC,CORPORATE CORE,COMMUNITY TESTING GRANT,DRUGS AND MEDICAL SUPPLIES,18/02/2021,7436468664,50.95,MEDISAVE
OXFORDSHIRE CC,SOCIAL AND COMMUNITY SERVICES,CSS WALLINGFORD,CATERING PROVISIONS,18/02/2021,7436468668,3.3,WAITROSE 675
OXFORDSHIRE CC,ENVIRONMENT AND ECONOMY,WASTE REDUCTION GEN,"PUBLICITY, PROMOTIONS AND ADVERTISEMENT",18/02/2021,7436468676,3.11,FACEBK E6BTMZW8M2
OXFORDSHIRE CC,"CHILDRENS, YOUNG PEOPLE AND FAMILIES",DIDCOT MOVE-ON HOME,CATERING PROVISIONS,18/02/2021,7436468682,26.76,SAINSBURYS 2067
OXFORDSHIRE CC,"CHILDRENS, YOUNG PEOPLE AND FAMILIES","	DISABILITIES TEAM-C",HIRE OF ACCOMMODATION AND FACILITIES,18/02/2021,7436468686,176,PREMIER INN
OXFORDSHIRE CC,"CHILDRENS, YOUNG PEOPLE AND FAMILIES",CHILDREN IN CARE NON-STAFFING - CENTRL 1,REGISTRATION AND INSPECTION FEES,18/02/2021,7436468688,11,GEN REGISTER OFFICE
OXFORDSHIRE CC,"CHILDRENS, YOUNG PEOPLE AND FAMILIES",UASC POST 18,"SUPPLIES, STATIONERY AND MATERIALS",18/02/2021,7436468692,25,NI NUMBER APP - AG LTD
OXFORDSHIRE CC,"CHILDRENS, YOUNG PEOPLE AND FAMILIES","	LEAVING CARE CITY 2",FURNITURE,18/02/2021,7436468696,138,B&Q DIRECT
OXFORDSHIRE CC,CORPORATE CORE,LIBRARY COLLECTIONS,"BOOKS, DVDS AND CDS",17/02/2021,7434083196,"10,203.13",OVERDRIVE DIST
OXFORDSHIRE CC,ENVIRONMENT AND ECONOMY,OMNICAV,"PUBLICITY, PROMOTIONS AND ADVERTISEMENT",17/02/2021,7434083200,200,GOOGLE  ADS4645539541
OXFORDSHIRE CC,"CHILDRENS, YOUNG PEOPLE AND FAMILIES",MANAGEMENT,"BOOKS, DVDS AND CDS",17/02/2021,7434083206,12.95,WWW.CORAM.ORG.UK
OXFORDSHIRE CC,SOCIAL AND COMMUNITY SERVICES,LOOKED AFTER SOUTH,POSTAGE AND DELIVERY,17/02/2021,7434083212,2.25,POST OFFICE COUNTER
OXFORDSHIRE CC,"CHILDRENS, YOUNG PEOPLE AND FAMILIES","	LOOKED AFTER CITY 1",VEHICLE FUEL,17/02/2021,7434083216,15.08,TESCO PAY AT PUMP 3968
OXFORDSHIRE CC,"CHILDRENS, YOUNG PEOPLE AND FAMILIES",CHILDREN IN CARE NON-STAFFING - CENTRL 1,OTHER TRANSPORT ARRANGEMENTS,17/02/2021,7434083218,80.65,TRAINLINE
OXFORDSHIRE CC,"CHILDRENS, YOUNG PEOPLE AND FAMILIES","	LOOKED AFTER CITY 1",OTHER TRANSPORT ARRANGEMENTS,17/02/2021,7434083218,167.68,TRAINLINE
OXFORDSHIRE CC,"CHILDRENS, YOUNG PEOPLE AND FAMILIES","	LOOKED AFTER CITY 1",OTHER TRANSPORT ARRANGEMENTS,17/02/2021,7434083224,16.86,TRAINLINE
OXFORDSHIRE CC,ENTERPRISEVC,,CAR LEASING - PRIVATE RENTALS,17/02/2021,7434083568,402.5,ENTERPRISE RENT-A-CAR
OXFORDSHIRE CC,ENTERPRISEVC,,CAR LEASING - PRIVATE RENTALS,17/02/2021,7434083572,402.5,ENTERPRISE RENT-A-CAR
OXFORDSHIRE CC,ENTERPRISEVC,,CAR LEASING - PRIVATE RENTALS,17/02/2021,7434083576,402.5,ENTERPRISE RENT-A-CAR
OXFORDSHIRE CC,ENTERPRISEVC,,CAR LEASING - PRIVATE RENTALS,17/02/2021,7434083580,402.5,ENTERPRISE RENT-A-CAR
OXFORDSHIRE CC,ENTERPRISEVC,,CAR LEASING - PRIVATE RENTALS,17/02/2021,7434083584,402.5,ENTERPRISE RENT-A-CAR
OXFORDSHIRE CC,ENTERPRISEVC,,CAR LEASING - PRIVATE RENTALS,17/02/2021,7434083588,402.5,ENTERPRISE RENT-A-CAR
OXFORDSHIRE CC,ENTERPRISEVC,,CAR LEASING - PRIVATE RENTALS,17/02/2021,7434083590,402.5,ENTERPRISE RENT-A-CAR
OXFORDSHIRE CC,"CHILDRENS, YOUNG PEOPLE AND FAMILIES",THAME E&A HOME,MATERIALS,17/02/2021,7434083230,57.49,AMZNMKTPLACE
OXFORDSHIRE CC,"CHILDRENS, YOUNG PEOPLE AND FAMILIES","	HOME SUPPORT",PAYMENTS TO VOLUNTARY BODIES,17/02/2021,7434083236,25,PAYPAL  MULBERRYBUS
OXFORDSHIRE CC,CORPORATE CORE,INCOME TEAM,PAYMENT TO GOVERNMENT DEPARTMENTS,17/02/2021,7434083240,11,OXFORDSHIRE CC MOTO1
OXFORDSHIRE CC,SOCIAL AND COMMUNITY SERVICES,RESIDENTIAL STRATEGY,CATERING PROVISIONS,17/02/2021,7434083246,22.25,TESCO STORES 4480
OXFORDSHIRE CC,"CHILDRENS, YOUNG PEOPLE AND FAMILIES","	FPT CITY",FURNITURE,17/02/2021,7434083248,44.99,AMZNMKTPLACE
OXFORDSHIRE CC,"CHILDRENS, YOUNG PEOPLE AND FAMILIES","	LEAVING CARE NORTH",STAYING PUT PAYMENT FOR YOUNG PEOPLE,17/02/2021,7434083254,259.99,ARGOS LTD
OXFORDSHIRE CC,"CHILDRENS, YOUNG PEOPLE AND FAMILIES","	LEAVING CARE NORTH",STAYING PUT PAYMENT FOR YOUNG PEOPLE,17/02/2021,7434083258,138.92,ARGOS LTD
OXFORDSHIRE CC,"CHILDRENS, YOUNG PEOPLE AND FAMILIES","	LEAVING CARE NORTH",STAYING PUT PAYMENT FOR YOUNG PEOPLE,17/02/2021,7434083262,389.98,ARGOS LTD
OXFORDSHIRE CC,ENTERPRISEVC,,CAR LEASING - PRIVATE RENTALS,17/02/2021,7434083594,290.9,ENTERPRISE RENT-A-CAR
OXFORDSHIRE CC,ENTERPRISEVC,,CAR LEASING - PRIVATE RENTALS,17/02/2021,7434083598,290.9,ENTERPRISE RENT-A-CAR
OXFORDSHIRE CC,ENTERPRISEVC,,CAR LEASING - PRIVATE RENTALS,17/02/2021,7434083616,770.56,ENTERPRISE RENT-A-CAR
OXFORDSHIRE CC,ENTERPRISEVC,,CAR LEASING - PRIVATE RENTALS,17/02/2021,7434083620,290.9,ENTERPRISE RENT-A-CAR
OXFORDSHIRE CC,ENTERPRISEVC,,CAR LEASING - PRIVATE RENTALS,17/02/2021,7434083602,290.9,ENTERPRISE RENT-A-CAR
OXFORDSHIRE CC,ENTERPRISEVC,,CAR LEASING - PRIVATE RENTALS,17/02/2021,7434083624,569.9,ENTERPRISE RENT-A-CAR
OXFORDSHIRE CC,ENTERPRISEVC,,CAR LEASING - PRIVATE RENTALS,17/02/2021,7434083606,569.9,ENTERPRISE RENT-A-CAR
OXFORDSHIRE CC,ENTERPRISEVC,,CAR LEASING - PRIVATE RENTALS,17/02/2021,7434083610,402.5,ENTERPRISE RENT-A-CAR
OXFORDSHIRE CC,ENTERPRISEVC,,CAR LEASING - PRIVATE RENTALS,17/02/2021,7434083626,402.5,ENTERPRISE RENT-A-CAR
OXFORDSHIRE CC,ENTERPRISEVC,,CAR LEASING - PRIVATE RENTALS,17/02/2021,7434083630,290.9,ENTERPRISE RENT-A-CAR
OXFORDSHIRE CC,ENVIRONMENT AND ECONOMY,"	SAMUELSON HOUSE",LICENCES,17/02/2021,7434083268,157.5,TVLICENSING.CO.UK
OXFORDSHIRE CC,"CHILDRENS, YOUNG PEOPLE AND FAMILIES",FAMILY SOLUTIONS PLUS NON-STAFF - NORTH,MATERIALS,17/02/2021,7434083272,163.93,ARGOS LTD
OXFORDSHIRE CC,ENVIRONMENT AND ECONOMY,COMM LIBRARIES CO-OR,MATERIALS,17/02/2021,7434083276,35.7,TIMPSON LTD
OXFORDSHIRE CC,ENVIRONMENT AND ECONOMY,COMM LIBRARIES CO-OR,MATERIALS,17/02/2021,7434083282,8.5,TIMPSON LTD
OXFORDSHIRE CC,"CHILDRENS, YOUNG PEOPLE AND FAMILIES","	LEAVING CARE NORTH",CATERING,17/02/2021,7434083286,4.29,MCDONALDS
OXFORDSHIRE CC,"CHILDRENS, YOUNG PEOPLE AND FAMILIES",UASC 16&17,RESIDENTIAL ACTIVITIES,17/02/2021,7434083292,28.88,AMZNMKTPLACE
OXFORDSHIRE CC,ENTERPRISEVC,,CAR LEASING - PRIVATE RENTALS,17/02/2021,7434083632,"1,025.70",ENTERPRISE RENT-A-CAR
OXFORDSHIRE CC,CORPORATE CORE,HISTORY SERVICE,FURNITURE,17/02/2021,7434083334,36,SP   JILEON WELLIES
OXFORDSHIRE CC,CORPORATE CORE,"	MEMBERS SERVICES",MATERIALS,17/02/2021,7434083316,71.45,AMAZON.CO.UK MF9Y186O4
OXFORDSHIRE CC,SOCIAL AND COMMUNITY SERVICES,CSS - OXFORD,CATERING EQUIPMENT,17/02/2021,7434083322,329.96,APPLIANCEDIRECT CO
OXFORDSHIRE CC,SOCIAL AND COMMUNITY SERVICES,CSS WITNEY,MATERIALS,17/02/2021,7434083354,9.99,AMZNMKTPLACE AMAZON.CO
OXFORDSHIRE CC,SOCIAL AND COMMUNITY SERVICES,CSS WITNEY,MATERIALS,17/02/2021,7434083366,25.99,AMZNMKTPLACE AMAZON.CO
OXFORDSHIRE CC,SOCIAL AND COMMUNITY SERVICES,CSS WITNEY,MATERIALS,17/02/2021,7434083370,29.96,AMZNMKTPLACE AMAZON.CO
OXFORDSHIRE CC,SOCIAL AND COMMUNITY SERVICES,CSS WITNEY,MATERIALS,17/02/2021,7434083372,29.99,AMAZON.CO.UK MF88J2664
OXFORDSHIRE CC,SOCIAL AND COMMUNITY SERVICES,CSS WITNEY,MATERIALS,17/02/2021,7434083374,15.99,AMZNMKTPLACE
OXFORDSHIRE CC,SOCIAL AND COMMUNITY SERVICES,CSS WITNEY,MATERIALS,17/02/2021,7434083378,12.99,AMZNMKTPLACE
OXFORDSHIRE CC,"CHILDRENS, YOUNG PEOPLE AND FAMILIES",DIDCOT MOVE-ON HOME,CATERING PROVISIONS,17/02/2021,7434083404,5.7,SAINSBURYS SACAT 2067
OXFORDSHIRE CC,"CHILDRENS, YOUNG PEOPLE AND FAMILIES","	HOME SUPPORT",MATERIALS,17/02/2021,7434083430,43.36,AMZNMKTPLACE
OXFORDSHIRE CC,CORPORATE CORE,ICT OPERATIONS & MAI,IT SOFTWARE,17/02/2021,7434083446,7.43,BITWARDEN
OXFORDSHIRE CC,CORPORATE CORE,ICT OPERATIONS & MAI,IT SOFTWARE,17/02/2021,7434083452,446.28,BITWARDEN
OXFORDSHIRE CC,"CHILDRENS, YOUNG PEOPLE AND FAMILIES",WITNEY,CATERING PROVISIONS,17/02/2021,7434083456,23.35,SAINSBURYS 0632
OXFORDSHIRE CC,"CHILDRENS, YOUNG PEOPLE AND FAMILIES",EYNSHAM,CATERING PROVISIONS,17/02/2021,7434083462,103.31,TESCO STORES 2008
OXFORDSHIRE CC,ENVIRONMENT AND ECONOMY,S38 INSPECT & OTHER,OTHER TRANSPORT ARRANGEMENTS,17/02/2021,7434083470,40.75,CITYSPRINT UK LIMITED
OXFORDSHIRE CC,"CHILDRENS, YOUNG PEOPLE AND FAMILIES",FSP NON-STAFFING - CENTRAL,HIRE OF ACCOMMODATION AND FACILITIES,17/02/2021,7434083476,315.5,PREMIER INN
OXFORDSHIRE CC,"CHILDRENS, YOUNG PEOPLE AND FAMILIES",UASC 16&17,HIRE OF ACCOMMODATION AND FACILITIES,17/02/2021,7434083482,65,SOUTHERNWOOD B&B
OXFORDSHIRE CC,ENTERPRISEVC,,CAR LEASING - PRIVATE RENTALS,17/02/2021,7434083506,402.5,ENTERPRISE RENT-A-CAR
OXFORDSHIRE CC,"CHILDRENS, YOUNG PEOPLE AND FAMILIES","	40 THE MOORS",DISABILITY AIDS AND EQUIPMENT,17/02/2021,7434083486,50,MORGAN OPTOMETRY
OXFORDSHIRE CC,"CHILDRENS, YOUNG PEOPLE AND FAMILIES",FAMILY SOLUTIONS PLUS NON-STAFF - NORTH,CATERING PROVISIONS,17/02/2021,7434083490,11.28,B&M 025 - BICESTER
OXFORDSHIRE CC,CORPORATE CORE,,"SUPPLIES, STATIONERY AND MATERIALS",17/02/2021,7434083496,108.96,LYRECO UK LTD
OXFORDSHIRE CC,CORPORATE CORE,,"SUPPLIES, STATIONERY AND MATERIALS",17/02/2021,7434083502,25.2,LYRECO UK LTD
OXFORDSHIRE CC,ENVIRONMENT AND ECONOMY,HARD FM,HARDWARE AND CROCKERY,17/02/2021,7434083150,215.09,JEWSON
OXFORDSHIRE CC,"CHILDRENS, YOUNG PEOPLE AND FAMILIES",THAME E&A HOME,MATERIALS,17/02/2021,7434083106,21.99,AMZNMKTPLACE
OXFORDSHIRE CC,ENVIRONMENT AND ECONOMY,"	ROW MAINT",CLOTHING AND UNIFORMS,17/02/2021,7434083136,49.74,ONLINE FOR EQUINE LIMI
OXFORDSHIRE CC,SOCIAL AND COMMUNITY SERVICES,CSS - ABINGDON,MATERIALS,17/02/2021,7434083140,6.98,AMZNMKTPLACE AMAZON.CO
OXFORDSHIRE CC,"CHILDRENS, YOUNG PEOPLE AND FAMILIES",THAME E&A HOME,VEHICLE FUEL,17/02/2021,7434083146,0.65,THAME BP SF CONNECT
OXFORDSHIRE CC,ENTERPRISEVC,,CAR LEASING - PRIVATE RENTALS,17/02/2021,7434083510,542,ENTERPRISE RENT-A-CAR
OXFORDSHIRE CC,ENTERPRISEVC,,CAR LEASING - PRIVATE RENTALS,17/02/2021,7434083542,290.9,ENTERPRISE RENT-A-CAR
OXFORDSHIRE CC,ENTERPRISEVC,,CAR LEASING - PRIVATE RENTALS,17/02/2021,7434083514,802.45,ENTERPRISE RENT-A-CAR
OXFORDSHIRE CC,ENTERPRISEVC,,CAR LEASING - PRIVATE RENTALS,17/02/2021,7434083518,402.5,ENTERPRISE RENT-A-CAR
OXFORDSHIRE CC,ENTERPRISEVC,,CAR LEASING - PRIVATE RENTALS,17/02/2021,7434083544,918.54,ENTERPRISE RENT-A-CAR
OXFORDSHIRE CC,ENTERPRISEVC,,CAR LEASING - PRIVATE RENTALS,17/02/2021,7434083522,290.9,ENTERPRISE RENT-A-CAR
OXFORDSHIRE CC,ENTERPRISEVC,,CAR LEASING - PRIVATE RENTALS,17/02/2021,7434083526,402.5,ENTERPRISE RENT-A-CAR
OXFORDSHIRE CC,ENTERPRISEVC,,CAR LEASING - PRIVATE RENTALS,17/02/2021,7434083528,129.84,ENTERPRISE RENT-A-CAR
OXFORDSHIRE CC,ENTERPRISEVC,,CAR LEASING - PRIVATE RENTALS,17/02/2021,7434083534,290.9,ENTERPRISE RENT-A-CAR
OXFORDSHIRE CC,ENTERPRISEVC,,CAR LEASING - PRIVATE RENTALS,17/02/2021,7434083538,290.9,ENTERPRISE RENT-A-CAR
OXFORDSHIRE CC,ENVIRONMENT AND ECONOMY,HARD FM,HARDWARE AND CROCKERY,17/02/2021,7434083156,38,B & Q 1062
OXFORDSHIRE CC,ENVIRONMENT AND ECONOMY,HARD FM,HARDWARE AND CROCKERY,17/02/2021,7434083160,114.11,B & Q 1062
OXFORDSHIRE CC,ENTERPRISEVC,,CAR LEASING - PRIVATE RENTALS,17/02/2021,7434083548,918.54,ENTERPRISE RENT-A-CAR
OXFORDSHIRE CC,ENTERPRISEVC,,CAR LEASING - PRIVATE RENTALS,17/02/2021,7434083550,"1,436.40",ENTERPRISE RENT-A-CAR
OXFORDSHIRE CC,ENTERPRISEVC,,CAR LEASING - PRIVATE RENTALS,17/02/2021,7434083554,62.65,ENTERPRISE RENT-A-CAR
OXFORDSHIRE CC,ENTERPRISEVC,,CAR LEASING - PRIVATE RENTALS,17/02/2021,7434083558,46.12,ENTERPRISE RENT-A-CAR
OXFORDSHIRE CC,ENTERPRISEVC,,CAR LEASING - PRIVATE RENTALS,17/02/2021,7434083560,46.12,ENTERPRISE RENT-A-CAR
OXFORDSHIRE CC,ENTERPRISEVC,,CAR LEASING - PRIVATE RENTALS,17/02/2021,7434083564,43.18,ENTERPRISE RENT-A-CAR
OXFORDSHIRE CC,ENVIRONMENT AND ECONOMY,HARD FM,HARDWARE AND CROCKERY,17/02/2021,7434083170,9.26,OXON FASTENING SYSTEMS
OXFORDSHIRE CC,"CHILDRENS, YOUNG PEOPLE AND FAMILIES","	LEAVING CARE NORTH",MATERIALS,17/02/2021,7434083174,144.98,AMAZON.CO.UK MF0A366F4
OXFORDSHIRE CC,"CHILDRENS, YOUNG PEOPLE AND FAMILIES","	LOOKED AFTER CITY 1",PAYMENTS TO TRANSPORT OPERATORS,17/02/2021,7434083190,158.4,THETRAINLINE.COM
OXFORDSHIRE CC,ENVIRONMENT AND ECONOMY,HARD FM,HARDWARE AND CROCKERY,16/02/2021,7432108076,85,HOMEBASE LTD
OXFORDSHIRE CC,ENVIRONMENT AND ECONOMY,HARD FM,HARDWARE AND CROCKERY,16/02/2021,7432108080,144.64,B & Q 1062
OXFORDSHIRE CC,ENVIRONMENT AND ECONOMY,HARD FM,HARDWARE AND CROCKERY,16/02/2021,7432108084,68.82,SCREWFIX DIR LTD
OXFORDSHIRE CC,"CHILDRENS, YOUNG PEOPLE AND FAMILIES",ICT INFORMATION,IT SOFTWARE,16/02/2021,7432108086,141.28,GOOGLE  CLOUD_01D722-8
OXFORDSHIRE CC,ENVIRONMENT AND ECONOMY,HARD FM,HARDWARE AND CROCKERY,16/02/2021,7432108090,19.25,WICKES OXFORD
OXFORDSHIRE CC,"CHILDRENS, YOUNG PEOPLE AND FAMILIES","	LEAVING CARE CITY 1",REGISTRATION AND INSPECTION FEES,16/02/2021,7432108100,170,HAPPY HOUSE LETTINGS L
OXFORDSHIRE CC,"CHILDRENS, YOUNG PEOPLE AND FAMILIES",DIDCOT MOVE-ON HOME,MATERIALS,16/02/2021,7432108140,159.98,AMZNMKTPLACE AMAZON.CO
OXFORDSHIRE CC,ENVIRONMENT AND ECONOMY,P&S OPERATIONAL REV,OTHER TRAINING COURSES AND QUALIFICATION,16/02/2021,7432108118,144,EVENT  7HNQWF3QLT4
OXFORDSHIRE CC,SOCIAL AND COMMUNITY SERVICES,LOOKED AFTER SOUTH,MATERIALS,16/02/2021,7432108122,289.98,ARGOS LTD
OXFORDSHIRE CC,SOCIAL AND COMMUNITY SERVICES,CSS BICESTER,CATERING PROVISIONS,16/02/2021,7432108126,41.38,SAINSBURYS (2243)
OXFORDSHIRE CC,"CHILDRENS, YOUNG PEOPLE AND FAMILIES",THAME E&A HOME,CATERING PROVISIONS,16/02/2021,7432108130,153.46,TESCO STORES 2038
OXFORDSHIRE CC,ENVIRONMENT AND ECONOMY,WASTE REDUCTION GEN,OTHER TRAINING COURSES AND QUALIFICATION,16/02/2021,7432108134,90,HAYMARKET MEDIA GROUP
OXFORDSHIRE CC,"CHILDRENS, YOUNG PEOPLE AND FAMILIES","	HOME SUPPORT",MATERIALS,16/02/2021,7432108156,18.25,AMZNMKTPLACE
OXFORDSHIRE CC,ENTERPRISEVC,KNIGHTS COURT,GENERAL REFUSE COLLECTION AND DISPOSAL,16/02/2021,7432108172,14.98,AMZNMKTPLACE AMAZON.CO
OXFORDSHIRE CC,ENTERPRISEVC,KNIGHTS COURT,CATERING PROVISIONS,16/02/2021,7432108176,3,CO-OPERATIVE FOOD
OXFORDSHIRE CC,CORPORATE CORE,"MARKETING, COMMUNICATIONS & ENGAGEMENT","PUBLICITY, PROMOTIONS AND ADVERTISEMENT",16/02/2021,7432108180,500,GOOGLE  ADS4896546035
OXFORDSHIRE CC,CORPORATE CORE,"MARKETING, COMMUNICATIONS & ENGAGEMENT","PUBLICITY, PROMOTIONS AND ADVERTISEMENT",16/02/2021,7432108184,24,SNAP SNAP ADS
OXFORDSHIRE CC,"CHILDRENS, YOUNG PEOPLE AND FAMILIES","	OCCG GRANT",CATERING PROVISIONS,16/02/2021,7432108188,31.92,TESCO STORE 2994
OXFORDSHIRE CC,"CHILDRENS, YOUNG PEOPLE AND FAMILIES","	LOOKED AFTER NORTH",REGISTRATION AND INSPECTION FEES,16/02/2021,7432108190,34,DVLA DRIVER ONLINE
OXFORDSHIRE CC,"CHILDRENS, YOUNG PEOPLE AND FAMILIES",FAMILY SOLUTIONS PLUS NON-STAFF - NORTH,MATERIALS,16/02/2021,7432108192,40,ARGOS LTD
OXFORDSHIRE CC,SOCIAL AND COMMUNITY SERVICES,CSS - OXFORD,CATERING EQUIPMENT,16/02/2021,7432108222,"1,012.25",WWW.NISBETS.COM
OXFORDSHIRE CC,CORPORATE CORE,SKILLS & LEARNING,OTHER TRAINING COURSES AND QUALIFICATION,16/02/2021,7432108226,189,SIRCULALTD D&I LEADERS
OXFORDSHIRE CC,SOCIAL AND COMMUNITY SERVICES,LEAVING CARE NORTH,CLOTHING AND UNIFORMS,16/02/2021,7432108232,44.39,PRETTYLITTLETHING.COM
OXFORDSHIRE CC,SOCIAL AND COMMUNITY SERVICES,CSS WITNEY,CATERING PROVISIONS,16/02/2021,7432108260,104.12,SAINSBURYS.CO.UK
OXFORDSHIRE CC,ENVIRONMENT AND ECONOMY,"	ROW MAINT",EQUIPMENT,16/02/2021,7432108266,64.5,WANTAGE MOTORIST CENTR
OXFORDSHIRE CC,"CHILDRENS, YOUNG PEOPLE AND FAMILIES","	FAMILY SUPPORT CITY3",FURNITURE,16/02/2021,7432108286,38.94,ASDA GEORGE COM LEEDS
OXFORDSHIRE CC,"CHILDRENS, YOUNG PEOPLE AND FAMILIES","	40 THE MOORS",MATERIALS,16/02/2021,7432108294,7.99,AMAZON PRIME MF22848P4
OXFORDSHIRE CC,"CHILDRENS, YOUNG PEOPLE AND FAMILIES","	40 THE MOORS",CATERING,16/02/2021,7432108296,24.4,JUST EAT
OXFORDSHIRE CC,"CHILDRENS, YOUNG PEOPLE AND FAMILIES","	40 THE MOORS",CATERING,16/02/2021,7432108300,30.23,DOMINO S PIZZA
OXFORDSHIRE CC,"CHILDRENS, YOUNG PEOPLE AND FAMILIES",DIDCOT MOVE-ON HOME,DOMESTIC SUPPLIES,16/02/2021,7432108320,6.5,SAINSBURYS SACAT 2067
OXFORDSHIRE CC,"CHILDRENS, YOUNG PEOPLE AND FAMILIES",DIDCOT MOVE-ON HOME,CATERING PROVISIONS,16/02/2021,7432108324,23.39,SAINSBURYS SACAT 2067
OXFORDSHIRE CC,"CHILDRENS, YOUNG PEOPLE AND FAMILIES",DIDCOT MOVE-ON HOME,CATERING PROVISIONS,16/02/2021,7432108326,6.85,SAINSBURYS SACAT 2067
OXFORDSHIRE CC,SOCIAL AND COMMUNITY SERVICES,ADULTS AT RISK CHERW,HIRE OF ACCOMMODATION AND FACILITIES,16/02/2021,7432108356,-137,LISMORE & ROTHWELL
OXFORDSHIRE CC,SOCIAL AND COMMUNITY SERVICES,ADULTS AT RISK CHERW,HIRE OF ACCOMMODATION AND FACILITIES,16/02/2021,7432108342,444,LISMORE & ROTHWELL
OXFORDSHIRE CC,SOCIAL AND COMMUNITY SERVICES,ADULTS AT RISK CHERW,HIRE OF ACCOMMODATION AND FACILITIES,16/02/2021,7432108346,37,LISMORE & ROTHWELL
OXFORDSHIRE CC,SOCIAL AND COMMUNITY SERVICES,ADULTS AT RISK CHERW,HIRE OF ACCOMMODATION AND FACILITIES,16/02/2021,7432108348,100,LISMORE & ROTHWELL
OXFORDSHIRE CC,SOCIAL AND COMMUNITY SERVICES,ADULTS AT RISK CHERW,HIRE OF ACCOMMODATION AND FACILITIES,16/02/2021,7432108352,-74,LISMORE & ROTHWELL
OXFORDSHIRE CC,"CHILDRENS, YOUNG PEOPLE AND FAMILIES",EYNSHAM,CATERING PROVISIONS,16/02/2021,7432108362,6.5,MAYFIELDEGGS
OXFORDSHIRE CC,"CHILDRENS, YOUNG PEOPLE AND FAMILIES","	40 THE MOORS",CATERING PROVISIONS,16/02/2021,7432108372,61.66,SAINSBURYS SACAT 0631
OXFORDSHIRE CC,"CHILDRENS, YOUNG PEOPLE AND FAMILIES",MEMBERS ALLOWANCES,CATERING PROVISIONS,16/02/2021,7432108378,1.56,CO OPERATIVE FOOD
OXFORDSHIRE CC,"CHILDRENS, YOUNG PEOPLE AND FAMILIES",CNTL ERLY HELP-BBLEY,CATERING PROVISIONS,16/02/2021,7432108380,1.09,TESCO STORE 2990
OXFORDSHIRE CC,ENTERPRISEVC,,CAR LEASING - PRIVATE RENTALS,16/02/2021,7432108420,565.75,ENTERPRISE RENT-A-CAR
OXFORDSHIRE CC,"CHILDRENS, YOUNG PEOPLE AND FAMILIES",EYNSHAM,DRUGS AND MEDICAL SUPPLIES,16/02/2021,7432108400,8.7,AMAZON.CO.UK MF1WB0QS4
OXFORDSHIRE CC,"CHILDRENS, YOUNG PEOPLE AND FAMILIES",EYNSHAM,EQUIPMENT MAINTENANCE CONTRACTS,16/02/2021,7432108404,9.99,NETFLIX.COM
OXFORDSHIRE CC,CORPORATE CORE,,"SUPPLIES, STATIONERY AND MATERIALS",16/02/2021,7432108408,2.77,LYRECO UK LTD
OXFORDSHIRE CC,CORPORATE CORE,,"SUPPLIES, STATIONERY AND MATERIALS",16/02/2021,7432108412,35.89,LYRECO UK LTD
OXFORDSHIRE CC,"CHILDRENS, YOUNG PEOPLE AND FAMILIES","	FAMILY SUPPORT CITY3",MATERIALS,16/02/2021,7432108060,9.99,AMZNMKTPLACE AMAZON.CO
OXFORDSHIRE CC,SOCIAL AND COMMUNITY SERVICES,CSS - BANBURY,CATERING PROVISIONS,16/02/2021,7432108042,11.16,TESCO STORE 2064
OXFORDSHIRE CC,SOCIAL AND COMMUNITY SERVICES,CSS WITNEY,CATERING PROVISIONS,16/02/2021,7432108046,19.12,SAINSBURYS 0632
OXFORDSHIRE CC,"CHILDRENS, YOUNG PEOPLE AND FAMILIES","	RESIDENTIAL STRATEGY",CATERING PROVISIONS,16/02/2021,7432108072,3,TESCO STORE 2788
OXFORDSHIRE CC,"CHILDRENS, YOUNG PEOPLE AND FAMILIES","	FAMILY SUPPORT CITY3",HIRE OF ACCOMMODATION AND FACILITIES,15/02/2021,7429123654,175,PREMIER INN
OXFORDSHIRE CC,"CHILDRENS, YOUNG PEOPLE AND FAMILIES","	40 THE MOORS",TELEPHONE - EQUIPMENT,15/02/2021,7429123704,35,THREE
OXFORDSHIRE CC,SOCIAL AND COMMUNITY SERVICES,CSS - BANBURY,POSTAGE AND DELIVERY,15/02/2021,7429122142,36.24,POST OFFICE COUNTER
OXFORDSHIRE CC,SOCIAL AND COMMUNITY SERVICES,CSS BICESTER,MATERIALS,15/02/2021,7429122164,18.33,AMZNMKTPLACE
OXFORDSHIRE CC,"CHILDRENS, YOUNG PEOPLE AND FAMILIES","	FAMILY SUPPORT CITY3",MATERIALS,15/02/2021,7429122182,23.99,AMAZON.CO.UK MF76Y2HI4
OXFORDSHIRE CC,"CHILDRENS, YOUNG PEOPLE AND FAMILIES","	RESIDENTIAL STRATEGY",CATERING PROVISIONS,15/02/2021,7429122232,6.87,TESCO STORE 2788
OXFORDSHIRE CC,"CHILDRENS, YOUNG PEOPLE AND FAMILIES",DIDCOT MOVE-ON HOME,CATERING PROVISIONS,15/02/2021,7429123756,8.95,SAINSBURYS SACAT 2067
OXFORDSHIRE CC,"CHILDRENS, YOUNG PEOPLE AND FAMILIES",DIDCOT MOVE-ON HOME,DOMESTIC AND CLEANING EQUIPMENT,15/02/2021,7429123762,2.5,SAINSBURYS SACAT 2067
OXFORDSHIRE CC,"CHILDRENS, YOUNG PEOPLE AND FAMILIES","	LEAVING CARE SOUTH",MATERIALS,15/02/2021,7429123866,229,CURRYS ONLINE
OXFORDSHIRE CC,ENVIRONMENT AND ECONOMY,HARD FM,FURNITURE,15/02/2021,7429122278,132.78,WWW.VENESTA.CO.UK
OXFORDSHIRE CC,ENVIRONMENT AND ECONOMY,HARD FM,HARDWARE AND CROCKERY,15/02/2021,7429122286,103.61,B & Q 1062
OXFORDSHIRE CC,ENVIRONMENT AND ECONOMY,HARD FM,HARDWARE AND CROCKERY,15/02/2021,7429122296,936.47,CITY PLUMBING
OXFORDSHIRE CC,ENVIRONMENT AND ECONOMY,HARD FM,HARDWARE AND CROCKERY,15/02/2021,7429122316,999.85,CITY PLUMBING
OXFORDSHIRE CC,ENVIRONMENT AND ECONOMY,HARD FM,HARDWARE AND CROCKERY,15/02/2021,7429122324,588.54,CITY PLUMBING
OXFORDSHIRE CC,"CHILDRENS, YOUNG PEOPLE AND FAMILIES","	LEAVING CARE SOUTH",MATERIALS,15/02/2021,7429123872,-219,CURRYS ONLINE
OXFORDSHIRE CC,CORPORATE CORE,ICT OPERATIONS & MAI,EQUIPMENT,15/02/2021,7429123882,112.68,GLOBE PACKAGING - PACK
OXFORDSHIRE CC,CORPORATE CORE,ICT OPERATIONS & MAI,IT SERVICES,15/02/2021,7429123890,18.69,GITHUB
OXFORDSHIRE CC,CORPORATE CORE,ICT OPERATIONS & MAI,MATERIALS,15/02/2021,7429123894,22.2,AMZNMKTPLACE
OXFORDSHIRE CC,"CHILDRENS, YOUNG PEOPLE AND FAMILIES",EYNSHAM,CATERING PROVISIONS,15/02/2021,7429123924,89.66,TESCO STORES 2008
OXFORDSHIRE CC,"CHILDRENS, YOUNG PEOPLE AND FAMILIES",EYNSHAM,MATERIALS,15/02/2021,7429123940,46.96,AMAZON.CO.UK MF5Q195G4
OXFORDSHIRE CC,"CHILDRENS, YOUNG PEOPLE AND FAMILIES",THAME E&A HOME,MATERIALS,15/02/2021,7429122378,16.98,AMZNMKTPLACE AMAZON.CO
OXFORDSHIRE CC,"CHILDRENS, YOUNG PEOPLE AND FAMILIES",THAME E&A HOME,MATERIALS,15/02/2021,7429122384,10.79,AMZNMKTPLACE
OXFORDSHIRE CC,SOCIAL AND COMMUNITY SERVICES,UASC 16&17,MATERIALS,15/02/2021,7429122390,58.75,AMZNMKTPLACE AMAZON.CO
OXFORDSHIRE CC,"CHILDRENS, YOUNG PEOPLE AND FAMILIES",FAMILY SOLUTIONS PLUS NON-STAFF - NORTH,MATERIALS,15/02/2021,7429122414,25.99,ARGOS LTD
OXFORDSHIRE CC,"CHILDRENS, YOUNG PEOPLE AND FAMILIES",WITNEY,CATERING PROVISIONS,15/02/2021,7429122450,23.03,SAINSBURYS SACAT 0632
OXFORDSHIRE CC,"CHILDRENS, YOUNG PEOPLE AND FAMILIES",THAME E&A HOME,MATERIALS,15/02/2021,7429123050,-20,AMZ DAMDOS-UK
OXFORDSHIRE CC,ENVIRONMENT AND ECONOMY,"	MOUNT HOUSE",CATERING PROVISIONS,15/02/2021,7429123058,1.09,SAINSBURYS SACAT 0600
OXFORDSHIRE CC,"CHILDRENS, YOUNG PEOPLE AND FAMILIES",UASC 16&17,FURNITURE,15/02/2021,7429123066,18,WILKO.COM
OXFORDSHIRE CC,"CHILDRENS, YOUNG PEOPLE AND FAMILIES",UASC 16&17,FURNITURE,15/02/2021,7429123072,26.35,DUNELM
OXFORDSHIRE CC,"CHILDRENS, YOUNG PEOPLE AND FAMILIES",DIDCOT MOVE-ON HOME,CATERING PROVISIONS,15/02/2021,7429123216,56.75,SAINSBURYS 2067
OXFORDSHIRE CC,"CHILDRENS, YOUNG PEOPLE AND FAMILIES","	OCCG GRANT",FURNITURE,15/02/2021,7429123232,18.98,AMZNMKTPLACE
OXFORDSHIRE CC,"CHILDRENS, YOUNG PEOPLE AND FAMILIES","	OCCG GRANT",FURNITURE,15/02/2021,7429123242,16.99,AMZNMKTPLACE
OXFORDSHIRE CC,"CHILDRENS, YOUNG PEOPLE AND FAMILIES","	RESIDENTIAL STRATEGY",MATERIALS,15/02/2021,7429123254,10.5,AMZNMKTPLACE AMAZON.CO
OXFORDSHIRE CC,"CHILDRENS, YOUNG PEOPLE AND FAMILIES","	RESIDENTIAL STRATEGY",OTHER COMMUNICATIONS,15/02/2021,7429123262,5.99,NETFLIX.COM
OXFORDSHIRE CC,SOCIAL AND COMMUNITY SERVICES,CSS WITNEY,MATERIALS,15/02/2021,7429123486,9.32,AMZNMKTPLACE
OXFORDSHIRE CC,SOCIAL AND COMMUNITY SERVICES,CSS WITNEY,MATERIALS,15/02/2021,7429123500,20.97,AMZNMKTPLACE
OXFORDSHIRE CC,SOCIAL AND COMMUNITY SERVICES,CSS WITNEY,MATERIALS,15/02/2021,7429123506,35.96,AMZNMKTPLACE
OXFORDSHIRE CC,SOCIAL AND COMMUNITY SERVICES,CSS WITNEY,MATERIALS,15/02/2021,7429123516,15.98,AMZNMKTPLACE
OXFORDSHIRE CC,SOCIAL AND COMMUNITY SERVICES,CSS WITNEY,MATERIALS,15/02/2021,7429123524,14.99,AMZNMKTPLACE AMAZON.CO
OXFORDSHIRE CC,"CHILDRENS, YOUNG PEOPLE AND FAMILIES",SI EQUIPMENT,DISABILITY AIDS AND EQUIPMENT,15/02/2021,7429123534,38.89,AMZNMKTPLACE AMAZON.CO
OXFORDSHIRE CC,"CHILDRENS, YOUNG PEOPLE AND FAMILIES",FAMILY SOLUTIONS PLUS NON-STAFF - NORTH,PAYMENT TO GOVERNMENT DEPARTMENTS,15/02/2021,7429122132,22,GEN REGISTER OFFICE
OXFORDSHIRE CC,"CHILDRENS, YOUNG PEOPLE AND FAMILIES","	FAMILY SUPPORT CITY3",FURNITURE,15/02/2021,7429123636,33.98,AMZNMKTPLACE
OXFORDSHIRE CC,"CHILDRENS, YOUNG PEOPLE AND FAMILIES","	FAMILY SUPPORT CITY3",FURNITURE,15/02/2021,7429123648,212.6,AMZNMKTPLACE
OXFORDSHIRE CC,"CHILDRENS, YOUNG PEOPLE AND FAMILIES",MANAGEMENT RECHARGES,MATERIALS,15/02/2021,7429122500,51.18,AMZNMKTPLACE
OXFORDSHIRE CC,"CHILDRENS, YOUNG PEOPLE AND FAMILIES",SWINDON,MATERIALS,15/02/2021,7429122510,10.8,AMZNMKTPLACE
OXFORDSHIRE CC,"CHILDRENS, YOUNG PEOPLE AND FAMILIES",FAMILY SOLUTIONS PLUS NON-STAFF - NORTH,TELEPHONE - EQUIPMENT,15/02/2021,7429122522,10,GIFFGAFF
OXFORDSHIRE CC,"CHILDRENS, YOUNG PEOPLE AND FAMILIES",FAMILY SOLUTIONS PLUS NON-STAFF - NORTH,CATERING PROVISIONS,15/02/2021,7429122540,47.59,ASDA GROCERIES ONLINE
OXFORDSHIRE CC,SOCIAL AND COMMUNITY SERVICES,CSS - OXFORD,CATERING,15/02/2021,7429122554,187.02,BOOKER LIMITED OXFORD
OXFORDSHIRE CC,CORPORATE CORE,CENTRAL BUYING TEAM,MATERIALS,15/02/2021,7429122618,34.2,AMZNMKTPLACE
OXFORDSHIRE CC,"CHILDRENS, YOUNG PEOPLE AND FAMILIES",THAME E&A HOME,CATERING PROVISIONS,15/02/2021,7429122634,70.52,TESCO STORES 2038
OXFORDSHIRE CC,"CHILDRENS, YOUNG PEOPLE AND FAMILIES",THAME E&A HOME,CATERING PROVISIONS,15/02/2021,7429122640,7.5,TESCO STORES 4480
OXFORDSHIRE CC,"CHILDRENS, YOUNG PEOPLE AND FAMILIES",THAME E&A HOME,MATERIALS,15/02/2021,7429122722,23.98,SPORTSDIRECT.COM
OXFORDSHIRE CC,SOCIAL AND COMMUNITY SERVICES,RESIDENTIAL STRATEGY,RESIDENTIAL ACTIVITIES,15/02/2021,7429122800,50,TESCO STORE 2788
OXFORDSHIRE CC,SOCIAL AND COMMUNITY SERVICES,RESIDENTIAL STRATEGY,MATERIALS,15/02/2021,7429122808,14.98,THE FACE PAINTING SHOP
OXFORDSHIRE CC,"CHILDRENS, YOUNG PEOPLE AND FAMILIES","	40 THE MOORS",CATERING PROVISIONS,15/02/2021,7429122832,83.48,SAINSBURYS.CO.UK
OXFORDSHIRE CC,CORPORATE CORE,"MARKETING, COMMUNICATIONS & ENGAGEMENT","PUBLICITY, PROMOTIONS AND ADVERTISEMENT",15/02/2021,7429122948,24,SNAP SNAP ADS
OXFORDSHIRE CC,CORPORATE CORE,"MARKETING, COMMUNICATIONS & ENGAGEMENT","PUBLICITY, PROMOTIONS AND ADVERTISEMENT",15/02/2021,7429122926,500,FACEBK VZAT4ZJ9Z2
OXFORDSHIRE CC,CORPORATE CORE,"MARKETING, COMMUNICATIONS & ENGAGEMENT",PHOTOCOPYING,15/02/2021,7429122932,29,STK SHUTTERSTOCK
OXFORDSHIRE CC,CORPORATE CORE,"MARKETING, COMMUNICATIONS & ENGAGEMENT","PUBLICITY, PROMOTIONS AND ADVERTISEMENT",15/02/2021,7429122942,24,SNAP SNAP ADS
OXFORDSHIRE CC,CORPORATE CORE,"MARKETING, COMMUNICATIONS & ENGAGEMENT",IT SOFTWARE,15/02/2021,7429122954,106.8,2CO.COM AWARIO.COM 144
OXFORDSHIRE CC,CORPORATE CORE,"MARKETING, COMMUNICATIONS & ENGAGEMENT","PUBLICITY, PROMOTIONS AND ADVERTISEMENT",15/02/2021,7429122958,24,SNAP SNAP ADS
OXFORDSHIRE CC,"CHILDRENS, YOUNG PEOPLE AND FAMILIES",UASC POST 18,PAYMENTS TO TRANSPORT OPERATORS,15/02/2021,7429123016,32.96,THETRAINLINE.COM
OXFORDSHIRE CC,"CHILDRENS, YOUNG PEOPLE AND FAMILIES","	OCCG GRANT",CATERING PROVISIONS,15/02/2021,7429122976,8.16,HEADINGTON BUTCHERS AN
OXFORDSHIRE CC,"CHILDRENS, YOUNG PEOPLE AND FAMILIES","	OCCG GRANT",CATERING PROVISIONS,15/02/2021,7429122982,31.75,SAINSBURYS SACAT 0600
OXFORDSHIRE CC,"CHILDRENS, YOUNG PEOPLE AND FAMILIES","	LAC PUPIL PREMIUM",PURCHASE OF IT EQUIPMENT,15/02/2021,7429123028,24.99,ARGOS LTD
OXFORDSHIRE CC,"CHILDRENS, YOUNG PEOPLE AND FAMILIES","	LEAVING CARE NORTH",OTHER EXPENSES,15/02/2021,7429123036,252.18,ALLPAY  STONEWATER LIM
OXFORDSHIRE CC,SOCIAL AND COMMUNITY SERVICES,"	MUSEUMS COLLECTIONS",OTHER SERVICES,12/02/2021,9420132863,90.65,AMZNMKTPLACE
OXFORDSHIRE CC,SOCIAL AND COMMUNITY SERVICES,"	MUSEUMS COLLECTIONS",OTHER SERVICES,12/02/2021,9420132865,76.99,AMZNMKTPLACE
OXFORDSHIRE CC,SOCIAL AND COMMUNITY SERVICES,"	MUSEUMS COLLECTIONS",MATERIALS,12/02/2021,9420132867,110.98,AMZNMKTPLACE
OXFORDSHIRE CC,"CHILDRENS, YOUNG PEOPLE AND FAMILIES",DIDCOT MOVE-ON HOME,CATERING,12/02/2021,9420132743,25.28,SAINSBURYS 2067
OXFORDSHIRE CC,CORPORATE CORE,INCOME TEAM,PAYMENT TO GOVERNMENT DEPARTMENTS,12/02/2021,9420132747,11,OXFORDSHIRE CC MOTO1
OXFORDSHIRE CC,CORPORATE CORE,INCOME TEAM,PAYMENT TO GOVERNMENT DEPARTMENTS,12/02/2021,9420132749,1.5,WWW.GOV.UK
OXFORDSHIRE CC,SOCIAL AND COMMUNITY SERVICES,COMMENTS&INFORMATION,POSTAGE AND DELIVERY,12/02/2021,9420132751,6.85,POST OFFICE COUNTER
OXFORDSHIRE CC,ENVIRONMENT AND ECONOMY,"	KNIGHTS COURT",CATERING PROVISIONS,12/02/2021,9420132771,1.49,COWLEY CONVENIENCE STO
OXFORDSHIRE CC,CORPORATE CORE,"MARKETING, COMMUNICATIONS & ENGAGEMENT","PUBLICITY, PROMOTIONS AND ADVERTISEMENT",12/02/2021,9420132787,24,SNAP SNAP ADS
OXFORDSHIRE CC,CORPORATE CORE,"MARKETING, COMMUNICATIONS & ENGAGEMENT","PUBLICITY, PROMOTIONS AND ADVERTISEMENT",12/02/2021,9420132785,24,SNAP SNAP ADS
OXFORDSHIRE CC,"CHILDRENS, YOUNG PEOPLE AND FAMILIES","	LEADING THE EYFS Q&I",EDUCATIONAL AND VOCATIONAL TRAINING ,12/02/2021,9420132795,150,EARLY EXCELLENCE LTD
OXFORDSHIRE CC,"CHILDRENS, YOUNG PEOPLE AND FAMILIES",UASC 16&17,RESIDENTIAL ACTIVITIES,12/02/2021,9420132807,13.98,NORTH WEST FLAGS
OXFORDSHIRE CC,"CHILDRENS, YOUNG PEOPLE AND FAMILIES",UASC 16&17,RESIDENTIAL ACTIVITIES,12/02/2021,9420132809,-29.99,FOOTASYLUM PLC
OXFORDSHIRE CC,"CHILDRENS, YOUNG PEOPLE AND FAMILIES","	OCCG GRANT",OTHER TRANSPORT ARRANGEMENTS,12/02/2021,9420132801,2.2,CHERWELL
OXFORDSHIRE CC,"CHILDRENS, YOUNG PEOPLE AND FAMILIES","	LOOKED AFTER NORTH",OTHER EXPENSES,12/02/2021,9420132803,31.55,SAINSBURYS LOC (4965)
OXFORDSHIRE CC,CORPORATE CORE,LIBRARY PROJECTS,PURCHASE OF IT EQUIPMENT,12/02/2021,9420132831,897,OCULUS
OXFORDSHIRE CC,"CHILDRENS, YOUNG PEOPLE AND FAMILIES","	FOSTER CARE RECRUIT","SUPPLIES, STATIONERY AND MATERIALS",12/02/2021,9420132837,300,FYNE ASSOCIATED
OXFORDSHIRE CC,"CHILDRENS, YOUNG PEOPLE AND FAMILIES","	OCCG GRANT",OTHER EXPENSES,12/02/2021,9420132855,59,EE LIMITED
OXFORDSHIRE CC,"CHILDRENS, YOUNG PEOPLE AND FAMILIES","	RESIDENTIAL STRATEGY",MATERIALS,12/02/2021,9420132857,19.9,AMZNMKTPLACE AMAZON.CO
OXFORDSHIRE CC,CORPORATE CORE,"	CORPORATE FINANCE",PROFESSIONAL SUBSCRIPTIONS,12/02/2021,9420132859,"2,155.00",WWW.CIPFA.ORG.UK/PFMCO
OXFORDSHIRE CC,CORPORATE CORE,"	F&P TRAINING",HIRED AND CONTRACTED SERVICES,12/02/2021,9420132861,414,IPF
OXFORDSHIRE CC,"CHILDRENS, YOUNG PEOPLE AND FAMILIES",KIDLINGTON LIBRARY,EQUIPMENT,12/02/2021,9420132965,86.99,AMZNMKTPLACE AMAZON.CO
OXFORDSHIRE CC,SOCIAL AND COMMUNITY SERVICES,ADULTS AT RISK CHERW,HIRE OF ACCOMMODATION AND FACILITIES,12/02/2021,9420132971,37,LISMORE & ROTHWELL
OXFORDSHIRE CC,"CHILDRENS, YOUNG PEOPLE AND FAMILIES",KIDLINGTON LIBRARY,EQUIPMENT,12/02/2021,9420132967,5,TESCO STORE 2788
OXFORDSHIRE CC,ENVIRONMENT AND ECONOMY,"	COUNTY PRINT FINSHRS",MATERIALS,12/02/2021,9420132661,16.99,AMZNMKTPLACE
OXFORDSHIRE CC,SOCIAL AND COMMUNITY SERVICES,CSS - ABINGDON,MATERIALS,12/02/2021,9420132663,13.55,AMAZON.CO.UK MF2H99VS4
OXFORDSHIRE CC,"CHILDRENS, YOUNG PEOPLE AND FAMILIES",THAME E&A HOME,CATERING PROVISIONS,12/02/2021,9420132989,8.75,SAINSBURYS SACAT 2096
OXFORDSHIRE CC,"CHILDRENS, YOUNG PEOPLE AND FAMILIES",WITNEY,MATERIALS,12/02/2021,9420132977,72,THE POTTERY PLACE
OXFORDSHIRE CC,"CHILDRENS, YOUNG PEOPLE AND FAMILIES",EYNSHAM,CATERING,12/02/2021,9420132979,31.2,WOK EXPRESS
OXFORDSHIRE CC,"CHILDRENS, YOUNG PEOPLE AND FAMILIES","	LOOKED AFTER SOUTH",CATERING,12/02/2021,9420132991,5.49,MCDONALDS
OXFORDSHIRE CC,"CHILDRENS, YOUNG PEOPLE AND FAMILIES",FSP NON-STAFFING - CENTRAL,MATERIALS,12/02/2021,9420132987,44.99,ARGOS LTD
OXFORDSHIRE CC,ENVIRONMENT AND ECONOMY,HARD FM,HARDWARE AND CROCKERY,12/02/2021,9420132673,36.49,SCREWFIX DIRECT
OXFORDSHIRE CC,CORPORATE CORE,HOLTON SITE,OTHER PREMISES RELATED COSTS,12/02/2021,9420132997,25,MR MEND
OXFORDSHIRE CC,CORPORATE CORE,,"SUPPLIES, STATIONERY AND MATERIALS",12/02/2021,9420133009,12.04,LYRECO UK LTD
OXFORDSHIRE CC,CORPORATE CORE,,"SUPPLIES, STATIONERY AND MATERIALS",12/02/2021,9420133011,689.44,LYRECO UK LTD
OXFORDSHIRE CC,"CHILDRENS, YOUNG PEOPLE AND FAMILIES",CNTL EARLY HELP-RHIL,MATERIALS,12/02/2021,9420132689,-209.99,ARGOS LTD
OXFORDSHIRE CC,"CHILDRENS, YOUNG PEOPLE AND FAMILIES",NRPF & HOMELESSNESS,CLIENT LODGINGS AND ACCOMMODATION,12/02/2021,9420132697,40.5,PREMIER INN
OXFORDSHIRE CC,"CHILDRENS, YOUNG PEOPLE AND FAMILIES",CSC COVID-19,TELEPHONE - EQUIPMENT,12/02/2021,9420132699,15,VESTA VODAFONE
OXFORDSHIRE CC,"CHILDRENS, YOUNG PEOPLE AND FAMILIES",FAMILY SOLUTIONS PLUS NON-STAFF - NORTH,MATERIALS,12/02/2021,9420132715,78.95,ARGOS LTD
OXFORDSHIRE CC,SOCIAL AND COMMUNITY SERVICES,"	HISTORY SERVICE","BOOKS, DVDS AND CDS",12/02/2021,9420132719,14.75,AMZNMKTPLACE AMAZON.CO
OXFORDSHIRE CC,SOCIAL AND COMMUNITY SERVICES,CSS WALLINGFORD,CATERING PROVISIONS,12/02/2021,9420132721,14.05,WAITROSE 675
OXFORDSHIRE CC,SOCIAL AND COMMUNITY SERVICES,CSS WALLINGFORD,CATERING PROVISIONS,12/02/2021,9420132723,5.1,WAITROSE 675
OXFORDSHIRE CC,"CHILDRENS, YOUNG PEOPLE AND FAMILIES",THAME E&A HOME,CATERING PROVISIONS,12/02/2021,9420132725,18.45,MILK AND MORE
OXFORDSHIRE CC,"CHILDRENS, YOUNG PEOPLE AND FAMILIES",CHILDREN IN CARE NON-STAFFING - CENTRL 2,OTHER EXPENSES,12/02/2021,9420132727,11.15,POST OFFICE COUNTER
OXFORDSHIRE CC,"CHILDRENS, YOUNG PEOPLE AND FAMILIES",WITNEY,CATERING PROVISIONS,12/02/2021,9420132729,80.05,SAINSBURYS 0632
OXFORDSHIRE CC,SOCIAL AND COMMUNITY SERVICES,CSS WITNEY,MATERIALS,12/02/2021,9420132889,5.95,AMZNMKTPLACE
OXFORDSHIRE CC,SOCIAL AND COMMUNITY SERVICES,CSS WITNEY,MATERIALS,12/02/2021,9420132885,25.99,AMAZON.CO.UK MF4OI7XY4
OXFORDSHIRE CC,SOCIAL AND COMMUNITY SERVICES,CSS WITNEY,MATERIALS,12/02/2021,9420132887,26.63,AMAZON.CO.UK MF8D32XO4
OXFORDSHIRE CC,SOCIAL AND COMMUNITY SERVICES,CSS WITNEY,MATERIALS,12/02/2021,9420132891,24.99,AMZNMKTPLACE
OXFORDSHIRE CC,SOCIAL AND COMMUNITY SERVICES,CSS WANTAGE,CATERING PROVISIONS,12/02/2021,9420132893,-24.36,AMZ AMAZON.CO.UK
OXFORDSHIRE CC,SOCIAL AND COMMUNITY SERVICES,CSS WANTAGE,MATERIALS,12/02/2021,9420132895,-25.98,AMZ ZHUORAN
OXFORDSHIRE CC,"CHILDRENS, YOUNG PEOPLE AND FAMILIES","	FAMILY SUPPORT CITY3",HIRE OF ACCOMMODATION AND FACILITIES,12/02/2021,9420132929,75.5,PREMIER INN
OXFORDSHIRE CC,"CHILDRENS, YOUNG PEOPLE AND FAMILIES","	FAMILY SUPPORT CITY3",FURNITURE,12/02/2021,9420132921,149.99,AMZNMKTPLACE
OXFORDSHIRE CC,"CHILDRENS, YOUNG PEOPLE AND FAMILIES","	FAMILY SUPPORT CITY3",FURNITURE,12/02/2021,9420132923,18.99,AMZNMKTPLACE
OXFORDSHIRE CC,"CHILDRENS, YOUNG PEOPLE AND FAMILIES","	FAMILY SUPPORT CITY3",FURNITURE,12/02/2021,9420132925,53.75,AMZNMKTPLACE
OXFORDSHIRE CC,"CHILDRENS, YOUNG PEOPLE AND FAMILIES","	FAMILY SUPPORT CITY3",FURNITURE,12/02/2021,9420132927,35.38,AMZNMKTPLACE
OXFORDSHIRE CC,"CHILDRENS, YOUNG PEOPLE AND FAMILIES","	FAMILY SUPPORT CITY3",MATERIALS,12/02/2021,9420132931,99.99,AMZNMKTPLACE
OXFORDSHIRE CC,"CHILDRENS, YOUNG PEOPLE AND FAMILIES",THAME E&A HOME,MATERIALS,12/02/2021,9420132623,11.99,AMZNMKTPLACE AMAZON.CO
OXFORDSHIRE CC,"CHILDRENS, YOUNG PEOPLE AND FAMILIES",FAMILY SOLUTIONS PLUS NON-STAFF � SOUTH,PURCHASE OF IT EQUIPMENT,12/02/2021,9420132619,249,CURRYS ONLINE
OXFORDSHIRE CC,"CHILDRENS, YOUNG PEOPLE AND FAMILIES",STH EARLY HELP-ABNDN,FURNITURE,12/02/2021,9420132621,249.99,ARGOS LTD
OXFORDSHIRE CC,"CHILDRENS, YOUNG PEOPLE AND FAMILIES","	FAMILY SUPPORT CITY3",MATERIALS,12/02/2021,9420132933,264.99,ARGOS LTD
OXFORDSHIRE CC,"CHILDRENS, YOUNG PEOPLE AND FAMILIES","	FAMILY SUPPORT CITY3",MATERIALS,12/02/2021,9420132935,338,AO RETAIL LIMITED
OXFORDSHIRE CC,"CHILDRENS, YOUNG PEOPLE AND FAMILIES","	FAMILY SUPPORT CITY3",MATERIALS,12/02/2021,9420132937,-264.99,ARGOS LTD
OXFORDSHIRE CC,"CHILDRENS, YOUNG PEOPLE AND FAMILIES","	LOOKED AFTER CITY 2",OTHER TRANSPORT ARRANGEMENTS,12/02/2021,9420132969,15,IZ  ROYAL CARS OXF
OXFORDSHIRE CC,"CHILDRENS, YOUNG PEOPLE AND FAMILIES",FAMILY SOLUTIONS PLUS NON-STAFF - NORTH,PAYMENTS TO TRANSPORT OPERATORS,11/02/2021,9417189505,135.9,WWW.GWR.COM
OXFORDSHIRE CC,"CHILDRENS, YOUNG PEOPLE AND FAMILIES","	LEAVING CARE SOUTH",FURNITURE,11/02/2021,9417190073,"1,059.50",IKEA LTD SHOP ONLINE
OXFORDSHIRE CC,"CHILDRENS, YOUNG PEOPLE AND FAMILIES","	LEAVING CARE SOUTH",MATERIALS,11/02/2021,9417190079,12.99,ARGOS LTD
OXFORDSHIRE CC,"CHILDRENS, YOUNG PEOPLE AND FAMILIES",EYNSHAM,CATERING,11/02/2021,9417190083,41,OFF THE HOOK
OXFORDSHIRE CC,"CHILDRENS, YOUNG PEOPLE AND FAMILIES","	LOOKED AFTER SOUTH",CATERING PROVISIONS,11/02/2021,9417190111,5.1,CO-OP GROUP FOOD
OXFORDSHIRE CC,"CHILDRENS, YOUNG PEOPLE AND FAMILIES",FAMILY SOLUTIONS PLUS NON-STAFF - NORTH,TELEPHONE - EQUIPMENT,11/02/2021,9417189553,20,SMARTY CO UK
OXFORDSHIRE CC,SOCIAL AND COMMUNITY SERVICES,CSS WALLINGFORD,MATERIALS,11/02/2021,9417189571,50.99,AMZNMKTPLACE AMAZON.CO
OXFORDSHIRE CC,"CHILDRENS, YOUNG PEOPLE AND FAMILIES","	LAC PUPIL PREMIUM",MATERIALS,11/02/2021,9417190133,19.99,AMZNMKTPLACE
OXFORDSHIRE CC,"CHILDRENS, YOUNG PEOPLE AND FAMILIES","	LAC PUPIL PREMIUM",MATERIALS,11/02/2021,9417190135,377.98,CURRYS ONLINE
OXFORDSHIRE CC,"CHILDRENS, YOUNG PEOPLE AND FAMILIES","	LAC PUPIL PREMIUM",MATERIALS,11/02/2021,9417190137,358.99,CURRYS ONLINE
OXFORDSHIRE CC,"CHILDRENS, YOUNG PEOPLE AND FAMILIES",THAME E&A HOME,MATERIALS,11/02/2021,9417189599,6.99,TESCO SUBSCRIPTION
OXFORDSHIRE CC,"CHILDRENS, YOUNG PEOPLE AND FAMILIES",THAME E&A HOME,CATERING PROVISIONS,11/02/2021,9417189605,9.2,IZ  SAN ORIENTAL LIMIT
OXFORDSHIRE CC,"CHILDRENS, YOUNG PEOPLE AND FAMILIES",THAME E&A HOME,MATERIALS,11/02/2021,9417189609,41,WWW.THEWORKS.CO.UK
OXFORDSHIRE CC,"CHILDRENS, YOUNG PEOPLE AND FAMILIES",WITNEY,CATERING PROVISIONS,11/02/2021,9417189615,34.35,SAINSBURYS SACAT 0632
OXFORDSHIRE CC,"CHILDRENS, YOUNG PEOPLE AND FAMILIES",WITNEY,CATERING PROVISIONS,11/02/2021,9417189621,1.3,CO-OP GROUP 070582
OXFORDSHIRE CC,"CHILDRENS, YOUNG PEOPLE AND FAMILIES","	LEAVING CARE CITY 2",FURNITURE,11/02/2021,9417189623,7.99,AMAZON PRIME MF98271K4
OXFORDSHIRE CC,CORPORATE CORE,INCOME TEAM,PAYMENT TO GOVERNMENT DEPARTMENTS,11/02/2021,9417189655,11,OXFORDSHIRE CC MOTO1
OXFORDSHIRE CC,SOCIAL AND COMMUNITY SERVICES,RESIDENTIAL STRATEGY,CATERING PROVISIONS,11/02/2021,9417189659,42.29,TESCO STORE 2994
OXFORDSHIRE CC,"CHILDRENS, YOUNG PEOPLE AND FAMILIES",UASC POST 18,"SUPPLIES, STATIONERY AND MATERIALS",11/02/2021,9417189789,271.94,WWW.JOHNLEWIS.COM
OXFORDSHIRE CC,"CHILDRENS, YOUNG PEOPLE AND FAMILIES",UASC 16&17,"SUPPLIES, STATIONERY AND MATERIALS",11/02/2021,9417189791,271.94,WWW.JOHNLEWIS.COM
OXFORDSHIRE CC,"CHILDRENS, YOUNG PEOPLE AND FAMILIES","	OCCG GRANT",BIRTHDAY ALLOWANCE,11/02/2021,9417189833,6.25,TESCO STORES 2008
OXFORDSHIRE CC,CORPORATE CORE,"MARKETING, COMMUNICATIONS & ENGAGEMENT","PUBLICITY, PROMOTIONS AND ADVERTISEMENT",11/02/2021,9417189821,24,SNAP  ADS
OXFORDSHIRE CC,CORPORATE CORE,"MARKETING, COMMUNICATIONS & ENGAGEMENT",PHOTOCOPYING,11/02/2021,9417189825,120,ISTOCK.COM
OXFORDSHIRE CC,"CHILDRENS, YOUNG PEOPLE AND FAMILIES","	OCCG GRANT",BIRTHDAY ALLOWANCE,11/02/2021,9417189831,6.75,TESCO STORES 2008
OXFORDSHIRE CC,"CHILDRENS, YOUNG PEOPLE AND FAMILIES","	OCCG GRANT",BIRTHDAY ALLOWANCE,11/02/2021,9417189835,11,ARGOS LTD
OXFORDSHIRE CC,"CHILDRENS, YOUNG PEOPLE AND FAMILIES","	OCCG GRANT",BIRTHDAY ALLOWANCE,11/02/2021,9417189837,13,ARGOS LTD
OXFORDSHIRE CC,"CHILDRENS, YOUNG PEOPLE AND FAMILIES","	LAC PUPIL PREMIUM",PURCHASE OF IT EQUIPMENT,11/02/2021,9417189841,54.78,AMAZON.CO.UK MF3MF3PR4
OXFORDSHIRE CC,ENVIRONMENT AND ECONOMY,"	ABBEY HOUSE",CATERING PROVISIONS,11/02/2021,9417189843,1.15,WAITROSE 211
OXFORDSHIRE CC,SOCIAL AND COMMUNITY SERVICES,CSS - OXFORD,MATERIALS,11/02/2021,9417189875,419.95,WWW.SPORTANDLEISUR
OXFORDSHIRE CC,SOCIAL AND COMMUNITY SERVICES,CSS - OXFORD,MANAGEMENT CONSULTANT FEES,11/02/2021,9417189877,216.08,WWW.MPLCUK.COM
OXFORDSHIRE CC,"CHILDRENS, YOUNG PEOPLE AND FAMILIES","	OCCG GRANT",FURNITURE,11/02/2021,9417189901,61.96,AMZNMKTPLACE
OXFORDSHIRE CC,SOCIAL AND COMMUNITY SERVICES,CSS BICESTER,MATERIALS,11/02/2021,9417189373,39.96,AMZNMKTPLACE
OXFORDSHIRE CC,SOCIAL AND COMMUNITY SERVICES,CSS BICESTER,MATERIALS,11/02/2021,9417189377,67.96,AMZNMKTPLACE
OXFORDSHIRE CC,SOCIAL AND COMMUNITY SERVICES,CSS BICESTER,CATERING PROVISIONS,11/02/2021,9417189379,2.8,WILKO RETAIL LIMITED
OXFORDSHIRE CC,"CHILDRENS, YOUNG PEOPLE AND FAMILIES",CHILDREN IN CARE NON-STAFFING - SOUTH,OTHER TRANSPORT ARRANGEMENTS,11/02/2021,9417189397,67.5,OXFORD BUS TICKETS
OXFORDSHIRE CC,"CHILDRENS, YOUNG PEOPLE AND FAMILIES","	LAC PUPIL PREMIUM",OTHER EXPENSES,11/02/2021,9417189401,280,HP INC HP.COM STORE UK
OXFORDSHIRE CC,"CHILDRENS, YOUNG PEOPLE AND FAMILIES","	LAC PUPIL PREMIUM",OTHER EXPENSES,11/02/2021,9417189405,280,HP INC HP.COM STORE UK
OXFORDSHIRE CC,"CHILDRENS, YOUNG PEOPLE AND FAMILIES",CHILDREN IN CARE NON-STAFFING - SOUTH,PAYMENT TO GOVERNMENT DEPARTMENTS,11/02/2021,9417189407,50,GEN REGISTER OFFICE
OXFORDSHIRE CC,"CHILDRENS, YOUNG PEOPLE AND FAMILIES",CHILDREN IN CARE NON-STAFFING - SOUTH,HIRE OF ACCOMMODATION AND FACILITIES,11/02/2021,9417189409,165,THE HIGHFIELD
OXFORDSHIRE CC,CORPORATE CORE,CATERING MANAGEMENT SOFT FM,"SUPPLIES, STATIONERY AND MATERIALS",11/02/2021,9417189417,84,EB  ONLINE TRAINING ME
OXFORDSHIRE CC,SOCIAL AND COMMUNITY SERVICES,CSS WITNEY,MATERIALS,11/02/2021,9417189943,4.99,AMAZON.CO.UK MF87O5PZ4
OXFORDSHIRE CC,SOCIAL AND COMMUNITY SERVICES,CSS WITNEY,MATERIALS,11/02/2021,9417189945,19.99,AMZNMKTPLACE
OXFORDSHIRE CC,SOCIAL AND COMMUNITY SERVICES,CSS WITNEY,MATERIALS,11/02/2021,9417189947,19.25,AMAZON.CO.UK MF16S5G04
OXFORDSHIRE CC,SOCIAL AND COMMUNITY SERVICES,CSS WITNEY,MATERIALS,11/02/2021,9417189949,15.12,AMAZON.CO.UK MF8K77P44
OXFORDSHIRE CC,SOCIAL AND COMMUNITY SERVICES,CSS WANTAGE,MATERIALS,11/02/2021,9417189951,46.34,AMZNMKTPLACE AMAZON.CO
OXFORDSHIRE CC,"CHILDRENS, YOUNG PEOPLE AND FAMILIES",SI EQUIPMENT,DISABILITY AIDS AND EQUIPMENT,11/02/2021,9417189953,34.2,PAYPAL  ROYALNATION
OXFORDSHIRE CC,"CHILDRENS, YOUNG PEOPLE AND FAMILIES","	SEN/ICT EQUIPMENT",PURCHASE OF IT EQUIPMENT,11/02/2021,9417189955,8.99,AMZNMKTPLACE AMAZON.CO
OXFORDSHIRE CC,"CHILDRENS, YOUNG PEOPLE AND FAMILIES",UASC 16&17,TRANSPORT TO SCHOOL,11/02/2021,9417189429,12.5,WWW.THEKEY.CO.UK
OXFORDSHIRE CC,ENVIRONMENT AND ECONOMY,HARD FM,MATERIALS,11/02/2021,9417189435,8.5,HALFORDS 0853
OXFORDSHIRE CC,ENVIRONMENT AND ECONOMY,HARD FM,HARDWARE AND CROCKERY,11/02/2021,9417189441,95.95,GENERAL BUILDING PLAST
OXFORDSHIRE CC,ENVIRONMENT AND ECONOMY,HARD FM,HARDWARE AND CROCKERY,11/02/2021,9417189443,94.56,JOHNSTONES DEC CENTRE
OXFORDSHIRE CC,ENVIRONMENT AND ECONOMY,HARD FM,HARDWARE AND CROCKERY,11/02/2021,9417189447,20.7,WICKES OXFORD
OXFORDSHIRE CC,"CHILDRENS, YOUNG PEOPLE AND FAMILIES","	LEAVING CARE NORTH",EQUIPMENT,11/02/2021,9417189461,178.8,WWW.MACOIDIRECT.CO
OXFORDSHIRE CC,"CHILDRENS, YOUNG PEOPLE AND FAMILIES","	40 THE MOORS",MATERIALS,11/02/2021,9417190005,6.99,WWW.GAME.CO.UK
OXFORDSHIRE CC,"CHILDRENS, YOUNG PEOPLE AND FAMILIES","	40 THE MOORS",CATERING,11/02/2021,9417189997,49.47,DOMINO S PIZZA
OXFORDSHIRE CC,"CHILDRENS, YOUNG PEOPLE AND FAMILIES",THAME E&A HOME,CATERING PROVISIONS,11/02/2021,9417189467,5.16,SAINSBURYS SACAT 2096
OXFORDSHIRE CC,"CHILDRENS, YOUNG PEOPLE AND FAMILIES",NRPF & HOMELESSNESS,HIRE OF ACCOMMODATION AND FACILITIES,11/02/2021,9417189471,288.5,PREMIER INN
OXFORDSHIRE CC,"CHILDRENS, YOUNG PEOPLE AND FAMILIES",NRPF & HOMELESSNESS,HIRE OF ACCOMMODATION AND FACILITIES,11/02/2021,9417189475,35,PREMIER INN
OXFORDSHIRE CC,"CHILDRENS, YOUNG PEOPLE AND FAMILIES",FAMILY SOLUTIONS PLUS NON-STAFF � SOUTH,TELEPHONE - EQUIPMENT,11/02/2021,9417189479,21.99,WWW.CARPHONEWAREHO
OXFORDSHIRE CC,"CHILDRENS, YOUNG PEOPLE AND FAMILIES",FAMILY SOLUTIONS PLUS NON-STAFF � SOUTH,TELEPHONE - EQUIPMENT,11/02/2021,9417189481,43.98,WWW.CARPHONEWAREHO
OXFORDSHIRE CC,"CHILDRENS, YOUNG PEOPLE AND FAMILIES",FAMILY SOLUTIONS PLUS NON-STAFF � SOUTH,TELEPHONE - EQUIPMENT,11/02/2021,9417189483,21.99,WWW.CARPHONEWAREHO
OXFORDSHIRE CC,"CHILDRENS, YOUNG PEOPLE AND FAMILIES",DIDCOT MOVE-ON HOME,CATERING PROVISIONS,11/02/2021,9417190021,7.79,SAINSBURYS SACAT 2067
OXFORDSHIRE CC,SOCIAL AND COMMUNITY SERVICES,ADULTS AT RISK CHERW,HIRE OF ACCOMMODATION AND FACILITIES,11/02/2021,9417190045,111,LISMORE & ROTHWELL
OXFORDSHIRE CC,ENVIRONMENT AND ECONOMY,HARD FM,MATERIALS,10/02/2021,9414545519,11,HALFORDS ON LINE
OXFORDSHIRE CC,ENVIRONMENT AND ECONOMY,HARD FM,HARDWARE AND CROCKERY,10/02/2021,9414545521,9.98,SCREWFIX DIR LTD
OXFORDSHIRE CC,ENVIRONMENT AND ECONOMY,HARD FM,HARDWARE AND CROCKERY,10/02/2021,9414545523,10.34,SCREWFIX DIR LTD
OXFORDSHIRE CC,ENVIRONMENT AND ECONOMY,HARD FM,HARDWARE AND CROCKERY,10/02/2021,9414545525,59.99,SCREWFIX DIRECT
OXFORDSHIRE CC,ENVIRONMENT AND ECONOMY,HARD FM,HARDWARE AND CROCKERY,10/02/2021,9414545527,66.57,WICKES BANBURY
OXFORDSHIRE CC,"CHILDRENS, YOUNG PEOPLE AND FAMILIES","	LAC PUPIL PREMIUM",PURCHASE OF IT EQUIPMENT,10/02/2021,9414545711,24.99,ARGOS LTD
OXFORDSHIRE CC,"CHILDRENS, YOUNG PEOPLE AND FAMILIES","	LAC PUPIL PREMIUM",PURCHASE OF IT EQUIPMENT,10/02/2021,9414545713,74.99,WWW.JOHNLEWIS.COM
OXFORDSHIRE CC,ENVIRONMENT AND ECONOMY,"	ROW MAINT",VEHICLE FUEL,10/02/2021,9414545735,74.01,PEDESTRAL GARAGE
OXFORDSHIRE CC,"CHILDRENS, YOUNG PEOPLE AND FAMILIES","	RESIDENTIAL STRATEGY",MATERIALS,10/02/2021,9414545771,20.3,AMZNMKTPLACE AMAZON.CO
OXFORDSHIRE CC,SOCIAL AND COMMUNITY SERVICES,LEAVING CARE NORTH,MATERIALS,10/02/2021,9414545773,27.99,JD SPORTS INTERNET
OXFORDSHIRE CC,SOCIAL AND COMMUNITY SERVICES,"	MUSEUMS COLLECTIONS",OTHER SERVICES,10/02/2021,9414545775,8.43,AMZNMKTPLACE AMAZON.CO
OXFORDSHIRE CC,SOCIAL AND COMMUNITY SERVICES,CSS WITNEY,GAS,10/02/2021,9414545799,262.94,ALLSTAR BUSINESS SOLUT
OXFORDSHIRE CC,SOCIAL AND COMMUNITY SERVICES,CSS WANTAGE,CATERING PROVISIONS,10/02/2021,9414545801,28.1,SAINSBURYS SACAT 2244
OXFORDSHIRE CC,"CHILDRENS, YOUNG PEOPLE AND FAMILIES","	AAC EQUIPMENT",PURCHASE OF IT EQUIPMENT,10/02/2021,9414545803,41.89,AMZNMKTPLACE
OXFORDSHIRE CC,"CHILDRENS, YOUNG PEOPLE AND FAMILIES","	SEN/ICT EQUIPMENT",PURCHASE OF IT EQUIPMENT,10/02/2021,9414545803,57.47,AMZNMKTPLACE
OXFORDSHIRE CC,"CHILDRENS, YOUNG PEOPLE AND FAMILIES","	LAC PUPIL PREMIUM",OTHER EXPENSES,10/02/2021,9414545501,63.94,ARGOS LTD
OXFORDSHIRE CC,"CHILDRENS, YOUNG PEOPLE AND FAMILIES","	LAC PUPIL PREMIUM",OTHER EXPENSES,10/02/2021,9414545503,63.94,ARGOS LTD
OXFORDSHIRE CC,"CHILDRENS, YOUNG PEOPLE AND FAMILIES","	LOOKED AFTER SOUTH",OTHER EXPENSES,10/02/2021,9414545505,-95.99,AMZ HUISEN FURNITURE
OXFORDSHIRE CC,ENVIRONMENT AND ECONOMY,HARD FM,HARDWARE AND CROCKERY,10/02/2021,9414545529,34.2,JEWSONS
OXFORDSHIRE CC,"CHILDRENS, YOUNG PEOPLE AND FAMILIES",WITNEY,CATERING PROVISIONS,10/02/2021,9414545515,12.25,SAINSBURYS SACAT 0632
OXFORDSHIRE CC,"CHILDRENS, YOUNG PEOPLE AND FAMILIES",WITNEY,CATERING PROVISIONS,10/02/2021,9414545517,16.85,CO-OP GROUP 070582
OXFORDSHIRE CC,"CHILDRENS, YOUNG PEOPLE AND FAMILIES",CNTL EARLY HELP-BRTN,FURNITURE,10/02/2021,9414545837,705.51,ONLINECARPETS.COUK
OXFORDSHIRE CC,ENVIRONMENT AND ECONOMY,HARD FM,HARDWARE AND CROCKERY,10/02/2021,9414545531,19.69,B & Q 1062
OXFORDSHIRE CC,ENVIRONMENT AND ECONOMY,HARD FM,CATERING PROVISIONS,10/02/2021,9414545533,49.38,WWW.LINCAT.CO.UK
OXFORDSHIRE CC,ENVIRONMENT AND ECONOMY,HARD FM,HARDWARE AND CROCKERY,10/02/2021,9414545535,20.27,CITY PLUMBING
OXFORDSHIRE CC,ENVIRONMENT AND ECONOMY,COUNTY LIBRARY,HARDWARE AND CROCKERY,10/02/2021,9414545537,59.99,SCREWFIX DIR LTD
OXFORDSHIRE CC,SOCIAL AND COMMUNITY SERVICES,CSS BICESTER,CATERING PROVISIONS,10/02/2021,9414545545,41.2,TESCO STORES 4480
OXFORDSHIRE CC,"CHILDRENS, YOUNG PEOPLE AND FAMILIES","	40 THE MOORS",CLOTHING AND UNIFORMS,10/02/2021,9414545859,20.5,MARKS&SPENCER PLC
OXFORDSHIRE CC,"CHILDRENS, YOUNG PEOPLE AND FAMILIES","	40 THE MOORS",MATERIALS,10/02/2021,9414545861,6.99,WWW.GAME.CO.UK
OXFORDSHIRE CC,"CHILDRENS, YOUNG PEOPLE AND FAMILIES",DIDCOT MOVE-ON HOME,CATERING PROVISIONS,10/02/2021,9414545867,2.05,SAINSBURYS 2067
OXFORDSHIRE CC,"CHILDRENS, YOUNG PEOPLE AND FAMILIES",THAME E&A HOME,CATERING PROVISIONS,10/02/2021,9414545553,11.15,SAINSBURYS 2096
OXFORDSHIRE CC,"CHILDRENS, YOUNG PEOPLE AND FAMILIES",CNTL EARLY HELP-RHIL,MATERIALS,10/02/2021,9414545565,199.99,ARGOS LTD
OXFORDSHIRE CC,"CHILDRENS, YOUNG PEOPLE AND FAMILIES","	40 THE MOORS",TELEPHONE - EQUIPMENT,10/02/2021,9414545555,30,EE TOPUP  VESTA
OXFORDSHIRE CC,"CHILDRENS, YOUNG PEOPLE AND FAMILIES",CNTL EARLY HELP-RHIL,MATERIALS,10/02/2021,9414545563,139.8,AMZNMKTPLACE AMAZON.CO
OXFORDSHIRE CC,"CHILDRENS, YOUNG PEOPLE AND FAMILIES","	LEAVING CARE SOUTH",MATERIALS,10/02/2021,9414545875,23,ARGOS LTD
OXFORDSHIRE CC,"CHILDRENS, YOUNG PEOPLE AND FAMILIES",EYNSHAM,CATERING PROVISIONS,10/02/2021,9414545879,108.54,TESCO STORES 2008
OXFORDSHIRE CC,"CHILDRENS, YOUNG PEOPLE AND FAMILIES",DIDCOT MOVE-ON HOME,CATERING PROVISIONS,10/02/2021,9414545577,26.35,SAINSBURYS SACAT 2067
OXFORDSHIRE CC,"CHILDRENS, YOUNG PEOPLE AND FAMILIES",DIDCOT MOVE-ON HOME,CATERING PROVISIONS,10/02/2021,9414545579,7.25,SAINSBURYS SACAT 2067
OXFORDSHIRE CC,COMMUNITY SAFETY,ON ST PARK OXFD SPA,MATERIALS,10/02/2021,9414545581,80.97,AMZNMKTPLACE
OXFORDSHIRE CC,COMMUNITY SAFETY,ON ST PARK OXFD SPA,"BOOKS, DVDS AND CDS",10/02/2021,9414545583,48.75,STATIONERY OFFICE BOOK
OXFORDSHIRE CC,"CHILDRENS, YOUNG PEOPLE AND FAMILIES","	LAC PUPIL PREMIUM",PURCHASE OF IT EQUIPMENT,10/02/2021,9414545709,178,AMAZON.CO.UK MF33631L4
OXFORDSHIRE CC,CORPORATE CORE,LIBRARY COLLECTIONS,"BOOKS, DVDS AND CDS",10/02/2021,9414545705,535.68,OVERDRIVE DIST
OXFORDSHIRE CC,CORPORATE CORE,,"SUPPLIES, STATIONERY AND MATERIALS",10/02/2021,9414545907,21.89,LYRECO UK LTD
OXFORDSHIRE CC,CORPORATE CORE,,"SUPPLIES, STATIONERY AND MATERIALS",10/02/2021,9414545905,22.42,LYRECO UK LTD
OXFORDSHIRE CC,ENVIRONMENT AND ECONOMY,OMNICAV,PAYMENT TO GOVERNMENT DEPARTMENTS,10/02/2021,9414545597,508,WWW.OXFORDSHIRE.GOV.UK
OXFORDSHIRE CC,ENVIRONMENT AND ECONOMY,OMNICAV,PAYMENT TO GOVERNMENT DEPARTMENTS,10/02/2021,9414545599,509,WWW.OXFORDSHIRE.GOV.UK
OXFORDSHIRE CC,SOCIAL AND COMMUNITY SERVICES,CSS - OXFORD,MATERIALS,10/02/2021,9414545601,78.92,AMZNMKTPLACE
OXFORDSHIRE CC,CORPORATE CORE,,"SUPPLIES, STATIONERY AND MATERIALS",10/02/2021,9414545909,6.99,LYRECO UK LTD
OXFORDSHIRE CC,CORPORATE CORE,,"SUPPLIES, STATIONERY AND MATERIALS",10/02/2021,9414545911,54.12,LYRECO UK LTD
OXFORDSHIRE CC,CORPORATE CORE,,"SUPPLIES, STATIONERY AND MATERIALS",10/02/2021,9414545913,9.36,LYRECO UK LTD
OXFORDSHIRE CC,ENTERPRISEVC,,CAR LEASING - PRIVATE RENTALS,10/02/2021,9414545925,43.18,ENTERPRISE RENT-A-CAR
OXFORDSHIRE CC,CORPORATE CORE,,"SUPPLIES, STATIONERY AND MATERIALS",10/02/2021,9414545915,53.71,LYRECO UK LTD
OXFORDSHIRE CC,CORPORATE CORE,,"SUPPLIES, STATIONERY AND MATERIALS",10/02/2021,9414545917,55.3,LYRECO UK LTD
OXFORDSHIRE CC,ENTERPRISEVC,,CAR LEASING - PRIVATE RENTALS,10/02/2021,9414545919,62.65,ENTERPRISE RENT-A-CAR
OXFORDSHIRE CC,ENTERPRISEVC,,CAR LEASING - PRIVATE RENTALS,10/02/2021,9414545921,77.35,ENTERPRISE RENT-A-CAR
OXFORDSHIRE CC,ENTERPRISEVC,,CAR LEASING - PRIVATE RENTALS,10/02/2021,9414545923,103.86,ENTERPRISE RENT-A-CAR
OXFORDSHIRE CC,"CHILDRENS, YOUNG PEOPLE AND FAMILIES","	SENSS TRAINING",PAYMENTS TO VOLUNTARY BODIES,10/02/2021,9414545627,174,NAS UK
OXFORDSHIRE CC,"CHILDRENS, YOUNG PEOPLE AND FAMILIES","	FPT CITY",MATERIALS,10/02/2021,9414545663,22.99,AMZNMKTPLACE
OXFORDSHIRE CC,"CHILDRENS, YOUNG PEOPLE AND FAMILIES","	LEAVING CARE NORTH",MATERIALS,10/02/2021,9414545673,-23.97,AMZ AMAZON.CO.UK
OXFORDSHIRE CC,ENVIRONMENT AND ECONOMY,HARD FM,HARDWARE AND CROCKERY,09/02/2021,9412097499,220.74,HOWDENS - KIDLINGTON D
OXFORDSHIRE CC,ENVIRONMENT AND ECONOMY,HARD FM,HARDWARE AND CROCKERY,09/02/2021,9412097503,58.32,GENERAL BUILDING PLAST
OXFORDSHIRE CC,ENVIRONMENT AND ECONOMY,HARD FM,CATERING PROVISIONS,09/02/2021,9412097507,115.8,WWW.LINCAT.CO.UK
OXFORDSHIRE CC,ENVIRONMENT AND ECONOMY,HARD FM,HARDWARE AND CROCKERY,09/02/2021,9412097511,8.99,SCREWFIX DIRECT
OXFORDSHIRE CC,CORPORATE CORE,,"SUPPLIES, STATIONERY AND MATERIALS",09/02/2021,9412098141,16.36,LYRECO UK LTD
OXFORDSHIRE CC,"CHILDRENS, YOUNG PEOPLE AND FAMILIES",FSP NON-STAFFING - CENTRAL,LEGAL COSTS,09/02/2021,9412097539,70.09,ROYDS WITHY KING LLP
OXFORDSHIRE CC,"CHILDRENS, YOUNG PEOPLE AND FAMILIES",CNTL EARLY HELP-RHIL,MATERIALS,09/02/2021,9412097543,333.95,ARGOS LTD
OXFORDSHIRE CC,"CHILDRENS, YOUNG PEOPLE AND FAMILIES",CNTL EARLY HELP-RHIL,MATERIALS,09/02/2021,9412097545,229.99,ARGOS LTD
OXFORDSHIRE CC,ENTERPRISEVC,BUSINESS SYST STAFF,TELEPHONE - EQUIPMENT,09/02/2021,9412097571,39,BRITISH TELECOMMUNICAT
OXFORDSHIRE CC,"CHILDRENS, YOUNG PEOPLE AND FAMILIES","	RESIDENTIAL STRATEGY",EDUCATIONAL AND VOCATIONAL TRAINING ,09/02/2021,9412097905,59.88,PROTRAININGS
OXFORDSHIRE CC,ENVIRONMENT AND ECONOMY,"	OXFORDSHIRE MUSEUM",PURCHASE OF IT EQUIPMENT,09/02/2021,9412097923,4.39,AMAZON.CO.UK MF39S5E84
OXFORDSHIRE CC,ENVIRONMENT AND ECONOMY,"	OXFORDSHIRE MUSEUM",EQUIPMENT,09/02/2021,9412097929,34.26,AMAZON.CO.UK MF79Q0EA4
OXFORDSHIRE CC,SOCIAL AND COMMUNITY SERVICES,"	MUSEUMS COLLECTIONS",OTHER SERVICES,09/02/2021,9412097933,26.3,AMAZON.CO.UK MF2226EX4
OXFORDSHIRE CC,SOCIAL AND COMMUNITY SERVICES,CSS WANTAGE,MATERIALS,09/02/2021,9412097967,9.11,AMZNMKTPLACE
OXFORDSHIRE CC,SOCIAL AND COMMUNITY SERVICES,CSS WANTAGE,CATERING PROVISIONS,09/02/2021,9412097963,24.36,AMAZON.CO.UK MF86P2EE4
OXFORDSHIRE CC,SOCIAL AND COMMUNITY SERVICES,CSS WANTAGE,MATERIALS,09/02/2021,9412097971,25.98,AMZNMKTPLACE
OXFORDSHIRE CC,SOCIAL AND COMMUNITY SERVICES,COMMENTS&INFORMATION,POSTAGE AND DELIVERY,09/02/2021,9412097677,6.85,POST OFFICE COUNTER
OXFORDSHIRE CC,"CHILDRENS, YOUNG PEOPLE AND FAMILIES","	AAC EQUIPMENT",PURCHASE OF IT EQUIPMENT,09/02/2021,9412097975,7.48,AMZNMKTPLACE
OXFORDSHIRE CC,"CHILDRENS, YOUNG PEOPLE AND FAMILIES","	AAC EQUIPMENT",PURCHASE OF IT EQUIPMENT,09/02/2021,9412097981,7.48,AMZNMKTPLACE
OXFORDSHIRE CC,"CHILDRENS, YOUNG PEOPLE AND FAMILIES","	40 THE MOORS",CATERING,09/02/2021,9412098011,143.85,OVISHER  OVISHER TANDO
OXFORDSHIRE CC,SOCIAL AND COMMUNITY SERVICES,CSS WITNEY,CATERING PROVISIONS,09/02/2021,9412097463,2.5,MARKS&SPENCER PLC SACA
OXFORDSHIRE CC,"CHILDRENS, YOUNG PEOPLE AND FAMILIES",CHILDREN IN CARE NON-STAFFING - SOUTH,PAYMENT TO GOVERNMENT DEPARTMENTS,09/02/2021,9412097475,78,GEN REGISTER OFFICE
OXFORDSHIRE CC,ENVIRONMENT AND ECONOMY,HARD FM,HARDWARE AND CROCKERY,09/02/2021,9412097491,50.6,WICKES BANBURY
OXFORDSHIRE CC,ENVIRONMENT AND ECONOMY,HARD FM,HARDWARE AND CROCKERY,09/02/2021,9412097495,491.87,HOWDENS - KIDLINGTON D
OXFORDSHIRE CC,CORPORATE CORE,,"SUPPLIES, STATIONERY AND MATERIALS",09/02/2021,9412098137,9.48,LYRECO UK LTD
OXFORDSHIRE CC,"CHILDRENS, YOUNG PEOPLE AND FAMILIES",EYNSHAM,RESIDENTIAL ACTIVITIES,09/02/2021,9412098133,28.25,AMAZON.CO.UK MF3QF9EB4
OXFORDSHIRE CC,"CHILDRENS, YOUNG PEOPLE AND FAMILIES","	40 THE MOORS",CATERING PROVISIONS,09/02/2021,9412098015,74.31,TESCO STORE 2788
OXFORDSHIRE CC,SOCIAL AND COMMUNITY SERVICES,CSS - BANBURY,CATERING PROVISIONS,09/02/2021,9412098019,28.34,TESCO STORE 2064
OXFORDSHIRE CC,ENVIRONMENT AND ECONOMY,CITIES4PEOPLE,PURCHASE OF IT EQUIPMENT,09/02/2021,9412097717,90.22,MENTIMETER
OXFORDSHIRE CC,"CHILDRENS, YOUNG PEOPLE AND FAMILIES","	LEAVING CARE SOUTH",MATERIALS,09/02/2021,9412098083,3.99,ARGOS LTD
OXFORDSHIRE CC,CORPORATE CORE,ICT OPERATIONS & MAI,MATERIALS,09/02/2021,9412098085,16.34,AMAZON.CO.UK MF59U9EP4
OXFORDSHIRE CC,"CHILDRENS, YOUNG PEOPLE AND FAMILIES",FAMILY SOLUTIONS PLUS NON-STAFF - NORTH,HIRE OF EQUIPMENT,09/02/2021,9412097757,234,MICKS SKIPS LTD
OXFORDSHIRE CC,CORPORATE CORE,"MARKETING, COMMUNICATIONS & ENGAGEMENT","PUBLICITY, PROMOTIONS AND ADVERTISEMENT",09/02/2021,9412097763,24,SNAP  ADS
OXFORDSHIRE CC,"CHILDRENS, YOUNG PEOPLE AND FAMILIES",HOUSE PROJECT,MATERIALS,09/02/2021,9412097771,15.99,EBAY O 21-06545-97614
OXFORDSHIRE CC,"CHILDRENS, YOUNG PEOPLE AND FAMILIES",KINGFISHER,MATERIALS,09/02/2021,9412097775,7.99,AMAZON PRIME MF9211AN4
OXFORDSHIRE CC,"CHILDRENS, YOUNG PEOPLE AND FAMILIES",WITNEY,CATERING PROVISIONS,09/02/2021,9412098089,10,SAINSBURYS 0632
OXFORDSHIRE CC,"CHILDRENS, YOUNG PEOPLE AND FAMILIES",WITNEY,CATERING PROVISIONS,09/02/2021,9412098093,13.27,SAINSBURYS 0632
OXFORDSHIRE CC,"CHILDRENS, YOUNG PEOPLE AND FAMILIES",EYNSHAM,CATERING PROVISIONS,09/02/2021,9412098095,6.5,MAYFIELDEGGS
OXFORDSHIRE CC,SOCIAL AND COMMUNITY SERVICES,CSS - OXFORD,MATERIALS,09/02/2021,9412097601,139.96,ARGOS LTD
OXFORDSHIRE CC,SOCIAL AND COMMUNITY SERVICES,CSS BICESTER,CATERING PROVISIONS,09/02/2021,9412097617,82.94,SAINSBURYS (2243)
OXFORDSHIRE CC,"CHILDRENS, YOUNG PEOPLE AND FAMILIES",THAME E&A HOME,CATERING PROVISIONS,09/02/2021,9412097623,129.27,TESCO STORES 2038
OXFORDSHIRE CC,CORPORATE CORE,"	ORGANISATIONAL DEV'T",SUBSCRIPTIONS,09/02/2021,9412097897,170,WWW.MINDTOOLS.COM
OXFORDSHIRE CC,"CHILDRENS, YOUNG PEOPLE AND FAMILIES","	40 THE MOORS",CATERING PROVISIONS,08/02/2021,9408501625,20,SAINSBURYS
OXFORDSHIRE CC,SOCIAL AND COMMUNITY SERVICES,UASC 16&17,MATERIALS,08/02/2021,9408501435,42,AMZNMKTPLACE
OXFORDSHIRE CC,"CHILDRENS, YOUNG PEOPLE AND FAMILIES",CNTL EARLY HELP-RHIL,MATERIALS,08/02/2021,9408501443,300,ARGOS LTD
OXFORDSHIRE CC,ENVIRONMENT AND ECONOMY,"	FLEET OPERATIONS",POSTAGE AND DELIVERY,08/02/2021,9408501951,2.7,POST OFFICE COUNTER
OXFORDSHIRE CC,"CHILDRENS, YOUNG PEOPLE AND FAMILIES",CNTL EARLY HELP-BRTN,MATERIALS,08/02/2021,9408501955,80.97,AMAZON.CO.UK MF0P253C4
OXFORDSHIRE CC,"CHILDRENS, YOUNG PEOPLE AND FAMILIES","	40 THE MOORS",MATERIALS,08/02/2021,9408501963,133,ARGOS LTD
OXFORDSHIRE CC,"CHILDRENS, YOUNG PEOPLE AND FAMILIES","	40 THE MOORS",MATERIALS,08/02/2021,9408501967,11.64,AMZNMKTPLACE AMAZON.CO
OXFORDSHIRE CC,"CHILDRENS, YOUNG PEOPLE AND FAMILIES","	40 THE MOORS",MATERIALS,08/02/2021,9408501971,39.73,AMAZON.CO.UK MF19I3TT4
OXFORDSHIRE CC,"CHILDRENS, YOUNG PEOPLE AND FAMILIES",EYNSHAM,CATERING,08/02/2021,9408501977,8.9,SAINSBURYS 0631
OXFORDSHIRE CC,"CHILDRENS, YOUNG PEOPLE AND FAMILIES",NRPF & HOMELESSNESS,CLIENT LODGINGS AND ACCOMMODATION,08/02/2021,9408501467,232,PREMIER INN
OXFORDSHIRE CC,SOCIAL AND COMMUNITY SERVICES,SCHOOLS FM CATERING AREA 4,MATERIALS,08/02/2021,9408501469,148.5,FALCONFOODSERVICE EQUI
OXFORDSHIRE CC,COMMUNITY SAFETY,ON ST PARK OXFD SPA,EQUIPMENT,08/02/2021,9408501475,130.8,NESSLEGROVE
OXFORDSHIRE CC,"CHILDRENS, YOUNG PEOPLE AND FAMILIES",WITNEY,CATERING PROVISIONS,08/02/2021,9408501477,61.37,WM MORRISONS STORE
OXFORDSHIRE CC,CORPORATE CORE,LIBRARY COLLECTIONS,"BOOKS, DVDS AND CDS",08/02/2021,9408501491,"4,496.93",OVERDRIVE DIST
OXFORDSHIRE CC,"CHILDRENS, YOUNG PEOPLE AND FAMILIES",DIDCOT MOVE-ON HOME,CATERING PROVISIONS,08/02/2021,9408501995,18.28,SAINSBURYS SACAT 2067
OXFORDSHIRE CC,ENVIRONMENT AND ECONOMY,SUMMERTOWN LIBRARY,EQUIPMENT,08/02/2021,9408502015,15,TESCO STORE 2064
OXFORDSHIRE CC,SOCIAL AND COMMUNITY SERVICES,"	PUBLIC HEALTH GENERA",MATERIALS,08/02/2021,9408502023,9.99,AMZNMKTPLACE AMAZON.CO
OXFORDSHIRE CC,SOCIAL AND COMMUNITY SERVICES,"	PUBLIC HEALTH GENERA",MATERIALS,08/02/2021,9408502027,11.99,AMZNMKTPLACE
OXFORDSHIRE CC,CORPORATE CORE,COMMUNITY TESTING GRANT,MATERIALS,08/02/2021,9408501503,131.94,AMZNMKTPLACE
OXFORDSHIRE CC,CORPORATE CORE,COMMUNITY TESTING GRANT,MATERIALS,08/02/2021,9408501505,118.83,AMZNMKTPLACE AMAZON.CO
OXFORDSHIRE CC,CORPORATE CORE,COMMUNITY TESTING GRANT,MATERIALS,08/02/2021,9408501507,5.56,AMZNMKTPLACE
OXFORDSHIRE CC,CORPORATE CORE,COMMUNITY TESTING GRANT,MATERIALS,08/02/2021,9408501511,27.16,AMAZON.CO.UK MF5I92394
OXFORDSHIRE CC,CORPORATE CORE,COMMUNITY TESTING GRANT,MATERIALS,08/02/2021,9408501513,54.32,AMZNMKTPLACE
OXFORDSHIRE CC,CORPORATE CORE,COMMUNITY TESTING GRANT,MATERIALS,08/02/2021,9408501515,96.23,AMZNMKTPLACE
OXFORDSHIRE CC,"CHILDRENS, YOUNG PEOPLE AND FAMILIES",EYNSHAM,CATERING PROVISIONS,08/02/2021,9408502043,195.51,TESCO STORES 2008
OXFORDSHIRE CC,"CHILDRENS, YOUNG PEOPLE AND FAMILIES",EYNSHAM,CATERING PROVISIONS,08/02/2021,9408502045,-5.25,TESCO STORES 2008
OXFORDSHIRE CC,ENVIRONMENT AND ECONOMY,MAJOR INFRASTRUCTURE DELIVERY,PAYMENT TO GOVERNMENT DEPARTMENTS,08/02/2021,9408502055,116,CHERWELL DISTRICT COUN
OXFORDSHIRE CC,"CHILDRENS, YOUNG PEOPLE AND FAMILIES",FSP NON-STAFFING - CENTRAL,HIRE OF ACCOMMODATION AND FACILITIES,08/02/2021,9408502057,260.5,PREMIER INN
OXFORDSHIRE CC,"CHILDRENS, YOUNG PEOPLE AND FAMILIES",THAME E&A HOME,VEHICLE FUEL,08/02/2021,9408502063,9.8,THAME BP SF CONNECT
OXFORDSHIRE CC,CORPORATE CORE,MOTOR FLEET,MOTOR IF OWN DAMAGE,08/02/2021,9408502065,777.6,WHOLESALE AUTOPARTS
OXFORDSHIRE CC,CORPORATE CORE,MOTOR FLEET,MOTOR IF OWN DAMAGE,08/02/2021,9408502069,"4,278.65",WHOLESALE AUTOPARTS
OXFORDSHIRE CC,CORPORATE CORE,COMMUNITY TESTING GRANT,MATERIALS,08/02/2021,9408501517,106.59,AMZNMKTPLACE AMAZON.CO
OXFORDSHIRE CC,CORPORATE CORE,CENTRAL BUYING TEAM,MATERIALS,08/02/2021,9408501519,43.96,AMZNMKTPLACE AMAZON.CO
OXFORDSHIRE CC,"CHILDRENS, YOUNG PEOPLE AND FAMILIES",EYNSHAM,MATERIALS,08/02/2021,9408502073,11.88,HOME BARGAINS
OXFORDSHIRE CC,"CHILDRENS, YOUNG PEOPLE AND FAMILIES",EYNSHAM,CATERING PROVISIONS,08/02/2021,9408502079,6.28,CO-OPERATIVE FOOD
OXFORDSHIRE CC,"CHILDRENS, YOUNG PEOPLE AND FAMILIES",CNTL EARLY HELP-BRTN,CATERING PROVISIONS,08/02/2021,9408502085,1.56,CO OPERATIVE FOOD
OXFORDSHIRE CC,"CHILDRENS, YOUNG PEOPLE AND FAMILIES",CNTL ERLY HELP-BBLEY,CATERING PROVISIONS,08/02/2021,9408502091,1.5,TESCO STORE 2990
OXFORDSHIRE CC,"CHILDRENS, YOUNG PEOPLE AND FAMILIES",THAME E&A HOME,CATERING PROVISIONS,08/02/2021,9408501547,70.84,TESCO STORES 2038
OXFORDSHIRE CC,"CHILDRENS, YOUNG PEOPLE AND FAMILIES",WITNEY,CATERING PROVISIONS,08/02/2021,9408501563,10.85,SAINSBURYS SACAT 0632
OXFORDSHIRE CC,"CHILDRENS, YOUNG PEOPLE AND FAMILIES",DIDCOT MOVE-ON HOME,CATERING,08/02/2021,9408501577,17.19,SAINSBURYS 2067
OXFORDSHIRE CC,CORPORATE CORE,,"SUPPLIES, STATIONERY AND MATERIALS",08/02/2021,9408502127,37.68,LYRECO UK LTD
OXFORDSHIRE CC,SOCIAL AND COMMUNITY SERVICES,COMMENTS&INFORMATION,POSTAGE AND DELIVERY,08/02/2021,9408501579,17.05,POST OFFICE COUNTER
OXFORDSHIRE CC,"CHILDRENS, YOUNG PEOPLE AND FAMILIES",DIDCOT MOVE-ON HOME,CATERING PROVISIONS,08/02/2021,9408501583,12.55,SAINSBURYS 2067
OXFORDSHIRE CC,SOCIAL AND COMMUNITY SERVICES,RESIDENTIAL STRATEGY,RESIDENTIAL ACTIVITIES,08/02/2021,9408501587,54.91,WWW.ALWAYSHOBBIES.COM
OXFORDSHIRE CC,SOCIAL AND COMMUNITY SERVICES,RESIDENTIAL STRATEGY,"BOOKS, DVDS AND CDS",08/02/2021,9408501589,6.95,ETSY.COM ANGELACHICK
OXFORDSHIRE CC,CORPORATE CORE,"MARKETING, COMMUNICATIONS & ENGAGEMENT",IT SOFTWARE,08/02/2021,9408501661,18.96,ZAPIER.COM/CHARGE
OXFORDSHIRE CC,CORPORATE CORE,"MARKETING, COMMUNICATIONS & ENGAGEMENT","PUBLICITY, PROMOTIONS AND ADVERTISEMENT",08/02/2021,9408501665,500,FACEBK 8VJYQZA9Z2
OXFORDSHIRE CC,CORPORATE CORE,"MARKETING, COMMUNICATIONS & ENGAGEMENT","PUBLICITY, PROMOTIONS AND ADVERTISEMENT",08/02/2021,9408501669,500,GOOGLE  ADS4896546035
OXFORDSHIRE CC,CORPORATE CORE,"MARKETING, COMMUNICATIONS & ENGAGEMENT",IT SOFTWARE,08/02/2021,9408501673,470.46,MAILCHIMP
OXFORDSHIRE CC,CORPORATE CORE,"MARKETING, COMMUNICATIONS & ENGAGEMENT",IT SOFTWARE,08/02/2021,9408501677,7.54,RSS.APP
OXFORDSHIRE CC,"CHILDRENS, YOUNG PEOPLE AND FAMILIES",UASC 16&17,OTHER EXPENSES,08/02/2021,9408501687,15,STGCOACH/CTYLINK
OXFORDSHIRE CC,"CHILDRENS, YOUNG PEOPLE AND FAMILIES","	OCCG GRANT",FURNITURE,08/02/2021,9408501691,41.4,TESCO STORE 2064
OXFORDSHIRE CC,"CHILDRENS, YOUNG PEOPLE AND FAMILIES",UASC 16&17,CATERING PROVISIONS,08/02/2021,9408501693,10.4,TESCO STORE 2064
OXFORDSHIRE CC,"CHILDRENS, YOUNG PEOPLE AND FAMILIES","	OCCG GRANT",FURNITURE,08/02/2021,9408501697,6.84,TESCO STORE 2064
OXFORDSHIRE CC,"CHILDRENS, YOUNG PEOPLE AND FAMILIES",UASC 16&17,CATERING PROVISIONS,08/02/2021,9408501699,4.89,CO-OPERATIVE FOOD
OXFORDSHIRE CC,"CHILDRENS, YOUNG PEOPLE AND FAMILIES","	LEAVING CARE NORTH",PAYMENTS TO TRANSPORT OPERATORS,08/02/2021,9408501709,3.5,BICESTER VIL SSTP
OXFORDSHIRE CC,"CHILDRENS, YOUNG PEOPLE AND FAMILIES","	LEAVING CARE NORTH",PAYMENTS TO TRANSPORT OPERATORS,08/02/2021,9408501713,7.2,BICESTER VIL SSTP
OXFORDSHIRE CC,"CHILDRENS, YOUNG PEOPLE AND FAMILIES","	LEAVING CARE NORTH",CLOTHING AND UNIFORMS,08/02/2021,9408501717,105.99,BOOHOO.COM
OXFORDSHIRE CC,"CHILDRENS, YOUNG PEOPLE AND FAMILIES","	LEAVING CARE NORTH",MATERIALS,08/02/2021,9408501719,8.49,WH SMITH
OXFORDSHIRE CC,"CHILDRENS, YOUNG PEOPLE AND FAMILIES","	LEAVING CARE NORTH",OTHER TRANSPORT ARRANGEMENTS,08/02/2021,9408501721,9.1,RINGGO
OXFORDSHIRE CC,"CHILDRENS, YOUNG PEOPLE AND FAMILIES","	LEAVING CARE NORTH",OTHER EXPENSES,08/02/2021,9408501725,34,AMZNMKTPLACE
OXFORDSHIRE CC,"CHILDRENS, YOUNG PEOPLE AND FAMILIES","	OCCG GRANT",CATERING PROVISIONS,08/02/2021,9408501739,48.85,SAINSBURYS 0600
OXFORDSHIRE CC,ENVIRONMENT AND ECONOMY,"	MOUNT HOUSE",CATERING PROVISIONS,08/02/2021,9408501745,1.1,SAINSBURYS SACAT 0600
OXFORDSHIRE CC,"CHILDRENS, YOUNG PEOPLE AND FAMILIES",UASC 16&17,OTHER TRANSPORT ARRANGEMENTS,08/02/2021,9408501749,2.2,EURO CAR PARKS
OXFORDSHIRE CC,CORPORATE CORE,OPERATIONS,MATERIALS,08/02/2021,9408501797,207.92,AMAZON.CO.UK MF4NX3J44
OXFORDSHIRE CC,CORPORATE CORE,OPERATIONS,STATIONERY,08/02/2021,9408501801,80.83,AMZNMKTPLACE
OXFORDSHIRE CC,CORPORATE CORE,LIBRARY PROJECTS,PURCHASE OF IT EQUIPMENT,08/02/2021,9408501805,-299,OCULUS
OXFORDSHIRE CC,CORPORATE CORE,LIBRARY PROJECTS,PURCHASE OF IT EQUIPMENT,08/02/2021,9408501807,-298.99,OCULUS
OXFORDSHIRE CC,CORPORATE CORE,LIBRARY PROJECTS,PURCHASE OF IT EQUIPMENT,08/02/2021,9408501809,-299,OCULUS
OXFORDSHIRE CC,"CHILDRENS, YOUNG PEOPLE AND FAMILIES",FAMILY SOLUTIONS PLUS NON-STAFF - NORTH,OTHER TRANSPORT ARRANGEMENTS,08/02/2021,9408501329,19,STAGECOACH SERVICE
OXFORDSHIRE CC,SOCIAL AND COMMUNITY SERVICES,CSS - BANBURY,CATERING PROVISIONS,08/02/2021,9408501331,4.36,ALDI 10 775
OXFORDSHIRE CC,SOCIAL AND COMMUNITY SERVICES,CSS BICESTER,MATERIALS,08/02/2021,9408501335,11.2,AMZNMKTPLACE AMAZON.CO
OXFORDSHIRE CC,"CHILDRENS, YOUNG PEOPLE AND FAMILIES",THAME E&A HOME,MATERIALS,08/02/2021,9408501337,16.99,AMZNMKTPLACE
OXFORDSHIRE CC,"CHILDRENS, YOUNG PEOPLE AND FAMILIES",WITNEY,OTHER EXPENSES,08/02/2021,9408501835,31,ARGOS LTD
OXFORDSHIRE CC,CORPORATE CORE,SKILLS & LEARNING,OTHER TRAINING COURSES AND QUALIFICATION,08/02/2021,9408501837,210,SIRCULALTD D&I LEADERS
OXFORDSHIRE CC,"CHILDRENS, YOUNG PEOPLE AND FAMILIES",THAME E&A HOME,CATERING PROVISIONS,08/02/2021,9408501843,9.62,SAINSBURYS SACAT 2067
OXFORDSHIRE CC,SOCIAL AND COMMUNITY SERVICES,CSS - ABINGDON,CATERING PROVISIONS,08/02/2021,9408501363,24.08,TESCO STORES 2008
OXFORDSHIRE CC,SOCIAL AND COMMUNITY SERVICES,CSS - ABINGDON,MATERIALS,08/02/2021,9408501365,29.68,AMZNMKTPLACE
OXFORDSHIRE CC,SOCIAL AND COMMUNITY SERVICES,"	CENTRAL LIBRARY",PROFESSIONAL SUBSCRIPTIONS,08/02/2021,9408501847,75,WWW.OFCOM.ORG.UK
OXFORDSHIRE CC,SOCIAL AND COMMUNITY SERVICES,CSS - ABINGDON,MATERIALS,08/02/2021,9408501369,69.86,AMZNMKTPLACE
OXFORDSHIRE CC,"CHILDRENS, YOUNG PEOPLE AND FAMILIES",THAME E&A HOME,VEHICLE FUEL,08/02/2021,9408501371,1.35,THAME BP SF CONNECT
OXFORDSHIRE CC,"CHILDRENS, YOUNG PEOPLE AND FAMILIES",THAME E&A HOME,VEHICLE FUEL,08/02/2021,9408501375,25.3,THAME BP SF CONNECT
OXFORDSHIRE CC,"CHILDRENS, YOUNG PEOPLE AND FAMILIES",WITNEY,CATERING PROVISIONS,08/02/2021,9408501379,3.15,TESCO-STORES 2499
OXFORDSHIRE CC,"CHILDRENS, YOUNG PEOPLE AND FAMILIES",UASC 16&17,"SUPPLIES, STATIONERY AND MATERIALS",08/02/2021,9408501403,17,AMZNMKTPLACE
OXFORDSHIRE CC,ENVIRONMENT AND ECONOMY,HARD FM,HARDWARE AND CROCKERY,08/02/2021,9408501405,50.96,SCREWFIX DIR LTD
OXFORDSHIRE CC,ENVIRONMENT AND ECONOMY,HARD FM,MATERIALS,08/02/2021,9408501409,115.22,LIGHTING & MAINS POWER
OXFORDSHIRE CC,ENVIRONMENT AND ECONOMY,HARD FM,HARDWARE AND CROCKERY,08/02/2021,9408501413,208.9,B & Q 1062
OXFORDSHIRE CC,ENVIRONMENT AND ECONOMY,HARD FM,HARDWARE AND CROCKERY,08/02/2021,9408501415,5.97,SCREWFIX DIRECT
OXFORDSHIRE CC,ENVIRONMENT AND ECONOMY,COUNTY LIBRARY,HARDWARE AND CROCKERY,08/02/2021,9408501421,23.92,SCREWFIX DIR LTD
OXFORDSHIRE CC,"CHILDRENS, YOUNG PEOPLE AND FAMILIES","	LEAVING CARE NORTH",MATERIALS,08/02/2021,9408501429,34.08,AMZNMKTPLACE
OXFORDSHIRE CC,SOCIAL AND COMMUNITY SERVICES,RESIDENTIAL STRATEGY,RESIDENTIAL ACTIVITIES,05/02/2021,9404580701,33,WWW.THEWORKS.CO.UK
OXFORDSHIRE CC,"CHILDRENS, YOUNG PEOPLE AND FAMILIES","	40 THE MOORS",CATERING PROVISIONS,05/02/2021,9404580525,5.19,CO-OPERATIVE FOOD
OXFORDSHIRE CC,SOCIAL AND COMMUNITY SERVICES,CSS BICESTER,MATERIALS,05/02/2021,9404580533,25.97,AMZNMKTPLACE
OXFORDSHIRE CC,"CHILDRENS, YOUNG PEOPLE AND FAMILIES",FAMILY SOLUTIONS PLUS NON-STAFF - NORTH,MATERIALS,05/02/2021,9404580539,269.97,ARGOS LTD
OXFORDSHIRE CC,CORPORATE CORE,,"SUPPLIES, STATIONERY AND MATERIALS",05/02/2021,9404580961,9.12,LYRECO UK LTD
OXFORDSHIRE CC,CORPORATE CORE,,"SUPPLIES, STATIONERY AND MATERIALS",05/02/2021,9404580963,80.54,LYRECO UK LTD
OXFORDSHIRE CC,CORPORATE CORE,,"SUPPLIES, STATIONERY AND MATERIALS",05/02/2021,9404580965,44.46,LYRECO UK LTD
OXFORDSHIRE CC,CORPORATE CORE,,"SUPPLIES, STATIONERY AND MATERIALS",05/02/2021,9404580967,13.32,LYRECO UK LTD
OXFORDSHIRE CC,"CHILDRENS, YOUNG PEOPLE AND FAMILIES",FAMILY SOLUTIONS PLUS NON-STAFF - NORTH,OTHER TRANSPORT ARRANGEMENTS,05/02/2021,9404580543,87,STAGECOACH SERVICE
OXFORDSHIRE CC,"CHILDRENS, YOUNG PEOPLE AND FAMILIES","	LEAVING CARE NORTH",CATERING PROVISIONS,05/02/2021,9404580547,11.99,WM MORRISONS STORE
OXFORDSHIRE CC,"CHILDRENS, YOUNG PEOPLE AND FAMILIES","	LEAVING CARE NORTH",CATERING PROVISIONS,05/02/2021,9404580551,15,WM MORRISONS STORE
OXFORDSHIRE CC,CORPORATE CORE,COMMUNITY TESTING GRANT,MATERIALS,05/02/2021,9404580555,209.7,AMZNMKTPLACE
OXFORDSHIRE CC,CORPORATE CORE,COMMUNITY TESTING GRANT,MATERIALS,05/02/2021,9404580559,67.96,AMZNMKTPLACE
OXFORDSHIRE CC,"CHILDRENS, YOUNG PEOPLE AND FAMILIES",CHILDREN IN CARE NON-STAFFING - CENTRL 1,OTHER TRANSPORT ARRANGEMENTS,05/02/2021,9404580607,49.35,TRAINLINE
OXFORDSHIRE CC,"CHILDRENS, YOUNG PEOPLE AND FAMILIES","	LOOKED AFTER CITY 1",OTHER TRANSPORT ARRANGEMENTS,05/02/2021,9404580607,103.3,TRAINLINE
OXFORDSHIRE CC,"CHILDRENS, YOUNG PEOPLE AND FAMILIES","	LEAVING CARE CITY 2",FURNITURE,05/02/2021,9404580609,198.77,AMZNMKTPLACE
OXFORDSHIRE CC,"CHILDRENS, YOUNG PEOPLE AND FAMILIES",THAME E&A HOME,CATERING PROVISIONS,05/02/2021,9404580593,18.45,MILK AND MORE
OXFORDSHIRE CC,"CHILDRENS, YOUNG PEOPLE AND FAMILIES","	LOOKED AFTER CITY 1",OTHER TRANSPORT ARRANGEMENTS,05/02/2021,9404580605,158.4,THETRAINLINE.COM
OXFORDSHIRE CC,ENVIRONMENT AND ECONOMY,COVID-19 COD,MATERIALS,05/02/2021,9404580619,33.99,AMAZON.CO.UK MF3SA3444
OXFORDSHIRE CC,ENVIRONMENT AND ECONOMY,COVID-19 COD,MATERIALS,05/02/2021,9404580621,33.99,AMAZON.CO.UK MF3SQ6434
OXFORDSHIRE CC,ENVIRONMENT AND ECONOMY,COVID-19 COD,MATERIALS,05/02/2021,9404580627,33.99,AMAZON.CO.UK MF3SX34S4
OXFORDSHIRE CC,ENVIRONMENT AND ECONOMY,COVID-19 COD,MATERIALS,05/02/2021,9404580629,33.99,AMAZON.CO.UK MF6SY54L4
OXFORDSHIRE CC,ENVIRONMENT AND ECONOMY,COVID-19 COD,EQUIPMENT,05/02/2021,9404580631,33.99,AMAZON.CO.UK MF7S294B4
OXFORDSHIRE CC,"CHILDRENS, YOUNG PEOPLE AND FAMILIES","	40 THE MOORS",MATERIALS,05/02/2021,9404580863,249,CURRYS ONLINE
OXFORDSHIRE CC,"CHILDRENS, YOUNG PEOPLE AND FAMILIES",FAMILY SOLUTIONS PLUS NON-STAFF � SOUTH,CLOTHING AND UNIFORMS,05/02/2021,9404580343,32.5,VANS
OXFORDSHIRE CC,"CHILDRENS, YOUNG PEOPLE AND FAMILIES",UASC 16&17,CLOTHING AND UNIFORMS,05/02/2021,9404580353,60.99,SPORTSDIRECT.COM
OXFORDSHIRE CC,ENVIRONMENT AND ECONOMY,HARD FM,MATERIALS,05/02/2021,9404580359,17,HALFORDS 0988
OXFORDSHIRE CC,ENVIRONMENT AND ECONOMY,HARD FM,HARDWARE AND CROCKERY,05/02/2021,9404580363,29.99,SCREWFIX DIR LTD
OXFORDSHIRE CC,ENVIRONMENT AND ECONOMY,HARD FM,HARDWARE AND CROCKERY,05/02/2021,9404580367,36.8,WICKES BANBURY
OXFORDSHIRE CC,"CHILDRENS, YOUNG PEOPLE AND FAMILIES",EYNSHAM,MATERIALS,05/02/2021,9404580395,93.99,JD SPORTS INTERNET
OXFORDSHIRE CC,"CHILDRENS, YOUNG PEOPLE AND FAMILIES","	LOOKED AFTER CITY 2",OTHER EXPENSES,05/02/2021,9404580897,35,BONN SQUARE NEWS
OXFORDSHIRE CC,SOCIAL AND COMMUNITY SERVICES,ADULTS AT RISK CHERW,HIRE OF ACCOMMODATION AND FACILITIES,05/02/2021,9404580899,5,LISMORE & ROTHWELL
OXFORDSHIRE CC,"CHILDRENS, YOUNG PEOPLE AND FAMILIES",MEMBERS ALLOWANCES,"SUPPLIES, STATIONERY AND MATERIALS",05/02/2021,9404580915,261.99,CURRYS ONLINE
OXFORDSHIRE CC,CORPORATE CORE,COMMUNITY TESTING GRANT,MATERIALS,05/02/2021,9404580917,43.96,AMZNMKTPLACE
OXFORDSHIRE CC,"CHILDRENS, YOUNG PEOPLE AND FAMILIES",NRPF & HOMELESSNESS,CLIENT LODGINGS AND ACCOMMODATION,05/02/2021,9404580471,46.5,PREMIER INN
OXFORDSHIRE CC,"CHILDRENS, YOUNG PEOPLE AND FAMILIES",FAMILY SOLUTIONS PLUS NON-STAFF - NORTH,PAYMENTS TO TRANSPORT OPERATORS,05/02/2021,9404580479,129.6,WWW.GWR.COM
OXFORDSHIRE CC,SOCIAL AND COMMUNITY SERVICES,SCHOOLS FM CATERING AREA 4,CATERING,05/02/2021,9404580487,77.99,BOOKER LIMITED OXFORD
OXFORDSHIRE CC,CORPORATE CORE,COMMUNITY TESTING GRANT,MATERIALS,05/02/2021,9404580921,235.11,AMZNMKTPLACE
OXFORDSHIRE CC,SOCIAL AND COMMUNITY SERVICES,SCHOOLS FM CATERING AREA 4,CATERING,05/02/2021,9404580491,7.29,BOOKER LIMITED OXFORD
OXFORDSHIRE CC,"CHILDRENS, YOUNG PEOPLE AND FAMILIES",WITNEY,CATERING PROVISIONS,05/02/2021,9404580497,10.6,SAINSBURYS SACAT 0632
OXFORDSHIRE CC,"CHILDRENS, YOUNG PEOPLE AND FAMILIES",WITNEY,MATERIALS,05/02/2021,9404580503,8,ARGOS LTD
OXFORDSHIRE CC,"CHILDRENS, YOUNG PEOPLE AND FAMILIES",NTH FAM SUPRT-BCSTR,PAYMENTS TO TRANSPORT OPERATORS,05/02/2021,9404580757,16.3,WWW.GWR.COM
OXFORDSHIRE CC,"CHILDRENS, YOUNG PEOPLE AND FAMILIES","	LOOKED AFTER NORTH",POSTAGE AND DELIVERY,05/02/2021,9404580763,10.2,SAINSBURYS LOCAL 5071
OXFORDSHIRE CC,"CHILDRENS, YOUNG PEOPLE AND FAMILIES","	LOOKED AFTER NORTH",HIRE OF ACCOMMODATION AND FACILITIES,05/02/2021,9404580765,175,PREMIER INN
OXFORDSHIRE CC,"CHILDRENS, YOUNG PEOPLE AND FAMILIES",THAME E&A HOME,CATERING PROVISIONS,05/02/2021,9404580767,9.84,SELECT CONVENIENCE & O
OXFORDSHIRE CC,ENVIRONMENT AND ECONOMY,"	ABBEY HOUSE",CATERING PROVISIONS,05/02/2021,9404580771,1.15,WAITROSE 211
OXFORDSHIRE CC,"CHILDRENS, YOUNG PEOPLE AND FAMILIES",UASC 16&17,OTHER TRANSPORT ARRANGEMENTS,05/02/2021,9404580777,2.2,EURO CAR PARKS
OXFORDSHIRE CC,"CHILDRENS, YOUNG PEOPLE AND FAMILIES",UASC 16&17,OTHER TRANSPORT ARRANGEMENTS,05/02/2021,9404580779,1.7,EURO CAR PARKS
OXFORDSHIRE CC,ENVIRONMENT AND ECONOMY,"	WASTE MNGMNT GEN",MATERIALS,05/02/2021,9404580797,10.38,AMAZON.CO.UK MF2G76LI4
OXFORDSHIRE CC,"CHILDRENS, YOUNG PEOPLE AND FAMILIES",THAME E&A HOME,CATERING PROVISIONS,05/02/2021,9404580801,17.5,SAINSBURYS 2067
OXFORDSHIRE CC,ENVIRONMENT AND ECONOMY,"	WASTE MNGMNT GEN",MATERIALS,05/02/2021,9404580799,10.38,AMAZON.CO.UK MF6UL1LG4
OXFORDSHIRE CC,SOCIAL AND COMMUNITY SERVICES,CSS WITNEY,MATERIALS,05/02/2021,9404580825,17.5,AMAZON.CO.UK MF99Q3LY4
OXFORDSHIRE CC,SOCIAL AND COMMUNITY SERVICES,CSS WITNEY,MATERIALS,05/02/2021,9404580827,48.99,AMZNMKTPLACE
OXFORDSHIRE CC,SOCIAL AND COMMUNITY SERVICES,CSS - BANBURY,CATERING PROVISIONS,05/02/2021,9404580321,13.6,CO-OPERATIVE FOOD
OXFORDSHIRE CC,SOCIAL AND COMMUNITY SERVICES,CSS BICESTER,MATERIALS,05/02/2021,9404580325,45.69,AMZNMKTPLACE AMAZON.CO
OXFORDSHIRE CC,ENVIRONMENT AND ECONOMY,"	FLEET OPERATIONS",ROAD FUND LICENCES AND MOTS,05/02/2021,9404580843,267.5,DVLA VEHICLE TAX
OXFORDSHIRE CC,"CHILDRENS, YOUNG PEOPLE AND FAMILIES","	40 THE MOORS",HARDWARE AND CROCKERY,05/02/2021,9404580865,20.8,B AND Q
OXFORDSHIRE CC,SOCIAL AND COMMUNITY SERVICES,CSS WITNEY,MATERIALS,04/02/2021,9401637835,10.39,AMZNMKTPLACE AMAZON.CO
OXFORDSHIRE CC,SOCIAL AND COMMUNITY SERVICES,CSS WITNEY,CATERING PROVISIONS,04/02/2021,9401637391,16.35,WM MORRISONS STORE
OXFORDSHIRE CC,"CHILDRENS, YOUNG PEOPLE AND FAMILIES",CSS WANTAGE,CATERING PROVISIONS,04/02/2021,9401637413,4.5,SAINSBURYS SACAT 2244
OXFORDSHIRE CC,ENVIRONMENT AND ECONOMY,HARD FM,GENERAL MAINTENANCE,04/02/2021,9401637429,248.3,WOLSELEY UK
OXFORDSHIRE CC,ENVIRONMENT AND ECONOMY,HARD FM,HARDWARE AND CROCKERY,04/02/2021,9401637435,39.24,WWW.CEF.CO.UK
OXFORDSHIRE CC,ENVIRONMENT AND ECONOMY,"	BRIDGES GENERAL",MATERIALS,04/02/2021,9401637715,41.6,AMAZON.CO.UK MF1ZH0F54
OXFORDSHIRE CC,CORPORATE CORE,,"SUPPLIES, STATIONERY AND MATERIALS",04/02/2021,9401638019,49.36,LYRECO UK LTD
OXFORDSHIRE CC,"CHILDRENS, YOUNG PEOPLE AND FAMILIES","	LEAVING CARE CITY 1",HIRE OF ACCOMMODATION AND FACILITIES,04/02/2021,9401638003,107.83,TRAVELODGE
OXFORDSHIRE CC,"CHILDRENS, YOUNG PEOPLE AND FAMILIES",EYNSHAM,HEALTH AND SAFETY EQUIPMENT,04/02/2021,9401638007,29.95,AMZNMKTPLACE AMAZON.CO
OXFORDSHIRE CC,CORPORATE CORE,,"SUPPLIES, STATIONERY AND MATERIALS",04/02/2021,9401638011,96.76,LYRECO UK LTD
OXFORDSHIRE CC,CORPORATE CORE,,"SUPPLIES, STATIONERY AND MATERIALS",04/02/2021,9401638015,9.24,LYRECO UK LTD
OXFORDSHIRE CC,,,,04/02/2021,9401637673,"-266,353.28",
OXFORDSHIRE CC,CORPORATE CORE,LIBRARY COLLECTIONS,"BOOKS, DVDS AND CDS",04/02/2021,9401637661,561.86,OVERDRIVE DIST
OXFORDSHIRE CC,"CHILDRENS, YOUNG PEOPLE AND FAMILIES","	LEAVING CARE NORTH",MATERIALS,04/02/2021,9401637665,21.9,ARGOS LTD
OXFORDSHIRE CC,SOCIAL AND COMMUNITY SERVICES,SCHOOLS FM CATERING AREA 2,MATERIALS,04/02/2021,9401637669,20.37,AMZNMKTPLACE AMAZON.CO
OXFORDSHIRE CC,ENVIRONMENT AND ECONOMY,HARD FM,HARDWARE AND CROCKERY,04/02/2021,9401637437,104,WICKES BANBURY
OXFORDSHIRE CC,ENVIRONMENT AND ECONOMY,HARD FM,HARDWARE AND CROCKERY,04/02/2021,9401637439,9.94,WICKES OXFORD
OXFORDSHIRE CC,ENVIRONMENT AND ECONOMY,HARD FM,HARDWARE AND CROCKERY,04/02/2021,9401637441,10.18,SCREWFIX DIRECT
OXFORDSHIRE CC,"CHILDRENS, YOUNG PEOPLE AND FAMILIES",THAME E&A HOME,CLOTHING AND UNIFORMS,04/02/2021,9401637453,60,MATALAN.CO.UK
OXFORDSHIRE CC,"CHILDRENS, YOUNG PEOPLE AND FAMILIES","	RIVERSIDE CENTRE",POSTAGE AND DELIVERY,04/02/2021,9401637745,1.92,POST OFFICE COUNTER
OXFORDSHIRE CC,"CHILDRENS, YOUNG PEOPLE AND FAMILIES","	RIVERSIDE CENTRE",CATERING PROVISIONS,04/02/2021,9401637749,3.72,CO-OPERATIVE FOOD
OXFORDSHIRE CC,SOCIAL AND COMMUNITY SERVICES,"	MUSEUMS COLLECTIONS",OTHER SERVICES,04/02/2021,9401637753,215.58,WWW.PRESERVATIONEQUIPM
OXFORDSHIRE CC,SOCIAL AND COMMUNITY SERVICES,WITNEY MOVE ON HOME,CATERING PROVISIONS,04/02/2021,9401637481,11,SAINSBURYS 0632
OXFORDSHIRE CC,SOCIAL AND COMMUNITY SERVICES,WITNEY MOVE ON HOME,CATERING PROVISIONS,04/02/2021,9401637485,65.67,SAINSBURYS 0632
OXFORDSHIRE CC,"CHILDRENS, YOUNG PEOPLE AND FAMILIES",FAMILY SOLUTIONS PLUS NON-STAFF - NORTH,HIRE OF ACCOMMODATION AND FACILITIES,04/02/2021,9401637489,45.5,PREMIER INN
OXFORDSHIRE CC,"CHILDRENS, YOUNG PEOPLE AND FAMILIES",FAMILY SOLUTIONS PLUS NON-STAFF - NORTH,NON-STAFF SUBSISTENCE AND EXPENSES,04/02/2021,9401637493,39.95,ARGOS LTD
OXFORDSHIRE CC,"CHILDRENS, YOUNG PEOPLE AND FAMILIES",FAMILY SOLUTIONS PLUS NON-STAFF - NORTH,MATERIALS,04/02/2021,9401637521,5.49,AMAZON.CO.UK MF59R4FD4
OXFORDSHIRE CC,ENVIRONMENT AND ECONOMY,"	FM RECHARGES",PURCHASE OF IT EQUIPMENT,04/02/2021,9401637495,17.99,AMZNMKTPLACE
OXFORDSHIRE CC,"CHILDRENS, YOUNG PEOPLE AND FAMILIES","	LOOKED AFTER CITY 1",OTHER EXPENSES,04/02/2021,9401637505,14,GEN REGISTER OFFICE
OXFORDSHIRE CC,"CHILDRENS, YOUNG PEOPLE AND FAMILIES",FAMILY SOLUTIONS PLUS NON-STAFF - NORTH,PAYMENTS TO VOLUNTARY BODIES,04/02/2021,9401637513,100.94,SANCTUARY HOUSING
OXFORDSHIRE CC,"CHILDRENS, YOUNG PEOPLE AND FAMILIES",FAMILY SOLUTIONS PLUS NON-STAFF - NORTH,MATERIALS,04/02/2021,9401637517,23.75,AMAZON.CO.UK MF3CT7FD4
OXFORDSHIRE CC,"CHILDRENS, YOUNG PEOPLE AND FAMILIES",FAMILY SOLUTIONS PLUS NON-STAFF - NORTH,MATERIALS,04/02/2021,9401637525,23.75,AMAZON.CO.UK MF6GN8F84
OXFORDSHIRE CC,SOCIAL AND COMMUNITY SERVICES,CICC,MATERIALS,04/02/2021,9401637531,20,AMAZON.CO.UK MF1XG9O04
OXFORDSHIRE CC,SOCIAL AND COMMUNITY SERVICES,CICC,MATERIALS,04/02/2021,9401637533,20,AMAZON.CO.UK MF10C5OR4
OXFORDSHIRE CC,SOCIAL AND COMMUNITY SERVICES,CICC,MATERIALS,04/02/2021,9401637537,20,AMAZON.CO.UK MF2VF8OW4
OXFORDSHIRE CC,SOCIAL AND COMMUNITY SERVICES,CICC,MATERIALS,04/02/2021,9401637539,20,AMAZON.CO.UK MF33K3O94
OXFORDSHIRE CC,SOCIAL AND COMMUNITY SERVICES,CICC,MATERIALS,04/02/2021,9401637543,20,AMAZON.CO.UK MF63R3OM4
OXFORDSHIRE CC,SOCIAL AND COMMUNITY SERVICES,CICC,MATERIALS,04/02/2021,9401637551,20,AMAZON.CO.UK MF83Q8ON4
OXFORDSHIRE CC,SOCIAL AND COMMUNITY SERVICES,CICC,MATERIALS,04/02/2021,9401637555,20,AMAZON.CO.UK MF90O8OT4
OXFORDSHIRE CC,SOCIAL AND COMMUNITY SERVICES,CICC,MATERIALS,04/02/2021,9401637545,20,AMAZON.CO.UK MF70X0O44
OXFORDSHIRE CC,SOCIAL AND COMMUNITY SERVICES,CICC,MATERIALS,04/02/2021,9401637549,20,AMAZON.CO.UK MF83D4OP4
OXFORDSHIRE CC,SOCIAL AND COMMUNITY SERVICES,CSS WITNEY,CATERING PROVISIONS,04/02/2021,9401637839,136.69,TESCO STORES 2008
OXFORDSHIRE CC,"CHILDRENS, YOUNG PEOPLE AND FAMILIES","	LEAVING CARE CITY 2",FURNITURE,04/02/2021,9401637583,0.99,AMAZON PRIME MF48G8CQ4
OXFORDSHIRE CC,"CHILDRENS, YOUNG PEOPLE AND FAMILIES",OXFORDSHIRE,TRAINING RELATED EXPENDITURE,04/02/2021,9401637587,45,CVAA UK LTD
OXFORDSHIRE CC,"CHILDRENS, YOUNG PEOPLE AND FAMILIES","	LEAVING CARE NORTH",FURNITURE,04/02/2021,9401637559,50.37,WF  WAYFAIR 3094796324
OXFORDSHIRE CC,"CHILDRENS, YOUNG PEOPLE AND FAMILIES",OXFORDSHIRE,TRAINING RELATED EXPENDITURE,04/02/2021,9401637591,45,CVAA UK LTD
OXFORDSHIRE CC,"CHILDRENS, YOUNG PEOPLE AND FAMILIES","	LEAVING CARE NORTH",CLOTHING AND UNIFORMS,04/02/2021,9401637563,59.99,BOOHOO.COM
OXFORDSHIRE CC,"CHILDRENS, YOUNG PEOPLE AND FAMILIES","	LEAVING CARE NORTH",OTHER EXPENSES,04/02/2021,9401637565,265,HALFORDS ON LINE
OXFORDSHIRE CC,"CHILDRENS, YOUNG PEOPLE AND FAMILIES",EYNSHAM,MATERIALS,04/02/2021,9401637567,557.99,CURRYS ONLINE
OXFORDSHIRE CC,SOCIAL AND COMMUNITY SERVICES,LOOKED AFTER SOUTH,MATERIALS,04/02/2021,9401637575,90,PRODIRECTRUNNING
OXFORDSHIRE CC,"CHILDRENS, YOUNG PEOPLE AND FAMILIES",DIDCOT MOVE-ON HOME,CATERING PROVISIONS,04/02/2021,9401637579,23.22,SAINSBURYS 2067
OXFORDSHIRE CC,"CHILDRENS, YOUNG PEOPLE AND FAMILIES","	LEAVING CARE SOUTH",CATERING PROVISIONS,04/02/2021,9401637613,1,TESCO STORES 2008
OXFORDSHIRE CC,CORPORATE CORE,"MARKETING, COMMUNICATIONS & ENGAGEMENT",HIRED AND CONTRACTED SERVICES,04/02/2021,9401637627,32.97,CANVA  02955-8223672
OXFORDSHIRE CC,"CHILDRENS, YOUNG PEOPLE AND FAMILIES",DIDCOT MOVE-ON HOME,CATERING PROVISIONS,04/02/2021,9401637923,4.4,SAINSBURYS SACAT 2067
OXFORDSHIRE CC,"CHILDRENS, YOUNG PEOPLE AND FAMILIES",DIDCOT MOVE-ON HOME,CATERING PROVISIONS,04/02/2021,9401637925,7.14,SAINSBURYS SACAT 2067
OXFORDSHIRE CC,"CHILDRENS, YOUNG PEOPLE AND FAMILIES",DIDCOT MOVE-ON HOME,DOMESTIC AND CLEANING EQUIPMENT,04/02/2021,9401637929,8,SAINSBURYS SACAT 2067
OXFORDSHIRE CC,"CHILDRENS, YOUNG PEOPLE AND FAMILIES",CSS WALLINGFORD,CATERING PROVISIONS,04/02/2021,9401637373,8.7,WAITROSE 675
OXFORDSHIRE CC,ENVIRONMENT AND ECONOMY,ELEC NPR ST LTG,MATERIALS,04/02/2021,9401637377,46.75,AMZNMKTPLACE
OXFORDSHIRE CC,"CHILDRENS, YOUNG PEOPLE AND FAMILIES","	OCCG GRANT",CATERING PROVISIONS,04/02/2021,9401637653,15.09,TESCO STORE 2064
OXFORDSHIRE CC,"CHILDRENS, YOUNG PEOPLE AND FAMILIES","	LOOKED AFTER NORTH",HIRE OF ACCOMMODATION AND FACILITIES,04/02/2021,9401637657,105,PREMIER INN
OXFORDSHIRE CC,SOCIAL AND COMMUNITY SERVICES,CSS WITNEY,MATERIALS,03/02/2021,9398912283,10.38,ROBERT DYAS HOLDNG LTD
OXFORDSHIRE CC,"CHILDRENS, YOUNG PEOPLE AND FAMILIES","	LAC PUPIL PREMIUM",OTHER EXPENSES,03/02/2021,9398912285,280,HP INC HP.COM STORE UK
OXFORDSHIRE CC,"CHILDRENS, YOUNG PEOPLE AND FAMILIES","	LEAVING CARE SOUTH",OTHER EXPENSES,03/02/2021,9398912287,97.94,ARGOS LTD
OXFORDSHIRE CC,"CHILDRENS, YOUNG PEOPLE AND FAMILIES","	LEAVING CARE SOUTH",OTHER EXPENSES,03/02/2021,9398912289,35,ARGOS LTD
OXFORDSHIRE CC,"CHILDRENS, YOUNG PEOPLE AND FAMILIES","	LOOKED AFTER CITY 2",OTHER TRANSPORT ARRANGEMENTS,03/02/2021,9398912665,15,IZ  ROYAL CARS OXFORD
OXFORDSHIRE CC,"CHILDRENS, YOUNG PEOPLE AND FAMILIES","	LEAVING CARE SOUTH",MATERIALS,03/02/2021,9398912671,56.49,ARGOS LTD
OXFORDSHIRE CC,"CHILDRENS, YOUNG PEOPLE AND FAMILIES",FSP NON-STAFFING - CENTRAL,HIRE OF ACCOMMODATION AND FACILITIES,03/02/2021,9398912683,279,PREMIER INN
OXFORDSHIRE CC,CORPORATE CORE,ICT OPERATIONS & MAI,MATERIALS,03/02/2021,9398912673,71.91,PAYPAL  EOUTLETEBAY EB
OXFORDSHIRE CC,CORPORATE CORE,ICT OPERATIONS & MAI,IT SERVICES,03/02/2021,9398912675,300,COMMS365 LIMITED
OXFORDSHIRE CC,"CHILDRENS, YOUNG PEOPLE AND FAMILIES",EYNSHAM,CATERING PROVISIONS,03/02/2021,9398912677,108.12,TESCO STORES 2008
OXFORDSHIRE CC,"CHILDRENS, YOUNG PEOPLE AND FAMILIES",WITNEY,CATERING PROVISIONS,03/02/2021,9398912303,13.66,CO-OP GROUP 070582
OXFORDSHIRE CC,"CHILDRENS, YOUNG PEOPLE AND FAMILIES",UASC 16&17,MATERIALS,03/02/2021,9398912305,19.98,ARGOS LTD
OXFORDSHIRE CC,ENVIRONMENT AND ECONOMY,HARD FM,MATERIALS,03/02/2021,9398912307,20,HALFORDS ON LINE
OXFORDSHIRE CC,ENVIRONMENT AND ECONOMY,HARD FM,HARDWARE AND CROCKERY,03/02/2021,9398912309,5.64,SCREWFIX DIRECT
OXFORDSHIRE CC,ENVIRONMENT AND ECONOMY,HARD FM,HARDWARE AND CROCKERY,03/02/2021,9398912311,56.51,SCREWFIX DIRECT
OXFORDSHIRE CC,CORPORATE CORE,CATERING MANAGEMENT SOFT FM,CATERING,03/02/2021,9398912705,67.01,BRAKE BROS LTD
OXFORDSHIRE CC,ENVIRONMENT AND ECONOMY,THE OXFORDSHIRE MUSEUM - SITE,EQUIPMENT,03/02/2021,9398912543,7.96,AMAZON.CO.UK MF8W80C04
OXFORDSHIRE CC,SOCIAL AND COMMUNITY SERVICES,LOOKED AFTER NORTH,POSTAGE AND DELIVERY,03/02/2021,9398912545,2.65,POST OFFICE COUNTER
OXFORDSHIRE CC,SOCIAL AND COMMUNITY SERVICES,"	MUSEUMS COLLECTIONS",OTHER SERVICES,03/02/2021,9398912555,476.92,SP   CONSERVATION RESO
OXFORDSHIRE CC,SOCIAL AND COMMUNITY SERVICES,CSS WITNEY,MATERIALS,03/02/2021,9398912579,10.98,AMZNMKTPLACE AMAZON.CO
OXFORDSHIRE CC,SOCIAL AND COMMUNITY SERVICES,CSS WANTAGE,CATERING PROVISIONS,03/02/2021,9398912581,10.6,SAINSBURYS SACAT 2244
OXFORDSHIRE CC,ENVIRONMENT AND ECONOMY,"	FLEET OPERATIONS",PAYMENT TO GOVERNMENT DEPARTMENTS,03/02/2021,9398912583,401,DVSA
OXFORDSHIRE CC,ENVIRONMENT AND ECONOMY,"	FLEET OPERATIONS",ROAD FUND LICENCES AND MOTS,03/02/2021,9398912587,272.5,DVLA VEHICLE TAX
OXFORDSHIRE CC,SOCIAL AND COMMUNITY SERVICES,LOOKED AFTER SOUTH,MATERIALS,03/02/2021,9398912397,27.99,NEXT DIRECTORY
OXFORDSHIRE CC,ENVIRONMENT AND ECONOMY,LIB ICT SUPPRT&MAINT,MATERIALS,03/02/2021,9398912405,312.65,AMZNMKTPLACE
OXFORDSHIRE CC,"CHILDRENS, YOUNG PEOPLE AND FAMILIES",DIDCOT MOVE-ON HOME,CATERING,03/02/2021,9398912411,5.05,SAINSBURYS SACAT 2067
OXFORDSHIRE CC,"CHILDRENS, YOUNG PEOPLE AND FAMILIES","	LEAVING CARE SOUTH",CLOTHING AND UNIFORMS,03/02/2021,9398912437,18.5,ETSY.COM GOLDCRESTDESI
OXFORDSHIRE CC,ENVIRONMENT AND ECONOMY,"	KNIGHTS COURT",CATERING PROVISIONS,03/02/2021,9398912451,1.49,COWLEY CONVENIENCE STO
OXFORDSHIRE CC,"CHILDRENS, YOUNG PEOPLE AND FAMILIES","	40 THE MOORS",MATERIALS,03/02/2021,9398912611,18.98,AMZNMKTPLACE AMAZON.CO
OXFORDSHIRE CC,"CHILDRENS, YOUNG PEOPLE AND FAMILIES","	40 THE MOORS",MATERIALS,03/02/2021,9398912613,40,AMZNMKTPLACE AMAZON.CO
OXFORDSHIRE CC,"CHILDRENS, YOUNG PEOPLE AND FAMILIES","	40 THE MOORS",MATERIALS,03/02/2021,9398912617,21.49,AMZNMKTPLACE AMAZON.CO
OXFORDSHIRE CC,"CHILDRENS, YOUNG PEOPLE AND FAMILIES","	40 THE MOORS",MATERIALS,03/02/2021,9398912621,13.98,AMZNMKTPLACE AMAZON.CO
OXFORDSHIRE CC,"CHILDRENS, YOUNG PEOPLE AND FAMILIES","	40 THE MOORS",MATERIALS,03/02/2021,9398912623,24.99,AMZNMKTPLACE AMAZON.CO
OXFORDSHIRE CC,"CHILDRENS, YOUNG PEOPLE AND FAMILIES","	40 THE MOORS",MATERIALS,03/02/2021,9398912625,18.99,AMZNMKTPLACE AMAZON.CO
OXFORDSHIRE CC,"CHILDRENS, YOUNG PEOPLE AND FAMILIES","	40 THE MOORS",MATERIALS,03/02/2021,9398912627,17.1,AMZNMKTPLACE AMAZON.CO
OXFORDSHIRE CC,"CHILDRENS, YOUNG PEOPLE AND FAMILIES","	40 THE MOORS",FURNITURE,03/02/2021,9398912629,117,DUNELM
OXFORDSHIRE CC,"CHILDRENS, YOUNG PEOPLE AND FAMILIES","	40 THE MOORS",TELEPHONE - EQUIPMENT,03/02/2021,9398912637,20,THREE
OXFORDSHIRE CC,"CHILDRENS, YOUNG PEOPLE AND FAMILIES",EYNSHAM,CATERING,03/02/2021,9398912641,70.24,DOMINO S PIZZA
OXFORDSHIRE CC,"CHILDRENS, YOUNG PEOPLE AND FAMILIES","	LEADING THE EYFS Q&I",SUBSCRIPTIONS,03/02/2021,9398912467,335,WP-THE BRITISH ASS
OXFORDSHIRE CC,"CHILDRENS, YOUNG PEOPLE AND FAMILIES",0-5 STDS & PROGRESS,EQUIPMENT,03/02/2021,9398912469,28.99,AMZNMKTPLACE
OXFORDSHIRE CC,CORPORATE CORE,LIBRARY COLLECTIONS,"BOOKS, DVDS AND CDS",03/02/2021,9398912471,993,OVERDRIVE DIST
OXFORDSHIRE CC,"CHILDRENS, YOUNG PEOPLE AND FAMILIES",THAME E&A HOME,CATERING PROVISIONS,03/02/2021,9398912475,21.98,ASDA SUPERSTORE
OXFORDSHIRE CC,ENTERPRISEVC,,CAR LEASING - PRIVATE RENTALS,03/02/2021,9398912699,52.75,ENTERPRISE RENT-A-CAR
OXFORDSHIRE CC,ENTERPRISEVC,,CAR LEASING - PRIVATE RENTALS,03/02/2021,9398912701,128.42,ENTERPRISE RENT-A-CAR
OXFORDSHIRE CC,CORPORATE CORE,CATERING MANAGEMENT SOFT FM,CATERING,03/02/2021,9398912703,21.51,BRAKE BROS LTD
OXFORDSHIRE CC,ENVIRONMENT AND ECONOMY,HARD FM,HARDWARE AND CROCKERY,03/02/2021,9398912313,15.86,B & Q 1062
OXFORDSHIRE CC,ENVIRONMENT AND ECONOMY,HARD FM,HARDWARE AND CROCKERY,03/02/2021,9398912315,114,WICKES BANBURY
OXFORDSHIRE CC,ENVIRONMENT AND ECONOMY,HARD FM,HARDWARE AND CROCKERY,03/02/2021,9398912317,24,B & Q 1156
OXFORDSHIRE CC,"CHILDRENS, YOUNG PEOPLE AND FAMILIES",THAME E&A HOME,CATERING PROVISIONS,03/02/2021,9398912321,37.5,MARKS&SPENCER PLC
OXFORDSHIRE CC,"CHILDRENS, YOUNG PEOPLE AND FAMILIES",UASC POST 18,OTHER EXPENSES,03/02/2021,9398912323,431,IKEA LTD SHOP ONLINE
OXFORDSHIRE CC,"CHILDRENS, YOUNG PEOPLE AND FAMILIES",UASC POST 18,OTHER EXPENSES,03/02/2021,9398912325,38,DUNELM
OXFORDSHIRE CC,"CHILDRENS, YOUNG PEOPLE AND FAMILIES",THAME E&A HOME,CATERING PROVISIONS,03/02/2021,9398912329,3.64,SAINSBURYS SACAT 2096
OXFORDSHIRE CC,"CHILDRENS, YOUNG PEOPLE AND FAMILIES",UASC POST 18,OTHER EXPENSES,03/02/2021,9398912327,-4,DUNELM
OXFORDSHIRE CC,"CHILDRENS, YOUNG PEOPLE AND FAMILIES",CNTL EARLY HELP-RHIL,MATERIALS,03/02/2021,9398912333,17.4,FAMILY LINKS
OXFORDSHIRE CC,"CHILDRENS, YOUNG PEOPLE AND FAMILIES","	40 THE MOORS",CATERING PROVISIONS,03/02/2021,9398912365,10.07,CO-OPERATIVE FOOD
OXFORDSHIRE CC,CORPORATE CORE,INCOME TEAM,COURT FEES,03/02/2021,9398912371,60,WWW.MONEYCLAIM.GOV
OXFORDSHIRE CC,CORPORATE CORE,INCOME TEAM,COURT FEES,03/02/2021,9398912373,105,WWW.MONEYCLAIM.GOV
OXFORDSHIRE CC,ENVIRONMENT AND ECONOMY,LIB ICT SUPPRT&MAINT,MATERIALS,03/02/2021,9398912403,168.35,AMZNMKTPLACE
OXFORDSHIRE CC,"CHILDRENS, YOUNG PEOPLE AND FAMILIES","	VISUAL IMPAIRMENT",DISABILITY AIDS AND EQUIPMENT,02/02/2021,9396283739,48.15,AMAZON.CO.UK MV6A18RF4
OXFORDSHIRE CC,SOCIAL AND COMMUNITY SERVICES,CSS WITNEY,MATERIALS,02/02/2021,9396283727,2.29,AMZNMKTPLACE
OXFORDSHIRE CC,SOCIAL AND COMMUNITY SERVICES,CSS WITNEY,MATERIALS,02/02/2021,9396283731,5.45,AMZNMKTPLACE
OXFORDSHIRE CC,SOCIAL AND COMMUNITY SERVICES,CSS WALLINGFORD,LICENCES,02/02/2021,9396283735,157.5,TVLICENSING.CO.UK
OXFORDSHIRE CC,"CHILDRENS, YOUNG PEOPLE AND FAMILIES","	40 THE MOORS",MATERIALS,02/02/2021,9396283765,5.98,OXFORD BUILDING SUPPLI
OXFORDSHIRE CC,"CHILDRENS, YOUNG PEOPLE AND FAMILIES",DIDCOT MOVE-ON HOME,CATERING PROVISIONS,02/02/2021,9396283781,8.65,SAINSBURYS SACAT 2067
OXFORDSHIRE CC,"CHILDRENS, YOUNG PEOPLE AND FAMILIES",EYNSHAM,CATERING PROVISIONS,02/02/2021,9396283807,6.5,MAYFIELDEGGS
OXFORDSHIRE CC,"CHILDRENS, YOUNG PEOPLE AND FAMILIES",WITNEY,CATERING PROVISIONS,02/02/2021,9396283317,26.5,SAINSBURYS SACAT 0632
OXFORDSHIRE CC,ENVIRONMENT AND ECONOMY,HARD FM,GENERAL MAINTENANCE,02/02/2021,9396283325,143.41,WOLSELEY UK
OXFORDSHIRE CC,ENVIRONMENT AND ECONOMY,HARD FM,HARDWARE AND CROCKERY,02/02/2021,9396283329,35.98,C BREWER & SONS LT
OXFORDSHIRE CC,ENVIRONMENT AND ECONOMY,HARD FM,HARDWARE AND CROCKERY,02/02/2021,9396283337,109.26,WICKES BANBURY
OXFORDSHIRE CC,ENVIRONMENT AND ECONOMY,HARD FM,HARDWARE AND CROCKERY,02/02/2021,9396283341,64.97,SCREWFIX DIRECT
OXFORDSHIRE CC,ENVIRONMENT AND ECONOMY,"	TVERC",IT SOFTWARE,02/02/2021,9396283359,7.54,COGNITO-PRO
OXFORDSHIRE CC,"CHILDRENS, YOUNG PEOPLE AND FAMILIES",UASC POST 18,OTHER EXPENSES,02/02/2021,9396283385,573,CURRYS ONLINE
OXFORDSHIRE CC,"CHILDRENS, YOUNG PEOPLE AND FAMILIES",UASC POST 18,OTHER EXPENSES,02/02/2021,9396283391,21.99,CURRYS ONLINE
OXFORDSHIRE CC,"CHILDRENS, YOUNG PEOPLE AND FAMILIES","	LEAVING CARE CITY 1",OTHER EXPENSES,02/02/2021,9396283395,119.99,ARGOS LTD
OXFORDSHIRE CC,SOCIAL AND COMMUNITY SERVICES,WITNEY MOVE ON HOME,CATERING PROVISIONS,02/02/2021,9396283425,4.2,CO-OP GROUP 070582
OXFORDSHIRE CC,ENTERPRISEVC,PROPERTY & INVESTMENT LEADERSHIP TEAM,IT SOFTWARE,02/02/2021,9396283427,8.48,LEAVINGCARD.COM
OXFORDSHIRE CC,SOCIAL AND COMMUNITY SERVICES,CSS BICESTER,CATERING PROVISIONS,02/02/2021,9396283441,93.15,SAINSBURYS.CO.UK
OXFORDSHIRE CC,CORPORATE CORE,INCOME TEAM,COURT FEES,02/02/2021,9396283445,462.18,WWW.MONEYCLAIM.GOV
OXFORDSHIRE CC,"CHILDRENS, YOUNG PEOPLE AND FAMILIES",EYNSHAM,MATERIALS,02/02/2021,9396283457,60,ARGOS LTD
OXFORDSHIRE CC,CORPORATE CORE,"	LEGAL SERVICES",MATERIALS,02/02/2021,9396283679,32.17,AMAZON.CO.UK MV3S49IO4
OXFORDSHIRE CC,CORPORATE CORE,"	CC TRAINING",EDUCATIONAL AND VOCATIONAL TRAINING ,02/02/2021,9396283681,79.5,CHARTERED INSTITUTE OF
OXFORDSHIRE CC,"CHILDRENS, YOUNG PEOPLE AND FAMILIES","	40 THE MOORS",CATERING PROVISIONS,02/02/2021,9396283693,4.65,CO-OPERATIVE FOOD
OXFORDSHIRE CC,SOCIAL AND COMMUNITY SERVICES,"	MUSEUMS COLLECTIONS",OTHER SERVICES,02/02/2021,9396283701,94.9,WHALEYS /BRADFORD/ LTD
OXFORDSHIRE CC,SOCIAL AND COMMUNITY SERVICES,"	MUSEUMS COLLECTIONS",OTHER SERVICES,02/02/2021,9396283703,385.8,KILLGERMS CHEMICAL
OXFORDSHIRE CC,SOCIAL AND COMMUNITY SERVICES,"	MUSEUMS COLLECTIONS",DRUGS AND MEDICAL SUPPLIES,02/02/2021,9396283705,230.35,WWW.FISHER.CO.UK
OXFORDSHIRE CC,"CHILDRENS, YOUNG PEOPLE AND FAMILIES",THAME E&A HOME,CATERING PROVISIONS,02/02/2021,9396283491,3.88,CO-OPERATIVE FOOD
OXFORDSHIRE CC,"CHILDRENS, YOUNG PEOPLE AND FAMILIES",THAME E&A HOME,CATERING PROVISIONS,02/02/2021,9396283493,159.03,TESCO STORES 2038
OXFORDSHIRE CC,"CHILDRENS, YOUNG PEOPLE AND FAMILIES","	DISABILITIES TEAM-C",REGISTRATION AND INSPECTION FEES,02/02/2021,9396283501,-11,GEN REGISTER OFFICE
OXFORDSHIRE CC,"CHILDRENS, YOUNG PEOPLE AND FAMILIES","	RIVERSIDE CENTRE",SUBSCRIPTIONS,02/02/2021,9396283503,15,PAYPAL  BRITISHCANO
OXFORDSHIRE CC,"CHILDRENS, YOUNG PEOPLE AND FAMILIES",UASC POST 18,OTHER EXPENSES,02/02/2021,9396283519,32,EBAY O 01-06509-06716
OXFORDSHIRE CC,"CHILDRENS, YOUNG PEOPLE AND FAMILIES",UASC POST 18,OTHER EXPENSES,02/02/2021,9396283523,40,PAYPAL  QPRAYTHEEAR EB
OXFORDSHIRE CC,"CHILDRENS, YOUNG PEOPLE AND FAMILIES","	OCCG GRANT",BIRTHDAY ALLOWANCE,02/02/2021,9396283557,7,SAINSBURYS SACAT 2067
OXFORDSHIRE CC,"CHILDRENS, YOUNG PEOPLE AND FAMILIES","	OCCG GRANT",BIRTHDAY ALLOWANCE,02/02/2021,9396283561,8.99,ARGOS LTD
OXFORDSHIRE CC,"CHILDRENS, YOUNG PEOPLE AND FAMILIES","	LOOKED AFTER NORTH",REGISTRATION AND INSPECTION FEES,02/02/2021,9396283567,14,GEN REGISTER OFFICE
OXFORDSHIRE CC,"CHILDRENS, YOUNG PEOPLE AND FAMILIES",MODERATION,EDUCATIONAL AND VOCATIONAL TRAINING ,02/02/2021,9396283575,248,WP-THE BRITISH ASS
OXFORDSHIRE CC,"CHILDRENS, YOUNG PEOPLE AND FAMILIES",EYNSHAM,CATERING PROVISIONS,02/02/2021,9396283813,0.59,CO-OPERATIVE FOOD
OXFORDSHIRE CC,"CHILDRENS, YOUNG PEOPLE AND FAMILIES",FAMILY SOLUTIONS PLUS NON-STAFF - NORTH,OTHER EXPENSES,02/02/2021,9396283817,2.58,SIBFORDSTORES LTD
OXFORDSHIRE CC,"CHILDRENS, YOUNG PEOPLE AND FAMILIES",CNTL EARLY HELP-BRTN,CATERING PROVISIONS,02/02/2021,9396283821,1,TESCO STORES 4480
OXFORDSHIRE CC,CORPORATE CORE,"	COMMUNICATIONS",IT SOFTWARE,02/02/2021,9396283841,23.26,WIX.COM BETTER-OXFORDS
OXFORDSHIRE CC,SOCIAL AND COMMUNITY SERVICES,CSS WITNEY,CATERING PROVISIONS,02/02/2021,9396283281,23.57,LIDL GB WITNEY
OXFORDSHIRE CC,"CHILDRENS, YOUNG PEOPLE AND FAMILIES",THAME E&A HOME,MATERIALS,02/02/2021,9396283293,23.28,AMAZON.CO.UK MV8KY9RK4
OXFORDSHIRE CC,"CHILDRENS, YOUNG PEOPLE AND FAMILIES",FAMILY SOLUTIONS PLUS NON-STAFF - NORTH,"SUPPLIES, STATIONERY AND MATERIALS",02/02/2021,9396283277,177.98,HIPPOBAG
OXFORDSHIRE CC,CORPORATE CORE,,"SUPPLIES, STATIONERY AND MATERIALS",02/02/2021,9396283847,6.99,LYRECO UK LTD
OXFORDSHIRE CC,CORPORATE CORE,,"SUPPLIES, STATIONERY AND MATERIALS",02/02/2021,9396283851,1.03,LYRECO UK LTD
OXFORDSHIRE CC,CORPORATE CORE,,"SUPPLIES, STATIONERY AND MATERIALS",02/02/2021,9396283857,16.8,LYRECO UK LTD
OXFORDSHIRE CC,SOCIAL AND COMMUNITY SERVICES,CSS WITNEY,MATERIALS,02/02/2021,9396283301,32.94,FINDEL EDUCATION
OXFORDSHIRE CC,ENVIRONMENT AND ECONOMY,HARD FM,HARDWARE AND CROCKERY,02/02/2021,9396283333,26,B & Q 1062
OXFORDSHIRE CC,SOCIAL AND COMMUNITY SERVICES,"	SHARED LIVES",MATERIALS,01/02/2021,9392822619,7.99,AMZNMKTPLACE
OXFORDSHIRE CC,SOCIAL AND COMMUNITY SERVICES,"	SHARED LIVES",MATERIALS,01/02/2021,9392822685,-7.99,AMZNMKTPLACE AMAZON.CO
OXFORDSHIRE CC,SOCIAL AND COMMUNITY SERVICES,"	SHARED LIVES",MATERIALS,01/02/2021,9392822629,-7.99,AMZ LIFE HEALTHCARE
OXFORDSHIRE CC,SOCIAL AND COMMUNITY SERVICES,"	SHARED LIVES",MATERIALS,01/02/2021,9392822633,-7.99,AMZ LIFE HEALTHCARE
OXFORDSHIRE CC,SOCIAL AND COMMUNITY SERVICES,"	SHARED LIVES",MATERIALS,01/02/2021,9392822641,-7.99,AMZ LIFE HEALTHCARE
OXFORDSHIRE CC,SOCIAL AND COMMUNITY SERVICES,"	SHARED LIVES",MATERIALS,01/02/2021,9392822651,-7.99,AMZ LIFE HEALTHCARE
OXFORDSHIRE CC,SOCIAL AND COMMUNITY SERVICES,"	SHARED LIVES",MATERIALS,01/02/2021,9392822661,-7.99,AMZ LIFE HEALTHCARE
OXFORDSHIRE CC,SOCIAL AND COMMUNITY SERVICES,"	SHARED LIVES",MATERIALS,01/02/2021,9392822665,-7.99,AMZ LIFE HEALTHCARE
OXFORDSHIRE CC,SOCIAL AND COMMUNITY SERVICES,"	SHARED LIVES",MATERIALS,01/02/2021,9392822675,-7.99,AMZNMKTPLACE AMAZON.CO
OXFORDSHIRE CC,"CHILDRENS, YOUNG PEOPLE AND FAMILIES","	LEAVING CARE NORTH",MATERIALS,01/02/2021,9392821625,249.99,AMAZON.CO.UK MV3XG5234
OXFORDSHIRE CC,"CHILDRENS, YOUNG PEOPLE AND FAMILIES","	C&I BASE LORD WILL'M",CLEANING MATERIALS,01/02/2021,9392821915,6,SAINSBURYS SACAT 2096
OXFORDSHIRE CC,"CHILDRENS, YOUNG PEOPLE AND FAMILIES","	LEAVING CARE NORTH",MATERIALS,01/02/2021,9392821949,23.97,AMAZON.CO.UK MV2L94984
OXFORDSHIRE CC,"CHILDRENS, YOUNG PEOPLE AND FAMILIES",THAME E&A HOME,MATERIALS,01/02/2021,9392821447,6.95,AMZNMKTPLACE
OXFORDSHIRE CC,"CHILDRENS, YOUNG PEOPLE AND FAMILIES",THAME E&A HOME,MATERIALS,01/02/2021,9392821449,39.89,AMZNMKTPLACE
OXFORDSHIRE CC,"CHILDRENS, YOUNG PEOPLE AND FAMILIES","	HOME SUPPORT",PAYMENTS TO VOLUNTARY BODIES,01/02/2021,9392822521,35,RM SUBSCRIPTION
OXFORDSHIRE CC,SOCIAL AND COMMUNITY SERVICES,ADULTS AT RISK CHERW,HIRE OF ACCOMMODATION AND FACILITIES,01/02/2021,9392822527,8.75,HOLIDAY INNS
OXFORDSHIRE CC,SOCIAL AND COMMUNITY SERVICES,ADULTS AT RISK CHERW,HIRE OF ACCOMMODATION AND FACILITIES,01/02/2021,9392822529,75,HOLIDAY INNS
OXFORDSHIRE CC,SOCIAL AND COMMUNITY SERVICES,ADULTS AT RISK CHERW,HIRE OF ACCOMMODATION AND FACILITIES,01/02/2021,9392822531,370,LISMORE & ROTHWELL
OXFORDSHIRE CC,CORPORATE CORE,ICT OPERATIONS & MAI,MATERIALS,01/02/2021,9392822543,105.25,AMZNMKTPLACE
OXFORDSHIRE CC,SOCIAL AND COMMUNITY SERVICES,CSS WITNEY,CATERING PROVISIONS,01/02/2021,9392821511,2.2,CO-OP GROUP 070582
OXFORDSHIRE CC,"CHILDRENS, YOUNG PEOPLE AND FAMILIES",UASC POST 18,OTHER EXPENSES,01/02/2021,9392821541,15,SMARTY CO UK
OXFORDSHIRE CC,"CHILDRENS, YOUNG PEOPLE AND FAMILIES",UASC 16&17,RESIDENTIAL ACTIVITIES,01/02/2021,9392821545,27.99,AMZNMKTPLACE
OXFORDSHIRE CC,"CHILDRENS, YOUNG PEOPLE AND FAMILIES",EYNSHAM,CATERING PROVISIONS,01/02/2021,9392822557,161.08,TESCO STORES 2008
OXFORDSHIRE CC,SOCIAL AND COMMUNITY SERVICES,"	SHARED LIVES",OTHER EXPENSES,01/02/2021,9392822565,38.68,SERENATAFLOWERS
OXFORDSHIRE CC,SOCIAL AND COMMUNITY SERVICES,"	SHARED LIVES",MATERIALS,01/02/2021,9392822571,7.99,AMZNMKTPLACE AMAZON.CO
OXFORDSHIRE CC,SOCIAL AND COMMUNITY SERVICES,"	SHARED LIVES",MATERIALS,01/02/2021,9392822575,7.99,AMZNMKTPLACE AMAZON.CO
OXFORDSHIRE CC,SOCIAL AND COMMUNITY SERVICES,"	SHARED LIVES",MATERIALS,01/02/2021,9392822583,7.99,AMZNMKTPLACE AMAZON.CO
OXFORDSHIRE CC,SOCIAL AND COMMUNITY SERVICES,"	SHARED LIVES",MATERIALS,01/02/2021,9392822587,7.99,AMZNMKTPLACE
OXFORDSHIRE CC,SOCIAL AND COMMUNITY SERVICES,"	SHARED LIVES",MATERIALS,01/02/2021,9392822593,7.99,AMZNMKTPLACE
OXFORDSHIRE CC,SOCIAL AND COMMUNITY SERVICES,"	SHARED LIVES",MATERIALS,01/02/2021,9392822601,7.99,AMZNMKTPLACE
OXFORDSHIRE CC,SOCIAL AND COMMUNITY SERVICES,"	SHARED LIVES",MATERIALS,01/02/2021,9392822609,7.99,AMZNMKTPLACE
OXFORDSHIRE CC,ENVIRONMENT AND ECONOMY,HARD FM,HARDWARE AND CROCKERY,01/02/2021,9392821565,5.1,SCREWFIX DIRECT
OXFORDSHIRE CC,"CHILDRENS, YOUNG PEOPLE AND FAMILIES",CSC COVID-19,"SUPPLIES, STATIONERY AND MATERIALS",01/02/2021,9392821553,42,AMZNMKTPLACE
OXFORDSHIRE CC,ENVIRONMENT AND ECONOMY,HARD FM,HARDWARE AND CROCKERY,01/02/2021,9392821567,9.12,CITY ELECTRICAL FA
OXFORDSHIRE CC,ENVIRONMENT AND ECONOMY,HARD FM,EQUIPMENT,01/02/2021,9392821569,23.39,WWW.THELIGHTBULBCOMPAN
OXFORDSHIRE CC,ENVIRONMENT AND ECONOMY,HARD FM,HARDWARE AND CROCKERY,01/02/2021,9392821577,13.98,TOOLSTATION LTD
OXFORDSHIRE CC,ENVIRONMENT AND ECONOMY,HARD FM,GENERAL MAINTENANCE,01/02/2021,9392821585,341.58,WOLSELEY UK
OXFORDSHIRE CC,ENVIRONMENT AND ECONOMY,HARD FM,MATERIALS,01/02/2021,9392821595,21.27,AMZNMKTPLACE AMAZON.CO
OXFORDSHIRE CC,ENVIRONMENT AND ECONOMY,COUNTY LIBRARY,EQUIPMENT,01/02/2021,9392821603,29.06,BANBURY HEATING SUPPLI
OXFORDSHIRE CC,ENVIRONMENT AND ECONOMY,COUNTY LIBRARY,HARDWARE AND CROCKERY,01/02/2021,9392821609,32.15,CITY PLUMBING
OXFORDSHIRE CC,SOCIAL AND COMMUNITY SERVICES,"	SHARED LIVES",MATERIALS,01/02/2021,9392822611,7.99,AMZNMKTPLACE
OXFORDSHIRE CC,SOCIAL AND COMMUNITY SERVICES,CSS WITNEY,MATERIALS,01/02/2021,9392822409,7.65,AMZNMKTPLACE AMAZON.CO
OXFORDSHIRE CC,SOCIAL AND COMMUNITY SERVICES,CSS WITNEY,MATERIALS,01/02/2021,9392822417,11.99,AMZNMKTPLACE AMAZON.CO
OXFORDSHIRE CC,SOCIAL AND COMMUNITY SERVICES,CSS WITNEY,MATERIALS,01/02/2021,9392822419,4.99,AMZNMKTPLACE AMAZON.CO
OXFORDSHIRE CC,"CHILDRENS, YOUNG PEOPLE AND FAMILIES",EYNSHAM,CATERING PROVISIONS,01/02/2021,9392822467,49.6,SAINSBURYS 0632
OXFORDSHIRE CC,"CHILDRENS, YOUNG PEOPLE AND FAMILIES",S&A INTERVENTION GRT,"PUBLICITY, PROMOTIONS AND ADVERTISEMENT",01/02/2021,9392822445,23.81,FACEBK  NLD99Y2YA2
OXFORDSHIRE CC,SOCIAL AND COMMUNITY SERVICES,UASC 16&17,MATERIALS,01/02/2021,9392821673,479.98,AMAZON.CO.UK MV6XB42E4
OXFORDSHIRE CC,"CHILDRENS, YOUNG PEOPLE AND FAMILIES","	LEAVING CARE CITY 1",OTHER EXPENSES,01/02/2021,9392821679,83,ARGOS LTD
OXFORDSHIRE CC,SOCIAL AND COMMUNITY SERVICES,"	SHARED LIVES",MATERIALS,01/02/2021,9392822691,-7.99,AMZNMKTPLACE AMAZON.CO
OXFORDSHIRE CC,"CHILDRENS, YOUNG PEOPLE AND FAMILIES",EYNSHAM,MATERIALS,01/02/2021,9392822697,11.8,AMZNMKTPLACE
OXFORDSHIRE CC,"CHILDRENS, YOUNG PEOPLE AND FAMILIES",EYNSHAM,CATERING PROVISIONS,01/02/2021,9392822709,28.2,SAINSBURYS SACAT 0642
OXFORDSHIRE CC,"CHILDRENS, YOUNG PEOPLE AND FAMILIES",CNTL ERLY HELP-BBLEY,CATERING PROVISIONS,01/02/2021,9392822729,1.09,TESCO STORE 2990
OXFORDSHIRE CC,"CHILDRENS, YOUNG PEOPLE AND FAMILIES",CNTL ERLY HELP-BBLEY,OTHER TRANSPORT ARRANGEMENTS,01/02/2021,9392822739,6,THE OXFORDSHIRE TAXI C
OXFORDSHIRE CC,"CHILDRENS, YOUNG PEOPLE AND FAMILIES",EYNSHAM,CATERING PROVISIONS,01/02/2021,9392821687,2.45,CO-OPERATIVE FOOD
OXFORDSHIRE CC,"CHILDRENS, YOUNG PEOPLE AND FAMILIES",DIDCOT MOVE-ON HOME,CATERING PROVISIONS,01/02/2021,9392821703,9.85,SAINSBURYS SACAT 2067
OXFORDSHIRE CC,"CHILDRENS, YOUNG PEOPLE AND FAMILIES","	LOOKED AFTER CITY 2",OTHER EXPENSES,01/02/2021,9392821713,892.93,WWW.JOHNLEWIS.COM
OXFORDSHIRE CC,"CHILDRENS, YOUNG PEOPLE AND FAMILIES","	LOOKED AFTER CITY 2",OTHER EXPENSES,01/02/2021,9392821713,70,WWW.JOHNLEWIS.COM
OXFORDSHIRE CC,CORPORATE CORE,LIBRARY COLLECTIONS,"BOOKS, DVDS AND CDS",01/02/2021,9392821715,"2,141.87",BOLINDA PUBLISHING
OXFORDSHIRE CC,CORPORATE CORE,,"SUPPLIES, STATIONERY AND MATERIALS",01/02/2021,9392822817,113.86,LYRECO UK LTD
OXFORDSHIRE CC,"CHILDRENS, YOUNG PEOPLE AND FAMILIES",THAME E&A HOME,CATERING PROVISIONS,01/02/2021,9392821791,87.39,TESCO STORES 2038
OXFORDSHIRE CC,"CHILDRENS, YOUNG PEOPLE AND FAMILIES",THAME E&A HOME,MATERIALS,01/02/2021,9392821803,3.99,HOLLAND & BARRETT
OXFORDSHIRE CC,ENVIRONMENT AND ECONOMY,THE RIDGEWAY,"SUPPLIES, STATIONERY AND MATERIALS",01/02/2021,9392821819,0.5,TESCO STORE 2668
OXFORDSHIRE CC,"CHILDRENS, YOUNG PEOPLE AND FAMILIES",EET SERVICE,MATERIALS,01/02/2021,9392821835,39.27,MAILCHIMP    MONTHLY
OXFORDSHIRE CC,ENVIRONMENT AND ECONOMY,SERVICE DEV OFFICER,"PUBLICITY, PROMOTIONS AND ADVERTISEMENT",01/02/2021,9392821843,5.26,FACEBK  AXR3XXSW52
OXFORDSHIRE CC,"CHILDRENS, YOUNG PEOPLE AND FAMILIES",THAME E&A HOME,CATERING PROVISIONS,01/02/2021,9392821879,13.61,MAK FOODS
OXFORDSHIRE CC,"CHILDRENS, YOUNG PEOPLE AND FAMILIES","	40 THE MOORS",TELEPHONE - EQUIPMENT,01/02/2021,9392822481,10,THREE
OXFORDSHIRE CC,"CHILDRENS, YOUNG PEOPLE AND FAMILIES","	40 THE MOORS",MATERIALS,01/02/2021,9392822485,20,AMAZON.CO.UK MV93O09V4
OXFORDSHIRE CC,"CHILDRENS, YOUNG PEOPLE AND FAMILIES","	SEN/ICT EQUIPMENT",TELEPHONE - EQUIPMENT,01/02/2021,9392822001,11.99,ZOOM.US 888-799-9666
OXFORDSHIRE CC,CORPORATE CORE,"MARKETING, COMMUNICATIONS & ENGAGEMENT","PUBLICITY, PROMOTIONS AND ADVERTISEMENT",01/02/2021,9392822015,500,GOOGLE  ADS4896546035
OXFORDSHIRE CC,CORPORATE CORE,"MARKETING, COMMUNICATIONS & ENGAGEMENT","PUBLICITY, PROMOTIONS AND ADVERTISEMENT",01/02/2021,9392822007,120.44,FACEBK NVWSUYJ9Z2
OXFORDSHIRE CC,"CHILDRENS, YOUNG PEOPLE AND FAMILIES",UASC 16&17,CATERING PROVISIONS,01/02/2021,9392822025,11.05,ALDI STORES 775-142
OXFORDSHIRE CC,CORPORATE CORE,LIBRARY COLLECTIONS,"BOOKS, DVDS AND CDS",01/02/2021,9392822093,20.63,OVERDRIVE DIST
OXFORDSHIRE CC,"CHILDRENS, YOUNG PEOPLE AND FAMILIES","	OCCG GRANT",CATERING PROVISIONS,01/02/2021,9392822037,8.5,WM MORRISONS STORE
OXFORDSHIRE CC,"CHILDRENS, YOUNG PEOPLE AND FAMILIES","	OCCG GRANT",CATERING PROVISIONS,01/02/2021,9392822039,24.93,ALDI 10 775
OXFORDSHIRE CC,"CHILDRENS, YOUNG PEOPLE AND FAMILIES","	OCCG GRANT",CATERING PROVISIONS,01/02/2021,9392822041,7.65,WM MORRISONS STORE
OXFORDSHIRE CC,"CHILDRENS, YOUNG PEOPLE AND FAMILIES","	LOOKED AFTER NORTH",OTHER EXPENSES,01/02/2021,9392822067,352.96,CURRYS ONLINE
OXFORDSHIRE CC,"CHILDRENS, YOUNG PEOPLE AND FAMILIES",THAME E&A HOME,CATERING PROVISIONS,01/02/2021,9392822125,47.6,SAINSBURYS SACAT 2096
OXFORDSHIRE CC,"CHILDRENS, YOUNG PEOPLE AND FAMILIES",THAME E&A HOME,MATERIALS,01/02/2021,9392822129,23.99,AMZNMKTPLACE
OXFORDSHIRE CC,ENVIRONMENT AND ECONOMY,"	MOUNT HOUSE",CATERING PROVISIONS,01/02/2021,9392822141,1.49,BUDGENS PEACHCROFT
OXFORDSHIRE CC,"CHILDRENS, YOUNG PEOPLE AND FAMILIES",UASC 16&17,RESIDENTIAL ACTIVITIES,01/02/2021,9392822147,34.98,FOOTASYLUM PLC
OXFORDSHIRE CC,"CHILDRENS, YOUNG PEOPLE AND FAMILIES","	FOSTER CARE RECRUIT","PUBLICITY, PROMOTIONS AND ADVERTISEMENT",01/02/2021,9392822247,151.07,FACEBK  K5RKZZN6L2
OXFORDSHIRE CC,"CHILDRENS, YOUNG PEOPLE AND FAMILIES",DIDCOT MOVE-ON HOME,CATERING PROVISIONS,01/02/2021,9392822253,75.86,TESCO STORE 2413
OXFORDSHIRE CC,ENVIRONMENT AND ECONOMY,"	OXFORDSHIRE MUSEUM",PURCHASE OF IT EQUIPMENT,01/02/2021,9392822281,39.98,AMAZON.CO.UK MV7C22274
OXFORDSHIRE CC,SOCIAL AND COMMUNITY SERVICES,CSS WITNEY,MATERIALS,01/02/2021,9392822413,28.98,AMZNMKTPLACE AMAZON.CO
OXFORDSHIRE CC,"CHILDRENS, YOUNG PEOPLE AND FAMILIES",UASC 16&17,OTHER EXPENSES,29/01/2021,9388170951,48,TESCO STORE 2064
OXFORDSHIRE CC,"CHILDRENS, YOUNG PEOPLE AND FAMILIES",UASC 16&17,CATERING PROVISIONS,29/01/2021,9388170953,24.58,TESCO STORE 2064
OXFORDSHIRE CC,"CHILDRENS, YOUNG PEOPLE AND FAMILIES","	OCCG GRANT",PAYMENTS TO TRANSPORT OPERATORS,29/01/2021,9388170955,36.5,WWW.TAXICODE.COM
OXFORDSHIRE CC,"CHILDRENS, YOUNG PEOPLE AND FAMILIES","	LEAVING CARE NORTH",FURNITURE,29/01/2021,9388170957,60,IKEA LTD SHOP ONLINE
OXFORDSHIRE CC,ENVIRONMENT AND ECONOMY,"	ABBEY HOUSE",CATERING PROVISIONS,29/01/2021,9388170963,1.15,WAITROSE 211
OXFORDSHIRE CC,CORPORATE CORE,,"SUPPLIES, STATIONERY AND MATERIALS",29/01/2021,9388171153,6.62,LYRECO UK LTD
OXFORDSHIRE CC,CORPORATE CORE,,"SUPPLIES, STATIONERY AND MATERIALS",29/01/2021,9388171155,7.07,LYRECO UK LTD
OXFORDSHIRE CC,CORPORATE CORE,,"SUPPLIES, STATIONERY AND MATERIALS",29/01/2021,9388171159,55.98,LYRECO UK LTD
OXFORDSHIRE CC,"CHILDRENS, YOUNG PEOPLE AND FAMILIES",CSC COVID-19,MATERIALS,29/01/2021,9388171163,219.23,CURRYS ONLINE
OXFORDSHIRE CC,SOCIAL AND COMMUNITY SERVICES,CSS WITNEY,MATERIALS,29/01/2021,9388171057,5.5,AMZNMKTPLACE
OXFORDSHIRE CC,SOCIAL AND COMMUNITY SERVICES,CSS WITNEY,MATERIALS,29/01/2021,9388171055,18.5,AMAZON.CO.UK MV2DT4SP4
OXFORDSHIRE CC,SOCIAL AND COMMUNITY SERVICES,CSS WITNEY,MATERIALS,29/01/2021,9388171059,14.95,AMZNMKTPLACE
OXFORDSHIRE CC,SOCIAL AND COMMUNITY SERVICES,CSS WITNEY,CATERING PROVISIONS,29/01/2021,9388170761,32.93,POUNDSTRETCHER 700
OXFORDSHIRE CC,"CHILDRENS, YOUNG PEOPLE AND FAMILIES",STH EARLY HELP-ABNDN,MATERIALS,29/01/2021,9388170765,47.99,AMAZON.CO.UK MV4ZE32X4
OXFORDSHIRE CC,"CHILDRENS, YOUNG PEOPLE AND FAMILIES",THAME E&A HOME,MATERIALS,29/01/2021,9388170767,11.49,AMZNMKTPLACE
OXFORDSHIRE CC,SOCIAL AND COMMUNITY SERVICES,CSS - ABINGDON,DRUGS AND MEDICAL SUPPLIES,29/01/2021,9388170783,13.8,B&M 515 - ABINGDON
OXFORDSHIRE CC,SOCIAL AND COMMUNITY SERVICES,CSS - ABINGDON,MATERIALS,29/01/2021,9388170797,71.85,BAKER ROSS
OXFORDSHIRE CC,ENVIRONMENT AND ECONOMY,HARD FM,GENERAL MAINTENANCE,29/01/2021,9388170801,39.2,WOLSELEY UK
OXFORDSHIRE CC,ENVIRONMENT AND ECONOMY,HARD FM,HARDWARE AND CROCKERY,29/01/2021,9388170803,130.88,C BREWER & SONS LT
OXFORDSHIRE CC,ENVIRONMENT AND ECONOMY,HARD FM,CATERING PROVISIONS,29/01/2021,9388170805,185.46,WWW.LINCAT.CO.UK
OXFORDSHIRE CC,CORPORATE CORE,"MARKETING, COMMUNICATIONS & ENGAGEMENT","PUBLICITY, PROMOTIONS AND ADVERTISEMENT",29/01/2021,9388170921,500,FACEBK NS4KGZW9Z2
OXFORDSHIRE CC,"CHILDRENS, YOUNG PEOPLE AND FAMILIES",KINGFISHER,CATERING,29/01/2021,9388170929,3,COSTA COFFEE 43041630
OXFORDSHIRE CC,"CHILDRENS, YOUNG PEOPLE AND FAMILIES",KINGFISHER,CATERING,29/01/2021,9388170931,5.85,COSTA COFFEE 43041630
OXFORDSHIRE CC,"CHILDRENS, YOUNG PEOPLE AND FAMILIES",KINGFISHER,CATERING,29/01/2021,9388170935,3.5,GREGGS PLC
OXFORDSHIRE CC,"CHILDRENS, YOUNG PEOPLE AND FAMILIES","	LOOKED AFTER NORTH",REGISTRATION AND INSPECTION FEES,29/01/2021,9388170943,13,LONDON BOROUGH OF
OXFORDSHIRE CC,"CHILDRENS, YOUNG PEOPLE AND FAMILIES","	VISUAL IMPAIRMENT",DISABILITY AIDS AND EQUIPMENT,29/01/2021,9388171069,19.97,RNIB CHARITY
OXFORDSHIRE CC,SOCIAL AND COMMUNITY SERVICES,CSS WITNEY,MATERIALS,29/01/2021,9388171061,11.97,AMZNMKTPLACE
OXFORDSHIRE CC,SOCIAL AND COMMUNITY SERVICES,CSS WITNEY,MATERIALS,29/01/2021,9388171063,6.39,AMZNMKTPLACE
OXFORDSHIRE CC,SOCIAL AND COMMUNITY SERVICES,CSS WANTAGE,MATERIALS,29/01/2021,9388171067,20.97,AMZNMKTPLACE
OXFORDSHIRE CC,"CHILDRENS, YOUNG PEOPLE AND FAMILIES",ICT INFORMATION,IT SOFTWARE,29/01/2021,9388170807,54.26,FS  KANBANFLOW
OXFORDSHIRE CC,ENVIRONMENT AND ECONOMY,COUNTY LIBRARY,GENERAL MAINTENANCE,29/01/2021,9388170811,73.94,WOLSELEY UK
OXFORDSHIRE CC,ENVIRONMENT AND ECONOMY,COUNTY LIBRARY,GENERAL MAINTENANCE,29/01/2021,9388170813,36.12,WOLSELEY UK
OXFORDSHIRE CC,"CHILDRENS, YOUNG PEOPLE AND FAMILIES","	LEAVING CARE NORTH",MATERIALS,29/01/2021,9388170817,254.98,AMAZON.CO.UK MV5000DZ4
OXFORDSHIRE CC,SOCIAL AND COMMUNITY SERVICES,CITY RAPID RESPONSE,EDUCATIONAL AND VOCATIONAL TRAINING ,29/01/2021,9388170819,238.8,TEC SERVICES ASSOCIATI
OXFORDSHIRE CC,"CHILDRENS, YOUNG PEOPLE AND FAMILIES",FAMILY SOLUTIONS PLUS NON-STAFF - NORTH,MATERIALS,29/01/2021,9388170821,7.99,AMAZON PRIME MV78I5DD4
OXFORDSHIRE CC,"CHILDRENS, YOUNG PEOPLE AND FAMILIES",NRPF & HOMELESSNESS,HIRE OF ACCOMMODATION AND FACILITIES,29/01/2021,9388170825,418.5,PREMIER INN
OXFORDSHIRE CC,"CHILDRENS, YOUNG PEOPLE AND FAMILIES",NRPF & HOMELESSNESS,HIRE OF ACCOMMODATION AND FACILITIES,29/01/2021,9388170829,129.5,PREMIER INN
OXFORDSHIRE CC,"CHILDRENS, YOUNG PEOPLE AND FAMILIES","	LOOKED AFTER NORTH",REGISTRATION AND INSPECTION FEES,29/01/2021,9388170945,-38,GEN REGISTER OFFICE
OXFORDSHIRE CC,ENTERPRISEVC,PROPERTY & INVESTMENT LEADERSHIP TEAM,"SUPPLIES, STATIONERY AND MATERIALS",29/01/2021,9388170837,90,BUILT ENVIRONMENT NETW
OXFORDSHIRE CC,"CHILDRENS, YOUNG PEOPLE AND FAMILIES",WITNEY,CATERING PROVISIONS,29/01/2021,9388170839,48.23,ASDA STORES 4920
OXFORDSHIRE CC,"CHILDRENS, YOUNG PEOPLE AND FAMILIES","	LOOKED AFTER CITY 2",OTHER EXPENSES,29/01/2021,9388170841,417.99,CURRYS ONLINE
OXFORDSHIRE CC,SOCIAL AND COMMUNITY SERVICES,ADULTS AT RISK CHERW,HIRE OF ACCOMMODATION AND FACILITIES,29/01/2021,9388171099,32.55,HOLIDAY INNS
OXFORDSHIRE CC,CORPORATE CORE,ICT OPERATIONS & MAI,MATERIALS,29/01/2021,9388171109,18.98,AMZNMKTPLACE
OXFORDSHIRE CC,CORPORATE CORE,ICT OPERATIONS & MAI,ADMIN FURNITURE,29/01/2021,9388171113,126,WWW.EQUIP4WORK.CO.UK
OXFORDSHIRE CC,"CHILDRENS, YOUNG PEOPLE AND FAMILIES",FPT SOUTH/VALE,OTHER EXPENSES,29/01/2021,9388171117,22,MARKS&SPENCER PLC
OXFORDSHIRE CC,ENVIRONMENT AND ECONOMY,SIP MANAGEMENT,POSTAGE AND DELIVERY,29/01/2021,9388171131,27.65,ROYAL MAIL GROUP LTD
OXFORDSHIRE CC,"CHILDRENS, YOUNG PEOPLE AND FAMILIES",OXFORDSHIRE,POSTAGE AND DELIVERY,29/01/2021,9388170847,30.44,POST OFFICE COUNTER
OXFORDSHIRE CC,"CHILDRENS, YOUNG PEOPLE AND FAMILIES",FAMILY SOLUTIONS PLUS NON-STAFF - NORTH,POSTAGE AND DELIVERY,29/01/2021,9388170849,-74.8,ROYAL MAIL ONLINE SHOP
OXFORDSHIRE CC,CORPORATE CORE,INCOME TEAM,COURT FEES,29/01/2021,9388170851,410,WWW.MONEYCLAIM.GOV
OXFORDSHIRE CC,SOCIAL AND COMMUNITY SERVICES,SCHOOLS FM CATERING AREA 2,MATERIALS,29/01/2021,9388170855,18.5,AMZNMKTPLACE
OXFORDSHIRE CC,SOCIAL AND COMMUNITY SERVICES,CSS WALLINGFORD,CATERING PROVISIONS,29/01/2021,9388170857,1.15,WAITROSE 675
OXFORDSHIRE CC,"CHILDRENS, YOUNG PEOPLE AND FAMILIES",THAME E&A HOME,CATERING PROVISIONS,29/01/2021,9388170869,18.45,MILK AND MORE
OXFORDSHIRE CC,ENVIRONMENT AND ECONOMY,"	COUNTY HALL",MATERIALS,29/01/2021,9388170991,400.5,WWW.SIGN-HOLDERS.CO.UK
OXFORDSHIRE CC,"CHILDRENS, YOUNG PEOPLE AND FAMILIES",DIDCOT MOVE-ON HOME,CATERING,29/01/2021,9388170889,4.55,SAINSBURYS 2067
OXFORDSHIRE CC,"CHILDRENS, YOUNG PEOPLE AND FAMILIES",EYNSHAM,CATERING PROVISIONS,29/01/2021,9388170899,21.09,SAINSBURYS 2067
OXFORDSHIRE CC,"CHILDRENS, YOUNG PEOPLE AND FAMILIES",FIELDWORK UASC,CATERING,29/01/2021,9388170901,4.5,IZ  MOJO?S SANDWICH BA
OXFORDSHIRE CC,CORPORATE CORE,"	LEGAL SERVICES",LEGAL COSTS,29/01/2021,9388171017,11,OXFORDSHIRE CC MOTO1
